Workbook

Sheet Input
D3: Reference Number: | G3: Date: | H3: 2025-03-17 | J3: Prepared by:
R5: Operating Range: one channel within 470-860 MHz
C6: Customer Information | R6: 4,6,8, 10 and 12 bay sections
R7: Economical design
C8: Customer | I8: Location | R8: Suitable for analog or DTV applications
R9: 2.5 kW average power rating
C10: Antenna Model | F10: ="DLP-"&$K$13&$E$13&IF($C$13="Elliptical","/VP","")&IF($I$13="Full Radome","-R","") -> DLP-8B | R10: 7 different standard azimuth patterns available
G11: Azimuth | I11: Environmental | R11: 1.0 degrees nominal beam tilt
C12: Polarization | E12: Azimuth | G12: Rotation | I12: Protection | K12: Slots | R12: Horizontally polarized
C13: Horizontal | E13: B | G13: 0 | I13: Slot Cover Only | K13: 8 | R13: Elliptically polarized optional
R14: Low VSWR,
G15: =IF(E13="A","Note: All A patterns must have a radome","") ->  | R15: Slot covers provide environmental protection
C16: 1 | D16: Percent Hpol | F16: 0.3 | G16: Percent Vpol (5 to 100 percent) | R16: Standard mounting brackets for 1-1/4” to 4-1/2” OD pipes
K17: First Null Fill | R17: Low weight and windload
K18: 0.1 | R18: 1-5/8" 50 Ohms standard
R19: Survives winds up to 125 mph (56 m/s)
K20: Beam Tilt
K21: 1 Deg.
C25: Hpol | E25: =IF(C13="Horizontal","","Vpol") -> 
D26: Call Letters | F26: =IF(L67,"MHz","Channel") -> Channel | G26: Freq | I26: Power
F27: 26 | G27: =IF($F27="","",IF($F27<5,57+6*($F27-2),IF($F27<7,79+6*($F27-5),IF($F27<14,177+6*($F27-7),IF($F27<70,473+6*($F27-14),IF(AND($F27>200,$F27<301),($F27-201)*0.2+88.1,"")))))) -> 545 | I27: 1 | J27: =IF(P66," ERP"," TPO") -> ERP
I29: Peak | J29: Peak or RMS ERP calculations
C31: Antenna input power budget | G31: =IF(R85>0,IF(I27>0,(R85/I31),""),"") -> 0.02804151379 | H31: =R85 -> 0.07010378449 | I31: 2.5 | J31: Maximum antenna input
C33: Transmission Line
E34: =IF($C$34="","",VLOOKUP($F$66,$F$69:$J$102,3,FALSE)) ->  | F34: =IF($C$34="","",VLOOKUP($F$66,$F$69:$J$102,5,FALSE)) ->  | I34: Vertical | K34: =IF(J34=" "," ",J34*0.3048) -> 0
E35: =IF($C$34="","",VLOOKUP($F$66,$F$69:$J$102,4,FALSE)) ->  | F35: =IF($C$34="","",VLOOKUP($F$66,$F$69:$J$102,3,FALSE)) ->  | I35: Horizontal | K35: =IF(J35=" "," ",J35*0.3048) -> 0
C37: Transmission line power budget | G37: =IF(ISNUMBER(T85),T85,"") -> 0 | I37: Total | J37: =J34+J35 -> 0 | K37: =K34+K35 -> 0
C39: Mechanical Specifications | G39: =IF(ISNUMBER(#REF!),IF(2/3*#REF!<250,"",IF(AND(2/3*#REF!>=250,2/3*#REF!<=820),"Check Mounts!","Requires Special Mounts")),"") -> 
C42: Load Specifications | E42: F | G42: Basic Wind Speed | J42: mph
D44: Ice Thickness | F44: in (for no ice delete value) | I44: Wind Speed with Ice | L44: mph
D45: Ice Thickness | F45: in (for no ice delete value) | I45: Wind Speed with Ice | L45: mph
D47: Structure Class | E47: III | F47: I, II, III | H47: Tower Height | K47: 500 | L47: ft
D48: Exposure Category | E48: B | F48: B, C, D | J48: Elevation on Tower | K48: 500 | L48: ft
D49: Topography Category | E49: 1 | F49: 1, 2, 3, 4 | J49: Tower Base Elevation | K49: 500 | L49: ft
C51: Height H2 | D51: =IF(P80,Antenna!S29&" ft","") -> 16.7 ft | E51: =IF(R75,"Wind Load with Ice","Wind Load Dry") -> Wind Load Dry | G51: =IF(P80,Antenna!S32& " ft²","") -> 10.88 ft² | H51: =IF(R75,"Weight with Ice", "Weight Dry") -> Weight Dry | J51: =IF(P80,IF(R75,Antenna!S31,Antenna!S30) & " lbs","") -> 77 lbs
C66: Horizontal | E66: Peak | F66: =MATCH($C34,$G69:$G98) ->  | H66: Size | I66: Type | O66: 66 | P66: TRUE | Q66: CH 1 use ERP
C67: Elliptical | E67: RMS | G67: 22.74 | K67: Freq input | L67: FALSE | M67: =IF(F27,VLOOKUP($F$27,$L$71:$M$109,2),"") ->  | O67: 67 | P67: =Summary!AT11 -> FALSE | Q67: RMS
G68: 1 | M68: =IF(#REF!,VLOOKUP(#REF!,$L$71:$M$109,2)," ") ->  | O68: 68 | P68: =IF(I13="Full Radome", TRUE,FALSE) -> FALSE | Q68: Radome
F69: 1 | G69: 0-7/8" | H69: 7/8" | I69: Rigid | J69: 50 Ohm | M69: =IF(#REF!,VLOOKUP(#REF!,$L$71:$M$109,2)," ") ->  | O69: 69 | P69: =IF(I13="Slot Cover Only",TRUE,FALSE) -> TRUE | Q69: Slot Cover
C70: DLP Paterns | D70: Bean Tilt | F70: 2 | G70: 1-5/8" | H70: 1-5/8" | I70: Rigid | J70: 50 Ohm | M70: =IF(F29,VLOOKUP($F$29,$L$71:$M$109,2)," ") ->  | O70: 70
C71: B | D71: 1 | F71: 3 | G71: 3-1/8" | H71: 3-1/8" | I71: Rigid | J71: 50 Ohm | K71: 14 | L71: 470 | M71: 14 | O71: 71 | P71: =IF(J37>1,TRUE,FALSE) -> FALSE | Q71: Transmission Line
C72: C | F72: 4 | G72: 3-1/8" EHT | H72: 3-1/8" | I72: Rigid EHT | J72: 50 Ohm | K72: 15 | L72: =L71+6 -> 476 | M72: 15 | O72: 72 | P72: FALSE | Q72: Add other
C73: D | F73: 5 | G73: 4-1/16" | H73: 4-1/16" | I73: Rigid | J73: 50 Ohm | K73: 16 | L73: =L72+6 -> 482 | M73: 16 | O73: 73 | P73: =IF(E42="G",TRUE,FALSE) -> FALSE | Q73: G Code | R73: =IF(E45>0,TRUE,FALSE) -> FALSE
C74: E | F74: 6 | G74: 4-1/16" EHT | H74: 4-1/16" | I74: Rigid EHT | J74: 50 Ohm | K74: 17 | L74: 488 | M74: 17 | O74: 74 | P74: =IF(E42="F",TRUE,FALSE) -> TRUE | Q74: F Code | R74: =IF(E44>0,TRUE,FALSE) -> FALSE
C75: F | F75: 7 | G75: 6-1/8" 50 | H75: 6-1/8" | I75: Rigid | J75: 50 Ohm | K75: 18 | L75: 494 | M75: 18 | O75: 75 | P75: =IF(AND(R73,P73),TRUE,IF(AND(R74,P74),TRUE,FALSE)) -> FALSE | Q75: Ice | R75: =IF(AND(R73,P73),TRUE,IF(AND(R74,P74),"TRUE","FALSE")) -> FALSE
C76: J | F76: 8 | G76: 6-1/8" 50 EHT | H76: 6-1/8" | I76: Rigid EHT | J76: 50 Ohm | K76: 19 | L76: 500 | M76: 19 | O76: 76 | P76: =IF(AND(I42>10,OR(P73,P74)),TRUE,FALSE) -> FALSE | Q76: Mechanicals Active
C77: M | F77: 9 | G77: 6-1/8" 75 | H77: 6-1/8" | I77: Rigid | J77: 75 Ohm | K77: 20 | L77: 506 | M77: 20 | O77: 77 | P77: =IF($C$13="Elliptical",TRUE,FALSE) -> FALSE | Q77: AZ Vpol
F78: 10 | G78: 6-1/8" 75 EHT | H78: 6-1/8" | I78: Rigid EHT | J78: 75 Ohm | K78: 21 | L78: 512 | M78: 21 | O78: 78 | P78: =IF($C$13="Horizontal",TRUE,FALSE) -> TRUE | Q78: AZ Hpol
F79: 11 | G79: 7-3/16" 75 | H79: 7-3/16" | I79: Rigid | J79: 75 Ohm | K79: 22 | L79: 518 | M79: 22 | O79: 79 | P79: =IF($K$13>=8,TRUE,FALSE) -> TRUE | Q79: EL
F80: 12 | G80: 7-3/16" 75 EHT | H80: 7-3/16" | I80: Rigid EHT | J80: 75 Ohm | K80: 23 | L80: 524 | M80: 23 | O80: 80 | P80: =IF(AND(E13>1,K13>=4,F27>=14),TRUE,FALSE) -> TRUE | Q80: AZ and EL
F81: 13 | G81: 8-3/16" 75 | H81: 8-3/16" | I81: Rigid | J81: 75 Ohm | K81: 24 | L81: 530 | M81: 24 | O81: 81 | P81: =IF(F27>=14,IF(F27<=51,IF(P77,TRUE,FALSE))) -> FALSE | Q81: Sheet 1 active w/Vpol | R81: =IF(P81,1,0) -> 0
F82: 14 | G82: 8-3/16" 75 EHT | H82: 8-3/16" | I82: Rigid EHT | J82: 75 Ohm | K82: 25 | L82: 536 | M82: 25 | O82: 82
F83: 15 | G83: 9-3/16" 75 | H83: 9-3/16" | I83: Rigid | J83: 75 Ohm | K83: 26 | L83: 542 | M83: 26 | O83: 83
F84: 16 | G84: 9-3/16" 75 EHT | H84: 9-3/16" | I84: Rigid EHT | J84: 75 Ohm | K84: 27 | L84: 548 | M84: 27 | O84: 84
F85: 17 | G85: FlexLine Air 0-7/8" | H85: 7/8" | I85: Flexline Air | J85: 50 Ohm | K85: 28 | L85: 554 | M85: 28 | O85: 85 | P85: =IF(ISNUMBER(I27),TRUE,FALSE) -> TRUE | Q85: Summary 1 active | R85: =Summary!I21 -> 0.07010378449 | T85: =IF(ISNUMBER(Summary!I40),Summary!X23,0) -> 0
F86: 18 | G86: FlexLine Air 1-5/8" | H86: 1-5/8" | I86: Flexline Air | J86: 50 Ohm | K86: 29 | L86: 560 | M86: 29 | O86: 86
C87: I | D87: TLP Layers | F87: 19 | G87: FlexLine Air 2-1/4" | H87: 2-1/4" | I87: Flexline Air | J87: 50 Ohm | K87: 30 | L87: 566 | M87: 30 | O87: 87
C88: II | D88: 4 | F88: 20 | G88: FlexLine Air 3" | H88: 3" | I88: Flexline Air | J88: 50 Ohm | K88: 31 | L88: 572 | M88: 31 | O88: 88
C89: III | D89: 6 | F89: 21 | G89: FlexLine Air 4" 50 | H89: 4" | I89: Flexline Air | J89: 50 Ohm | K89: 32 | L89: 578 | M89: 32 | O89: 89
D90: 8 | F90: 22 | G90: FlexLine Air 5" 50 | H90: 5" | I90: Flexline Air | J90: 50 Ohm | K90: 33 | L90: 584 | M90: 33 | O90: 90 | P90: =IF(F27>=14,IF(F27<=51,IF(P78,TRUE,FALSE))) -> TRUE | Q90: Sheet 1 active Hpol Only | R90: =IF(P90,1,0) -> 1
C91: B | D91: 10 | F91: 23 | G91: FlexLine Foam 0-1/2" | H91: 1/2" | I91: Flexline Foam | J91: 50 Ohm | K91: 34 | L91: 590 | M91: 34 | O91: 91
C92: C | D92: 12 | F92: 24 | G92: FlexLine Foam 0-7/8" | H92: 7/8" | I92: Flexline Foam | J92: 50 Ohm | K92: 35 | L92: 596 | M92: 35 | O92: 92
C93: D | F93: 25 | G93: FlexLine Foam 1-1/4" | H93: 1-1/4" | I93: Flexline Foam | J93: 50 Ohm | K93: 36 | L93: 602 | M93: 36 | O93: 93
F94: 26 | G94: FlexLine Foam 1-5/8" | H94: 1-5/8" | I94: Flexline Foam | J94: 50 Ohm | K94: 37 | L94: 608 | M94: 37 | O94: 94 | P94: =IF(K13=4,2,IF(K13=6,3,IF(K13=8,4,IF(K13=10,5,IF(K13=12,6,""))))) -> 4 | Q94: EL Column Selection Code
C95: 1 | D95: Null Fill | F95: 27 | G95: FlexLine foam 2-1/4" | H95: 2-1/4" | I95: Flexline Foam | J95: 50 Ohm | K95: 38 | L95: 614 | M95: 38 | O95: 95 | P95: =HLOOKUP($E$13,Azimuth!$A$1:$O$2,2) -> 2 | Q95: AZ Column Selection Code Hpol
C96: 2 | D96: Medium | F96: 28 | G96: None | K96: 39 | L96: 620 | M96: 39 | O96: 96 | P96: =HLOOKUP($E$13,Azimuth!$B$1:$O$2,2)+1 -> 3 | Q96: AZ Column Selection Code Vpol
C97: 3 | F97: 29 | G97: Other | K97: 40 | L97: 626 | M97: 40 | O97: 97
C98: 4 | F98: 30 | G98: Select | K98: 41 | L98: 632 | M98: 41 | O98: 98 | P98: =IF(ISNUMBER(K13),TRUE,FALSE) -> TRUE | Q98: Slots
F99: 31 | K99: 42 | L99: 638 | M99: 42 | O99: 99 | P99: =IF(R28>1,TRUE,FALSE) -> FALSE | Q99: Null Fill
C100: F | D100: Protection | F100: 32 | K100: 43 | L100: 644 | M100: 43 | O100: 100 | P100: =IF(ISNUMBER(S28),TRUE,FALSE) -> FALSE | Q100: Beam Tilt
C101: G | D101: Full Radome | K101: 44 | L101: 650 | M101: 44 | O101: 101
D102: Slot Cover | K102: 45 | L102: 656 | M102: 45 | O102: 102
K103: 46 | L103: 662 | M103: 46 | O103: 103 | P103: 0
K104: 47 | L104: 668 | M104: 47 | O104: 104
K105: 48 | L105: 674 | M105: 48 | O105: 105 | P105: ="CH "& F27&" DLP-"&$K$13&$E$13&IF($C$13="Elliptical ","-VP","")&IF($I$13="Full Radome","-R","") -> CH 26 DLP-8B
K106: 49 | L106: 680 | M106: 49 | O106: 106 | P106: 1 | Q106: Number of sections
K107: 50 | L107: 686 | M107: 50 | O107: 107 | P107: =IF(AND(E13>1,F27>=14),TRUE,FALSE) -> TRUE | Q107: AZ Hpol Ready
K108: 51 | L108: 692 | M108: 51 | O108: 108 | P108: =IF(AND(P107,P77),TRUE,FALSE) -> FALSE | Q108: AZ Vpol Ready
L109: 699 | M109: N/A | O109: 109 | P109: =IF(I29="RMS",TRUE,FALSE) -> FALSE | Q109: RMS Power

Sheet Cover
D11: Antenna Model: | E11: =IF(Input!F10>1,Input!F10,"") -> DLP-8B
B13: Reference Number: | E13: =IF(Input!E3="","",IF(Input!F5="",Input!E3:F3,Input!E3&"-"&Input!F5)) -> 
B14: Date: | E14: =IF(Input!H3,Input!H3,"") -> 2025-03-17
B15: Customer: | E15: =IF(Input!D8>1,Input!D8,"") -> 
B16: Location: | E16: =IF(Input!J8>1,Input!J8,"") -> 
B18: Electrical Specifications
B19: Polarization: | E19: =IF(Input!C13>1,Input!C13,"") -> Horizontal
B20: Azimuth Pattern: | E20: =IF(Input!E13>1,Input!E13,"") -> B
B21: Antenna Input: | E21: 1-5/8" 50 Ohm
B22: VSWR: | E22: Channel | F22: =IF(Input!K13<8,1.15,1.1) -> 1.1
B23: Bandwidth: | E23: 6
B24: Rated Input Power: | E24: =Input!I31 -> 2.5 | F24: =10*LOG10(E24) -> 3.979400087 | G24: Maximum Average Power | I24: =IF(ISNUMBER(Input!R85),IF(Input!G31>1,"Caution, antenna may be overpowered",""),"") -> 
B26: Mechanical Specifications
B27: Mounting: | E27: Side Mounted
B28: Environmental Protection: | E28: =IF(Input!I13="","",Input!I13) -> Slot Cover Only
B29: Height: | E29: =Mechanicals!L32 -> 16.7 ft ( 5.1 m)
B30: Weight: | E30: =Mechanicals!L36 -> 77 lb (35 kg) | F30: Excludes Mounts
B31: Effective Projected Area: | E31: =Mechanicals!L34 -> 10.9 ft² (1 m²) | H31: Basic Wind Speed: | I31: =Mechanicals!O18 -> mph (0 km/h)
B33: Channel Specifications
H35: =IF(Input!P67,"RMS Gain","Peak Gain") -> Peak Gain | I35: =IF(Input!$P$77,IF(Input!P67,"RMS Gain","Peak Gain"),"") ->  | J35: =IF(Input!P67,"RMS Gain","Peak Gain") -> Peak Gain | K35: =IF(Input!$P$77,IF(Input!P67,"RMS Gain","Peak Gain"),"") -> 
H36: Main Lobe | I36: =IF(Input!$P$77,"Main Lobe","") ->  | J36: at Horizontal | K36: =IF(Input!$P$77,"at Horizontal","") -> 
B37: Call | C37: =IF(Input!$L$67,"Freq","Ch") -> Ch | D37: =IF(Input!$L$67,"CH","Freq") -> Freq | E37: Hpol ERP | F37: =IF(Input!P77,"Vpol ERP","") ->  | G37: =IF(Summary!AT10,"TPO","Input") -> Input | H37: Hpol | I37: =IF(Input!$P$77,"Vpol","") ->  | J37: Hpol | K37: =IF(Input!$P$77,"Vpol","") -> 
B39: =IF(Input!D27>1,Input!D27,"") ->  | C39: =IF(Input!F27,Input!F27,"") -> 26 | D39: =IF(Input!F27,Input!G27,"") -> 545 | E39: =IF(Input!F27,Summary!I16,"") -> 1 | F39: =IF(Input!F27,IF(F37="Vpol ERP",Summary!O16,""),"") ->  | G39: =IF(Input!F27,IF(G37="Input",Summary!I21,Summary!I40),"") -> 0.07010378449 | H39: =IF(Input!F27,(Summary!$I$17),"") -> 14.26456513 | I39: =IF(Input!F27,IF(ISNUMBER(Summary!O17),Summary!O17,""),"") ->  | J39: =IF(ISNUMBER(H39),H39*Elpat!AA13^2,"") -> 13.28351895 | K39: =IF(ISNUMBER(I39),I39*Elpat!AA13^2,"") -> 
E40: =IF(ISNUMBER(E39),10*LOG(E39)," ") -> 0 | F40: =IF(Input!$P$78," ",IF(ISNUMBER(F39),10*LOG(F39)," ")) ->  | G40: =IF(ISNUMBER(G39),10*LOG(G39)," ") -> -11.54258536 | H40: =IF(ISNUMBER(H39),10*LOG(H39)," ") -> 11.54258536 | I40: =IF(ISNUMBER(I39),10*LOG(I39)," ") ->  | J40: =IF(ISNUMBER(J39),10*LOG(J39)," ") -> 11.2331314 | K40: =IF(ISNUMBER(K39),10*LOG(K39)," ") -> 
B66: This document contains proprietary and confidential information of Dielectric. It is to be used solely for the purpose for which it is provided.
B67: No disclosure, reproduction, or use of this document or any part of it may be made without the written permission of Dielectric.

Sheet AZ Hpol
AB2: =(ROUND(((($R$13-389)/6)-13),0)*2)+1 -> 27
O6: AZIMUTH PATTERN
O7: Horizontal Polarization
O9: Proposal No. | R9: =Cover!E13 ->  | AA9: Normalized Directivity | AB9: =IF(ISNUMBER(R12),360/SUMSQ($AB$15:$AB$374),"") -> 1.756719844 | AC9: =ROUND(AB9,2) -> 1.76
O10: Date | R10: =Cover!E14 -> 2025-03-17 | AA10: Input Peak Value | AB10: =MAX($AC$15:$AC$374) -> 1
O11: Call Letters | R11: =IF(Input!D27>1,Input!D27,"") ->  | AG11: =IF(AG13<0,TRUE,FALSE) -> FALSE
O12: Channel | R12: =IF(Input!F27>1,Input!F27,"") -> 26 | X12: DwgNo | Y12: B
O13: Frequency | R13: =IF(Input!G27>1,Input!G27,"") -> 545 | X13: Rotation | Y13: =Input!G13 -> 0 | AG13: =MIN(AG15:AG374) -> 0.3114246883
O14: Antenna Type | R14: =Cover!$E$11 -> DLP-8B | W14: Deg | X14: Pattern | Y14: Deg | Z14: dB | AB14: Normalized | AC14: Input
O15: Gain | R15: =IF(ISNUMBER(AB9),ROUND(AB9,2)&" ("&ROUND(10*LOG(AB9),2)&"dB)","") -> 1.76 (2.45dB) | W15: 0 | X15: =INDEX($Y$15:$AC$374,MATCH(MOD($Y15-$Y$13,360),$Y$15:$Y$374,1),4) -> 1 | Y15: 0 | Z15: =ROUND(20*LOG(X15),4) -> 0 | AB15: =(1/$AB$10)*$AC15 -> 1 | AC15: 1 | AE15: 1 | AG15: =X15-'AZ Vpol'!X15 -> 0.4522868774
R16: Calculated | W16: 1 | X16: =INDEX($Y$15:$AC$374,MATCH(MOD($Y16-$Y$13,360),$Y$15:$Y$374,1),4) -> 0.9995852709 | Y16: 1 | Z16: =ROUND(20*LOG(X16),4) -> -0.0036 | AB16: =(1/$AB$10)*$AC16 -> 0.9995852709 | AC16: 0.9995852709 | AE16: 0 | AG16: =X16-'AZ Vpol'!X16 -> 0.4519305861
W17: 2 | X17: 0.9992269874 | Y17: 2 | Z17: -0.0067 | AB17: 0.9992269874 | AC17: 0.9992269874 | AE17: 0 | AG17: =X17-'AZ Vpol'!X17 -> 0.4516803635
O18: Pattern Number | R18: =IF(Input!$F$27<14,"","TLP-"&Y12&"-"&R12&" Hpol") -> TLP-B-26 Hpol | W18: 3 | X18: 0.998903513 | Y18: 3 | Z18: -0.0095 | AB18: 0.998903513 | AC18: 0.998903513 | AE18: 0 | AG18: =X18-'AZ Vpol'!X18 -> 0.4515141814
W19: 4 | X19: 0.9985932112 | Y19: 4 | Z19: -0.0122 | AB19: 0.9985932112 | AC19: 0.9985932112 | AE19: 0 | AG19: =X19-'AZ Vpol'!X19 -> 0.4514106645
W20: 5 | X20: 0.9982740879 | Y20: 5 | Z20: -0.015 | AB20: 0.9982740879 | AC20: 0.9982740879 | AE20: 0 | AG20: =X20-'AZ Vpol'!X20 -> 0.4513476555
W21: 6 | X21: 0.9979243875 | Y21: 6 | Z21: -0.018 | AB21: 0.9979243875 | AC21: 0.9979243875 | AE21: 0 | AG21: =X21-'AZ Vpol'!X21 -> 0.4513036924
W22: 7 | X22: 0.9975224733 | Y22: 7 | Z22: -0.0215 | AB22: 0.9975224733 | AC22: 0.9975224733 | AE22: 0 | AG22: =X22-'AZ Vpol'!X22 -> 0.4512570082
W23: 8 | X23: 0.997046411 | Y23: 8 | Z23: -0.0257 | AB23: 0.997046411 | AC23: 0.997046411 | AE23: 0 | AG23: =X23-'AZ Vpol'!X23 -> 0.4511857337
W24: 9 | X24: 0.9964746237 | Y24: 9 | Z24: -0.0307 | AB24: 0.9964746237 | AC24: 0.9964746237 | AE24: 0 | AG24: =X24-'AZ Vpol'!X24 -> 0.4510684878
W25: 10 | X25: 0.9957849979 | Y25: 10 | Z25: -0.0367 | AB25: 0.9957849979 | AC25: 0.9957849979 | AE25: 0 | AG25: =X25-'AZ Vpol'!X25 -> 0.4508832553
B26: Deg | C26: Value | D26: Deg | E26: Value | F26: Deg | G26: Value | H26: Deg | I26: Value | J26: Deg | K26: Value | L26: Deg | M26: Value | N26: Deg | O26: Value | P26: Deg | Q26: Value | R26: Deg | S26: Value | T26: Deg | U26: Value | W26: 11 | X26: 0.9949573874 | Y26: 11 | Z26: -0.0439 | AB26: 0.9949573874 | AC26: 0.9949573874 | AE26: 0 | AG26: =X26-'AZ Vpol'!X26 -> 0.4506100529
B27: 0 | C27: =VLOOKUP(B27,$W$15:$X$374,2) -> 1 | D27: 36 | E27: =VLOOKUP(D27,$W$15:$X$374,2) -> 0.9351996183 | F27: 72 | G27: =VLOOKUP(F27,$W$15:$X$374,2) -> 0.7593908906 | H27: 108 | I27: =VLOOKUP(H27,$W$15:$X$374,2) -> 0.5885093212 | J27: 144 | K27: =VLOOKUP(J27,$W$15:$X$374,2) -> 0.5938891768 | L27: 180 | M27: =VLOOKUP(L27,$W$15:$X$374,2) -> 0.6452100277 | N27: 216 | O27: =VLOOKUP(N27,$W$15:$X$374,2) -> 0.600168407 | P27: 252 | Q27: =VLOOKUP(P27,$W$15:$X$374,2) -> 0.5837820768 | R27: 288 | S27: =VLOOKUP(R27,$W$15:$X$374,2) -> 0.7465034127 | T27: 324 | U27: =VLOOKUP(T27,$W$15:$X$374,2) -> 0.9303296804 | W27: 12 | X27: 0.9939860106 | Y27: 12 | Z27: -0.0524 | AB27: 0.9939860106 | AC27: 0.9939860106 | AE27: 0 | AG27: =X27-'AZ Vpol'!X27 -> 0.4502431643
B28: 1 | C28: 0.9995852709 | D28: 37 | E28: 0.9315292239 | F28: 73 | G28: 0.7537481189 | H28: 109 | I28: 0.5858808756 | J28: 145 | K28: 0.5960729122 | L28: 181 | M28: 0.645201087 | N28: 217 | O28: 0.5980163813 | P28: 253 | Q28: 0.5866218805 | R28: 289 | S28: 0.752604425 | T28: 325 | U28: 0.9340227842 | W28: 13 | X28: 0.9928737879 | Y28: 13 | Z28: -0.0621 | AB28: 0.9928737879 | AC28: 0.9928737879 | AE28: 0 | AG28: =X28-'AZ Vpol'!X28 -> 0.4497855754
B29: 2 | C29: 0.9992269874 | D29: 38 | E29: 0.9277737141 | F29: 74 | G29: 0.7481055856 | H29: 110 | I29: 0.5834270716 | J29: 146 | K29: 0.5982778072 | L29: 182 | M29: 0.6450989842 | N29: 218 | O29: 0.5959349871 | P29: 254 | Q29: 0.5896435976 | R29: 290 | S29: 0.7587090135 | T29: 326 | U29: 0.9375998974 | W29: 14 | X29: 0.9916236997 | Y29: 14 | Z29: -0.0731 | AB29: 0.9916236997 | AC29: 0.9916236997 | AE29: 0 | AG29: =X29-'AZ Vpol'!X29 -> 0.4492407236
B30: 3 | C30: 0.998903513 | D30: 39 | E30: 0.9239342213 | F30: 75 | G30: 0.7424669266 | H30: 111 | I30: 0.5811517239 | J30: 147 | K30: 0.600494504 | L30: 183 | M30: 0.6449071765 | N30: 219 | O30: 0.5939440131 | P30: 255 | Q30: 0.5928254724 | R30: 291 | S30: 0.7648056746 | T30: 327 | U30: 0.9410557747 | W30: 15 | X30: 0.9902387857 | Y30: 15 | Z30: -0.0852 | AB30: 0.9902387857 | AC30: 0.9902387857 | AE30: 0 | AG30: =X30-'AZ Vpol'!X30 -> 0.448611518
B31: 4 | C31: 0.9985932112 | D31: 40 | E31: 0.9200118184 | F31: 76 | G31: 0.7368353009 | H31: 112 | I31: 0.5790581107 | J31: 148 | K31: 0.6027132273 | L31: 184 | M31: 0.6446279883 | N31: 220 | O31: 0.5920630097 | P31: 256 | Q31: 0.5961461067 | R31: 292 | S31: 0.7708827257 | T31: 328 | U31: 0.9443855882 | W31: 16 | X31: 0.988722384 | Y31: 16 | Z31: -0.0985 | AB31: 0.988722384 | AC31: 0.988722384 | AE31: 0 | AG31: =X31-'AZ Vpol'!X31 -> 0.4479015577
B32: 5 | C32: 0.9982740879 | D32: 41 | E32: 0.9160072803 | F32: 77 | G32: 0.7312145233 | H32: 113 | I32: 0.5771489739 | J32: 149 | K32: 0.6049246788 | L32: 185 | M32: 0.6442648768 | N32: 221 | O32: 0.5903102756 | P32: 257 | Q32: 0.5995836258 | R32: 293 | S32: 0.7769284844 | T32: 329 | U32: 0.9475842118 | W32: 17 | X32: 0.9870771766 | Y32: 17 | Z32: -0.113 | AB32: 0.9870771766 | AC32: 0.9870771766 | AE32: 0 | AG32: =X32-'AZ Vpol'!X32 -> 0.447113884
B33: 6 | C33: 0.9979243875 | D33: 42 | E33: 0.9119217992 | F33: 78 | G33: 0.725607872 | H33: 114 | I33: 0.5754231215 | J33: 150 | K33: 0.6071192026 | L33: 186 | M33: 0.643820703 | N33: 222 | O33: 0.5886870027 | P33: 258 | Q33: 0.6031165123 | R33: 294 | S33: 0.7829310298 | T33: 330 | U33: 0.9506468177 | W33: 18 | X33: 0.9853069186 | Y33: 18 | Z33: -0.1286 | AB33: 0.9853069186 | AC33: 0.9853069186 | AE33: 0 | AG33: =X33-'AZ Vpol'!X33 -> 0.4462522846
B34: 7 | C34: 0.9975224733 | D34: 43 | E34: 0.9077565074 | F34: 79 | G34: 0.7200192213 | H34: 115 | I34: 0.5738782287 | J34: 151 | K34: 0.6092870831 | L34: 187 | M34: 0.6432985067 | N34: 223 | O34: 0.5871822834 | P34: 259 | Q34: 0.6067231894 | R34: 295 | S34: 0.7888789773 | T34: 331 | U34: 0.9535685182 | W34: 19 | X34: 0.9834138155 | Y34: 19 | Z34: -0.1453 | AB34: 0.9834138155 | AC34: 0.9834138155 | AE34: 0 | AG34: =X34-'AZ Vpol'!X34 -> 0.4453192262
B35: 8 | C35: 0.997046411 | D35: 44 | E35: 0.9035124183 | F35: 80 | G35: 0.7144517899 | H35: 116 | I35: 0.5725122094 | J35: 152 | K35: 0.6114192009 | L35: 188 | M35: 0.6427013874 | N35: 224 | O35: 0.5857849121 | P35: 260 | Q35: 0.6103817821 | R35: 296 | S35: 0.7947605252 | T35: 332 | U35: 0.9563490748 | W35: 20 | X35: 0.9814013839 | Y35: 20 | Z35: -0.1631 | AB35: 0.9814013839 | AC35: 0.9814013839 | AE35: 0 | AG35: =X35-'AZ Vpol'!X35 -> 0.4443184539
B36: 9 | C36: 0.9964746237 | D36: 45 | E36: 0.8991904259 | F36: 81 | G36: 0.7089092731 | H36: 117 | I36: 0.5713226795 | J36: 153 | K36: 0.6135088205 | L36: 189 | M36: 0.6420322061 | N36: 225 | O36: 0.5844836235 | P36: 261 | Q36: 0.6140745282 | R36: 297 | S36: 0.8005645871 | T36: 333 | U36: 0.9589983225 | W36: 21 | X36: 0.9792727232 | Y36: 21 | Z36: -0.1819 | AB36: 0.9792727232 | AC36: 0.9792727232 | AE36: 0 | AG36: =X36-'AZ Vpol'!X36 -> 0.4432530671
B37: 10 | C37: 0.9957849979 | D37: 46 | E37: 0.8947917223 | F37: 82 | G37: 0.7033951879 | H37: 118 | I37: 0.570307672 | J37: 154 | K37: 0.6155536175 | L37: 190 | M37: 0.6412941217 | N37: 226 | O37: 0.5832672119 | P37: 262 | Q37: 0.6178023219 | R37: 298 | S37: 0.8062872291 | T37: 334 | U37: 0.9615254998 | W37: 22 | X37: 0.9770308733 | Y37: 22 | Z37: -0.2018 | AB37: 0.9770308733 | AC37: 0.9770308733 | AE37: 0 | AG37: =X37-'AZ Vpol'!X37 -> 0.4421266607
B38: 11 | C38: 0.9949573874 | D38: 47 | E38: 0.8903172016 | F38: 83 | G38: 0.6979141235 | H38: 119 | I38: 0.569464922 | J38: 155 | K38: 0.6175510287 | L38: 191 | M38: 0.6404901743 | N38: 227 | O38: 0.5821244717 | P38: 263 | Q38: 0.6215726137 | R38: 299 | S38: 0.8119298816 | T38: 335 | U38: 0.9639412165 | W38: 23 | X38: 0.974678874 | Y38: 23 | Z38: -0.2228 | AB38: 0.974678874 | AC38: 0.974678874 | AE38: 0 | AG38: =X38-'AZ Vpol'!X38 -> 0.4409422419
B39: 12 | C39: 0.9939860106 | D39: 48 | E39: 0.8857679963 | F39: 84 | G39: 0.6924718022 | H39: 120 | I39: 0.5687919855 | J39: 156 | K39: 0.6194986105 | L39: 192 | M39: 0.6396232247 | N39: 228 | O39: 0.5810443759 | P39: 264 | Q39: 0.6253926754 | R39: 300 | S39: 0.8174945712 | T39: 336 | U39: 0.9662550092 | W39: 24 | X39: 0.9722198248 | Y39: 24 | Z39: -0.2447 | AB39: 0.9722198248 | AC39: 0.9722198248 | AE39: 0 | AG39: =X39-'AZ Vpol'!X39 -> 0.4397033672
B40: 13 | C40: 0.9928737879 | D40: 49 | E40: 0.8811452985 | F40: 85 | G40: 0.6870738864 | H40: 121 | I40: 0.5682868958 | J40: 157 | K40: 0.621393919 | L40: 193 | M40: 0.6386963725 | N40: 229 | O40: 0.5800154805 | P40: 265 | Q40: 0.6292703748 | R40: 301 | S40: 0.8229826093 | T40: 337 | U40: 0.9684770703 | W40: 25 | X40: 0.9696567059 | Y40: 25 | Z40: -0.2676 | AB40: 0.9696567059 | AC40: 0.9696567059 | AE40: 0 | AG40: =X40-'AZ Vpol'!X40 -> 0.4384130493
B41: 14 | C41: 0.9916236997 | D41: 50 | E41: 0.8764497042 | F41: 86 | G41: 0.6817265749 | H41: 122 | I41: 0.5679464936 | J41: 158 | K41: 0.6232345104 | L41: 194 | M41: 0.6377127171 | N41: 230 | O41: 0.5790268779 | P41: 266 | Q41: 0.6332128048 | R41: 302 | S41: 0.8283957839 | T41: 338 | U41: 0.9706174731 | W41: 26 | X41: 0.9669926763 | Y41: 26 | Z41: -0.2915 | AB41: 0.9669926763 | AC41: 0.9669926763 | AE41: 0 | AG41: =X41-'AZ Vpol'!X41 -> 0.4370748393
B42: 15 | C42: 0.9902387857 | D42: 51 | E42: 0.8716828823 | F42: 87 | G42: 0.6764351726 | H42: 123 | I42: 0.567767024 | J42: 159 | K42: 0.6250178218 | L42: 195 | M42: 0.6366751194 | N42: 231 | O42: 0.5780671239 | P42: 267 | Q42: 0.637227416 | R42: 303 | S42: 0.8337355852 | T42: 339 | U42: 0.9726859927 | W42: 27 | X42: 0.9642307758 | Y42: 27 | Z42: -0.3164 | AB42: 0.9642307758 | AC42: 0.9642307758 | AE42: 0 | AG42: =X42-'AZ Vpol'!X42 -> 0.4356917115
B43: 16 | C43: 0.988722384 | D43: 52 | E43: 0.8668454289 | F43: 88 | G43: 0.6712058783 | H43: 124 | I43: 0.5677446723 | J43: 160 | K43: 0.6267414093 | L43: 196 | M43: 0.6355865002 | N43: 232 | O43: 0.5771250129 | P43: 268 | Q43: 0.6413217187 | R43: 304 | S43: 0.8390039802 | T43: 340 | U43: 0.9746925831 | W43: 28 | X43: 0.9613733292 | Y43: 28 | Z43: -0.3422 | AB43: 0.9613733292 | AC43: 0.9613733292 | AE43: 0 | AG43: =X43-'AZ Vpol'!X43 -> 0.4342667089
B44: 17 | C44: 0.9870771766 | D44: 53 | E44: 0.8619384766 | F44: 89 | G44: 0.6660441756 | H44: 125 | I44: 0.5678756833 | J44: 161 | K44: 0.6284028888 | L44: 197 | M44: 0.6344460249 | N44: 233 | O44: 0.5761895776 | P44: 269 | Q44: 0.6455032229 | R44: 305 | S44: 0.84420228 | T44: 341 | U44: 0.976647675 | W44: 29 | X44: 0.9584214091 | Y44: 29 | Z44: -0.3689 | AB44: 0.9584214091 | AC44: 0.9584214091 | AE44: 0 | AG44: =X44-'AZ Vpol'!X44 -> 0.4328007083
B45: 18 | C45: 0.9853069186 | D45: 54 | E45: 0.856963098 | F45: 90 | G45: 0.6609563231 | H45: 126 | I45: 0.5681561232 | J45: 162 | K45: 0.6299998164 | L45: 198 | M45: 0.6332504749 | N45: 234 | O45: 0.5752493143 | P45: 270 | Q45: 0.6497790217 | R45: 306 | S45: 0.8493323922 | T45: 342 | U45: 0.9785605073 | W45: 30 | X45: 0.9553759098 | Y45: 30 | Z45: -0.3965 | AB45: 0.9553759098 | AC45: 0.9553759098 | AE45: 1 | AG45: =X45-'AZ Vpol'!X45 -> 0.4312947998
B46: 19 | C46: 0.9834138155 | D46: 55 | E46: 0.8519210815 | F46: 91 | G46: 0.6559476256 | H46: 127 | I46: 0.5685819983 | J46: 163 | K46: 0.6315296888 | L46: 199 | M46: 0.6319969893 | N46: 235 | O46: 0.5742989182 | P46: 271 | Q46: 0.6541569233 | R46: 307 | S46: 0.8543956876 | T46: 343 | U46: 0.9804416895 | W46: 31 | X46: 0.9522380829 | Y46: 31 | Z46: -0.4251 | AB46: 0.9522380829 | AC46: 0.9522380829 | AE46: 0 | AG46: =X46-'AZ Vpol'!X46 -> 0.4297509207
B47: 20 | C47: 0.9814013839 | D47: 56 | E47: 0.8468155861 | F47: 92 | G47: 0.651024282 | H47: 128 | I47: 0.5691496134 | J47: 164 | K47: 0.6329901218 | L47: 200 | M47: 0.6306821704 | N47: 236 | O47: 0.57336092 | P47: 272 | Q47: 0.6586440802 | R47: 308 | S47: 0.8593940139 | T47: 344 | U47: 0.982301116 | W47: 32 | X47: 0.949008882 | Y47: 32 | Z47: -0.4546 | AB47: 0.949008882 | AC47: 0.949008882 | AE47: 0 | AG47: =X47-'AZ Vpol'!X47 -> 0.4281699593
B48: 21 | C48: 0.9792727232 | D48: 57 | E48: 0.8416504264 | F48: 93 | G48: 0.6461917758 | H48: 129 | I48: 0.5698552728 | J48: 165 | K48: 0.634378612 | L48: 201 | M48: 0.6293026805 | N48: 237 | O48: 0.572467804 | P48: 273 | Q48: 0.6632481813 | R48: 309 | S48: 0.8643290997 | T48: 345 | U48: 0.9841483235 | W48: 33 | X48: 0.9456893802 | Y48: 33 | Z48: -0.485 | AB48: 0.9456893802 | AC48: 0.9456893802 | AE48: 0 | AG48: =X48-'AZ Vpol'!X48 -> 0.4265530211
B49: 22 | C49: 0.9770308733 | D49: 58 | E49: 0.8364288807 | F49: 94 | G49: 0.6414561272 | H49: 130 | I49: 0.5706949234 | J49: 166 | K49: 0.6356925964 | L49: 202 | M49: 0.6278554797 | N49: 238 | O49: 0.5716518164 | P49: 274 | Q49: 0.6679766178 | R49: 310 | S49: 0.8692023158 | T49: 346 | U49: 0.9859799743 | W49: 34 | X49: 0.942280829 | Y49: 34 | Z49: -0.5164 | AB49: 0.942280829 | AC49: 0.942280829 | AE49: 0 | AG49: =X49-'AZ Vpol'!X49 -> 0.4249019455
B50: 23 | C50: 0.974678874 | D50: 59 | E50: 0.8311545253 | F50: 95 | G50: 0.6368231773 | H50: 131 | I50: 0.571664691 | J50: 167 | K50: 0.63692981 | L50: 203 | M50: 0.6263375282 | N50: 239 | O50: 0.5709453821 | P50: 275 | Q50: 0.6728364825 | R50: 311 | S50: 0.8740155101 | T50: 347 | U50: 0.9877734184 | W50: 35 | X50: 0.9387837052 | Y50: 35 | Z50: -0.5487 | AB50: 0.9387837052 | AC50: 0.9387837052 | AE50: 0 | AG50: =X50-'AZ Vpol'!X50 -> 0.4232170135
B51: 24 | C51: 0.9722198248 | D51: 60 | E51: 0.8258308768 | F51: 96 | G51: 0.6322985888 | H51: 132 | I51: 0.57276088 | J51: 168 | K51: 0.6380875707 | L51: 204 | M51: 0.6247451901 | N51: 240 | O51: 0.5703806877 | P51: 276 | Q51: 0.6778355837 | R51: 312 | S51: 0.8787701726 | T51: 348 | U51: 0.9895042777 | W51: 36 | X51: 0.9351996183 | Y51: 36 | Z51: -0.5819 | AB51: 0.9351996183 | AC51: 0.9351996183 | AE51: 0 | AG51: =X51-'AZ Vpol'!X51 -> 0.4215000955
B52: 25 | C52: 0.9696567059 | D52: 61 | E52: 0.8204615712 | F52: 97 | G52: 0.6278882027 | H52: 133 | I52: 0.5739796162 | J52: 169 | K52: 0.6391636729 | L52: 205 | M52: 0.6230757236 | N52: 241 | O52: 0.5699899197 | P52: 277 | Q52: 0.6829807162 | R52: 313 | S52: 0.8834682107 | T52: 349 | U52: 0.9911481142 | W52: 37 | X52: 0.9315292239 | Y52: 37 | Z52: -0.6161 | AB52: 0.9315292239 | AC52: 0.9315292239 | AE52: 0 | AG52: =X52-'AZ Vpol'!X52 -> 0.4197522064
B53: 26 | C53: 0.9669926763 | D53: 62 | E53: 0.8150501251 | F53: 98 | G53: 0.6235979199 | H53: 134 | I53: 0.5753170252 | J53: 170 | K53: 0.6401565075 | L53: 206 | M53: 0.6213254929 | N53: 242 | O53: 0.5698055029 | P53: 278 | Q53: 0.688269496 | R53: 314 | S53: 0.888109386 | T53: 350 | U53: 0.99268049 | W53: 38 | X53: 0.9277737141 | Y53: 38 | Z53: -0.6512 | AB53: 0.9277737141 | AC53: 0.9277737141 | AE53: 0 | AG53: =X53-'AZ Vpol'!X53 -> 0.4179747013
B54: 27 | C54: 0.9642307758 | D54: 63 | E54: 0.8095998168 | F54: 99 | G54: 0.619433403 | H54: 135 | I54: 0.5767691731 | J54: 171 | K54: 0.6410645247 | L54: 207 | M54: 0.6194915771 | N54: 243 | O54: 0.5698596835 | P54: 279 | Q54: 0.6936904788 | R54: 315 | S54: 0.8926892877 | T54: 351 | U54: 0.9940773249 | W54: 39 | X54: 0.9239342213 | Y54: 39 | Z54: -0.6872 | AB54: 0.9239342213 | AC54: 0.9239342213 | AE54: 0 | AG54: =X54-'AZ Vpol'!X54 -> 0.416168615
B55: 28 | C55: 0.9613733292 | D55: 64 | E55: 0.8041145802 | F55: 100 | G55: 0.6154006124 | H55: 136 | I55: 0.5783324242 | J55: 172 | K55: 0.6418864727 | L55: 208 | M55: 0.6175708175 | N55: 244 | O55: 0.5701847076 | P55: 280 | Q55: 0.6992322206 | R55: 316 | S55: 0.8972030282 | T55: 352 | U55: 0.9953138828 | W55: 40 | X55: 0.9200118184 | Y55: 40 | Z55: -0.7241 | AB55: 0.9200118184 | AC55: 0.9200118184 | AE55: 0 | AG55: =X55-'AZ Vpol'!X55 -> 0.4143352488
B56: 29 | C56: 0.9584214091 | D56: 65 | E56: 0.7985975742 | F56: 101 | G56: 0.6115052104 | H56: 137 | I56: 0.5800017715 | J56: 173 | K56: 0.6426212788 | L56: 209 | M56: 0.615559876 | N56: 245 | O56: 0.570812881 | P56: 281 | Q56: 0.7048826218 | R56: 317 | S56: 0.901645422 | T56: 353 | U56: 0.9963713884 | W56: 41 | X56: 0.9160072803 | Y56: 41 | Z56: -0.762 | AB56: 0.9160072803 | AC56: 0.9160072803 | AE56: 0 | AG56: =X56-'AZ Vpol'!X56 -> 0.4124756387
B57: 30 | C57: 0.9553759098 | D57: 66 | E57: 0.7930526733 | F57: 102 | G57: 0.6077532172 | H57: 138 | I57: 0.5817689896 | J57: 174 | K57: 0.6432673931 | L57: 210 | M57: 0.6134635806 | N57: 246 | O57: 0.5717741847 | P57: 282 | Q57: 0.7106302977 | R57: 318 | S57: 0.9060115814 | T57: 354 | U57: 0.9972574115 | W57: 42 | X57: 0.9119217992 | Y57: 42 | Z57: -0.8008 | AB57: 0.9119217992 | AC57: 0.9119217992 | AE57: 0 | AG57: =X57-'AZ Vpol'!X57 -> 0.4105909442
B58: 31 | C58: 0.9522380829 | D58: 67 | E58: 0.7874830961 | F58: 103 | G58: 0.6041501164 | H58: 139 | I58: 0.5836244226 | J58: 175 | K58: 0.6438236237 | L58: 211 | M58: 0.611300528 | N58: 247 | O58: 0.5730683804 | P58: 283 | Q58: 0.7164636254 | R58: 319 | S58: 0.9102967978 | T58: 355 | U58: 0.9979876876 | W58: 43 | X58: 0.9077565074 | Y58: 43 | Z58: -0.8406 | AB58: 0.9077565074 | AC58: 0.9077565074 | AE58: 0 | AG58: =X58-'AZ Vpol'!X58 -> 0.4086825589
B59: 32 | C59: 0.949008882 | D59: 68 | E59: 0.7818924785 | F59: 104 | G59: 0.6007006168 | H59: 140 | I59: 0.5855584145 | J59: 176 | K59: 0.6442884803 | L59: 212 | M59: 0.6090899706 | N59: 248 | O59: 0.5746744275 | P59: 284 | Q59: 0.7223706245 | R59: 320 | S59: 0.9144958258 | T59: 356 | U59: 0.998577714 | W59: 44 | X59: 0.9035124183 | Y59: 44 | Z59: -0.8813 | AB59: 0.9035124183 | AC59: 0.9035124183 | AE59: 0 | AG59: =X59-'AZ Vpol'!X59 -> 0.4067511697
B60: 33 | C60: 0.9456893802 | D60: 69 | E60: 0.7762845159 | F60: 105 | G60: 0.5974081755 | H60: 141 | I60: 0.5875614285 | J60: 177 | K60: 0.6446608901 | L60: 213 | M60: 0.6068518758 | N60: 249 | O60: 0.5765702724 | P60: 285 | Q60: 0.7283397913 | R60: 321 | S60: 0.9186034799 | T60: 357 | U60: 0.9990435839 | W60: 45 | X60: 0.8991904259 | Y60: 45 | Z60: -0.923 | AB60: 0.8991904259 | AC60: 0.8991904259 | AE60: 0 | AG60: =X60-'AZ Vpol'!X60 -> 0.4047979318
B61: 34 | C61: 0.942280829 | D61: 70 | E61: 0.7706626058 | F61: 106 | G61: 0.5942764878 | H61: 142 | I61: 0.5896239281 | J61: 178 | K61: 0.6449394226 | L61: 214 | M61: 0.604605794 | N61: 250 | O61: 0.5787345767 | P61: 286 | Q61: 0.7343593836 | R61: 322 | S61: 0.9226149917 | T61: 358 | U61: 0.9994009733 | W61: 46 | X61: 0.8947917223 | Y61: 46 | Z61: -0.9656 | AB61: 0.8947917223 | AC61: 0.8947917223 | AE61: 0 | AG61: =X61-'AZ Vpol'!X61 -> 0.4028241025
B62: 35 | C62: 0.9387837052 | D62: 71 | E62: 0.765030086 | F62: 107 | G62: 0.5913090706 | H62: 143 | I62: 0.5917363763 | J62: 179 | K62: 0.6451228857 | L62: 215 | M62: 0.6023715138 | N62: 251 | O62: 0.581145823 | P62: 287 | Q62: 0.7404180169 | R62: 323 | S62: 0.9265254736 | T62: 359 | U62: 0.9996653795 | W62: 47 | X62: 0.8903172016 | Y62: 47 | Z62: -1.0091 | AB62: 0.8903172016 | AC62: 0.8903172016 | AE62: 0 | AG62: =X62-'AZ Vpol'!X62 -> 0.4008305761
W63: 48 | X63: 0.8857679963 | Y63: 48 | Z63: -1.0536 | AB63: 0.8857679963 | AC63: 0.8857679963 | AE63: 0 | AG63: =X63-'AZ Vpol'!X63 -> 0.3988184195
W64: 49 | X64: 0.8811452985 | Y64: 49 | Z64: -1.099 | AB64: 0.8811452985 | AC64: 0.8811452985 | AE64: 0 | AG64: =X64-'AZ Vpol'!X64 -> 0.3967887598
A65: This document contains proprietary and confidential information of Dielectric. It is to be used solely for the purpose for which it is provided. | W65: 50 | X65: 0.8764497042 | Y65: 50 | Z65: -1.1455 | AB65: 0.8764497042 | AC65: 0.8764497042 | AE65: 0 | AG65: =X65-'AZ Vpol'!X65 -> 0.3947421601
A66: No disclosure, reproduction, or use of this document or any part of it may be made without the written permission of Dielectric. | W66: 51 | X66: 0.8716828823 | Y66: 51 | Z66: -1.1928 | AB66: 0.8716828823 | AC66: 0.8716828823 | AE66: 0 | AG66: =X66-'AZ Vpol'!X66 -> 0.392680159
W67: 52 | X67: 0.8668454289 | Y67: 52 | Z67: -1.2412 | AB67: 0.8668454289 | AC67: 0.8668454289 | AE67: 0 | AG67: =X67-'AZ Vpol'!X67 -> 0.3906032545
W68: 53 | X68: 0.8619384766 | Y68: 53 | Z68: -1.2905 | AB68: 0.8619384766 | AC68: 0.8619384766 | AE68: 0 | AG68: =X68-'AZ Vpol'!X68 -> 0.388512579
W69: 54 | X69: 0.856963098 | Y69: 54 | Z69: -1.3408 | AB69: 0.856963098 | AC69: 0.856963098 | AE69: 0 | AG69: =X69-'AZ Vpol'!X69 -> 0.3864086832
W70: 55 | X70: 0.8519210815 | Y70: 55 | Z70: -1.392 | AB70: 0.8519210815 | AC70: 0.8519210815 | AE70: 0 | AG70: =X70-'AZ Vpol'!X70 -> 0.3842933551
W71: 56 | X71: 0.8468155861 | Y71: 56 | Z71: -1.4442 | AB71: 0.8468155861 | AC71: 0.8468155861 | AE71: 0 | AG71: =X71-'AZ Vpol'!X71 -> 0.3821694927
W72: 57 | X72: 0.8416504264 | Y72: 57 | Z72: -1.4974 | AB72: 0.8416504264 | AC72: 0.8416504264 | AE72: 0 | AG72: =X72-'AZ Vpol'!X72 -> 0.3800407474
W73: 58 | X73: 0.8364288807 | Y73: 58 | Z73: -1.5514 | AB73: 0.8364288807 | AC73: 0.8364288807 | AE73: 0 | AG73: =X73-'AZ Vpol'!X73 -> 0.3779099077
W74: 59 | X74: 0.8311545253 | Y74: 59 | Z74: -1.6064 | AB74: 0.8311545253 | AC74: 0.8311545253 | AE74: 0 | AG74: =X74-'AZ Vpol'!X74 -> 0.3757802887
W75: 60 | X75: 0.8258308768 | Y75: 60 | Z75: -1.6622 | AB75: 0.8258308768 | AC75: 0.8258308768 | AE75: 1 | AG75: =X75-'AZ Vpol'!X75 -> 0.3736551787
W76: 61 | X76: 0.8204615712 | Y76: 61 | Z76: -1.7188 | AB76: 0.8204615712 | AC76: 0.8204615712 | AE76: 0 | AG76: =X76-'AZ Vpol'!X76 -> 0.3715376584
W77: 62 | X77: 0.8150501251 | Y77: 62 | Z77: -1.7763 | AB77: 0.8150501251 | AC77: 0.8150501251 | AE77: 0 | AG77: =X77-'AZ Vpol'!X77 -> 0.3694307876
W78: 63 | X78: 0.8095998168 | Y78: 63 | Z78: -1.8346 | AB78: 0.8095998168 | AC78: 0.8095998168 | AE78: 0 | AG78: =X78-'AZ Vpol'!X78 -> 0.3673372894
W79: 64 | X79: 0.8041145802 | Y79: 64 | Z79: -1.8936 | AB79: 0.8041145802 | AC79: 0.8041145802 | AE79: 0 | AG79: =X79-'AZ Vpol'!X79 -> 0.3652608693
W80: 65 | X80: =INDEX($Y$15:$AC$374,MATCH(MOD($Y80-$Y$13,360),$Y$15:$Y$374,1),4) -> 0.7985975742 | Y80: 65 | Z80: =ROUND(20*LOG(X80),4) -> -1.9534 | AB80: =(1/$AB$10)*$AC80 -> 0.7985975742 | AC80: 0.7985975742 | AE80: 0 | AG80: =X80-'AZ Vpol'!X80 -> 0.3632040333
W81: 66 | X81: 0.7930526733 | Y81: 66 | Z81: -2.014 | AB81: 0.7930526733 | AC81: 0.7930526733 | AE81: 0 | AG81: =X81-'AZ Vpol'!X81 -> 0.3611701661
W82: 67 | X82: 0.7874830961 | Y82: 67 | Z82: -2.0752 | AB82: 0.7874830961 | AC82: 0.7874830961 | AE82: 0 | AG82: =X82-'AZ Vpol'!X82 -> 0.3591616374
W83: 68 | X83: 0.7818924785 | Y83: 68 | Z83: -2.1371 | AB83: 0.7818924785 | AC83: 0.7818924785 | AE83: 0 | AG83: =X83-'AZ Vpol'!X83 -> 0.357181463
W84: 69 | X84: 0.7762845159 | Y84: 69 | Z84: -2.1996 | AB84: 0.7762845159 | AC84: 0.7762845159 | AE84: 0 | AG84: =X84-'AZ Vpol'!X84 -> 0.3552326526
W85: 70 | X85: 0.7706626058 | Y85: 70 | Z85: -2.2627 | AB85: 0.7706626058 | AC85: 0.7706626058 | AE85: 0 | AG85: =X85-'AZ Vpol'!X85 -> 0.3533180488
W86: 71 | X86: 0.765030086 | Y86: 71 | Z86: -2.3264 | AB86: 0.765030086 | AC86: 0.765030086 | AE86: 0 | AG86: =X86-'AZ Vpol'!X86 -> 0.3514398141
W87: 72 | X87: 0.7593908906 | Y87: 72 | Z87: -2.3907 | AB87: 0.7593908906 | AC87: 0.7593908906 | AE87: 0 | AG87: =X87-'AZ Vpol'!X87 -> 0.3496015233
W88: 73 | X88: 0.7537481189 | Y88: 73 | Z88: -2.4555 | AB88: 0.7537481189 | AC88: 0.7537481189 | AE88: 0 | AG88: =X88-'AZ Vpol'!X88 -> 0.3478051333
W89: 74 | X89: 0.7481055856 | Y89: 74 | Z89: -2.5207 | AB89: 0.7481055856 | AC89: 0.7481055856 | AE89: 0 | AG89: =X89-'AZ Vpol'!X89 -> 0.3460535772
W90: 75 | X90: 0.7424669266 | Y90: 75 | Z90: -2.5865 | AB90: 0.7424669266 | AC90: 0.7424669266 | AE90: 0 | AG90: =X90-'AZ Vpol'!X90 -> 0.3443494789
W91: 76 | X91: 0.7368353009 | Y91: 76 | Z91: -2.6526 | AB91: 0.7368353009 | AC91: 0.7368353009 | AE91: 0 | AG91: =X91-'AZ Vpol'!X91 -> 0.342695018
W92: 77 | X92: 0.7312145233 | Y92: 77 | Z92: -2.7191 | AB92: 0.7312145233 | AC92: 0.7312145233 | AE92: 0 | AG92: =X92-'AZ Vpol'!X92 -> 0.3410929973
W93: 78 | X93: 0.725607872 | Y93: 78 | Z93: -2.786 | AB93: 0.725607872 | AC93: 0.725607872 | AE93: 0 | AG93: =X93-'AZ Vpol'!X93 -> 0.3395455848
W94: 79 | X94: 0.7200192213 | Y94: 79 | Z94: -2.8531 | AB94: 0.7200192213 | AC94: 0.7200192213 | AE94: 0 | AG94: =X94-'AZ Vpol'!X94 -> 0.3380553165
W95: 80 | X95: 0.7144517899 | Y95: 80 | Z95: -2.9205 | AB95: 0.7144517899 | AC95: 0.7144517899 | AE95: 0 | AG95: =X95-'AZ Vpol'!X95 -> 0.3366244316
W96: 81 | X96: 0.7089092731 | Y96: 81 | Z96: -2.9882 | AB96: 0.7089092731 | AC96: 0.7089092731 | AE96: 0 | AG96: =X96-'AZ Vpol'!X96 -> 0.3352554502
W97: 82 | X97: 0.7033951879 | Y97: 82 | Z97: -3.056 | AB97: 0.7033951879 | AC97: 0.7033951879 | AE97: 0 | AG97: =X97-'AZ Vpol'!X97 -> 0.3339502894
W98: 83 | X98: 0.6979141235 | Y98: 83 | Z98: -3.124 | AB98: 0.6979141235 | AC98: 0.6979141235 | AE98: 0 | AG98: =X98-'AZ Vpol'!X98 -> 0.3327122329
W99: 84 | X99: 0.6924718022 | Y99: 84 | Z99: -3.192 | AB99: 0.6924718022 | AC99: 0.6924718022 | AE99: 0 | AG99: =X99-'AZ Vpol'!X99 -> 0.331545762
W100: 85 | X100: 0.6870738864 | Y100: 85 | Z100: -3.2599 | AB100: 0.6870738864 | AC100: 0.6870738864 | AE100: 0 | AG100: =X100-'AZ Vpol'!X100 -> 0.3304550049 | AH100: 1 | AI100: Call | AJ100: CH | AK100: Freq
W101: 86 | X101: 0.6817265749 | Y101: 86 | Z101: -3.3278 | AB101: 0.6817265749 | AC101: 0.6817265749 | AE101: 0 | AG101: =X101-'AZ Vpol'!X101 -> 0.3294444628 | AH101: 1
W102: 87 | X102: 0.6764351726 | Y102: 87 | Z102: -3.3955 | AB102: 0.6764351726 | AC102: 0.6764351726 | AE102: 0 | AG102: =X102-'AZ Vpol'!X102 -> 0.3285180693 | AH102: 2
W103: 88 | X103: 0.6712058783 | Y103: 88 | Z103: -3.4629 | AB103: 0.6712058783 | AC103: 0.6712058783 | AE103: 0 | AG103: =X103-'AZ Vpol'!X103 -> 0.3276802605 | AH103: 3
W104: 89 | X104: 0.6660441756 | Y104: 89 | Z104: -3.5299 | AB104: 0.6660441756 | AC104: 0.6660441756 | AE104: 0 | AG104: =X104-'AZ Vpol'!X104 -> 0.3269350181 | AH104: 4
W105: 90 | X105: 0.6609563231 | Y105: 90 | Z105: -3.5965 | AB105: 0.6609563231 | AC105: 0.6609563231 | AE105: 1 | AG105: =X105-'AZ Vpol'!X105 -> 0.3262866092 | AH105: 5
W106: 91 | X106: 0.6559476256 | Y106: 91 | Z106: -3.6626 | AB106: 0.6559476256 | AC106: 0.6559476256 | AE106: 0 | AG106: =X106-'AZ Vpol'!X106 -> 0.3257386737 | AH106: 6
W107: 92 | X107: 0.651024282 | Y107: 92 | Z107: -3.7281 | AB107: 0.651024282 | AC107: 0.651024282 | AE107: 0 | AG107: =X107-'AZ Vpol'!X107 -> 0.3252954842 | AH107: 7
W108: 93 | X108: 0.6461917758 | Y108: 93 | Z108: -3.7928 | AB108: 0.6461917758 | AC108: 0.6461917758 | AE108: 0 | AG108: =X108-'AZ Vpol'!X108 -> 0.3249605003 | AH108: 8
W109: 94 | X109: 0.6414561272 | Y109: 94 | Z109: -3.8567 | AB109: 0.6414561272 | AC109: 0.6414561272 | AE109: 0 | AG109: =X109-'AZ Vpol'!X109 -> 0.3247377506 | AH109: 9
W110: 95 | X110: 0.6368231773 | Y110: 95 | Z110: -3.9196 | AB110: 0.6368231773 | AC110: 0.6368231773 | AE110: 0 | AG110: =X110-'AZ Vpol'!X110 -> 0.3246312808 | AH110: 10
W111: 96 | X111: 0.6322985888 | Y111: 96 | Z111: -3.9816 | AB111: 0.6322985888 | AC111: 0.6322985888 | AE111: 0 | AG111: =X111-'AZ Vpol'!X111 -> 0.3246444027
W112: 97 | X112: 0.6278882027 | Y112: 97 | Z112: -4.0424 | AB112: 0.6278882027 | AC112: 0.6278882027 | AE112: 0 | AG112: =X112-'AZ Vpol'!X112 -> 0.3247806723
W113: 98 | X113: 0.6235979199 | Y113: 98 | Z113: -4.1019 | AB113: 0.6235979199 | AC113: 0.6235979199 | AE113: 0 | AG113: =X113-'AZ Vpol'!X113 -> 0.3250439338
W114: 99 | X114: 0.619433403 | Y114: 99 | Z114: -4.1601 | AB114: 0.619433403 | AC114: 0.619433403 | AE114: 0 | AG114: =X114-'AZ Vpol'!X114 -> 0.3254374663
W115: 100 | X115: 0.6154006124 | Y115: 100 | Z115: -4.2168 | AB115: 0.6154006124 | AC115: 0.6154006124 | AE115: 0 | AG115: =X115-'AZ Vpol'!X115 -> 0.3259647492
W116: 101 | X116: 0.6115052104 | Y116: 101 | Z116: -4.272 | AB116: 0.6115052104 | AC116: 0.6115052104 | AE116: 0 | AG116: =X116-'AZ Vpol'!X116 -> 0.3266289964
W117: 102 | X117: 0.6077532172 | Y117: 102 | Z117: -4.3255 | AB117: 0.6077532172 | AC117: 0.6077532172 | AE117: 0 | AG117: =X117-'AZ Vpol'!X117 -> 0.3274338448
W118: 103 | X118: 0.6041501164 | Y118: 103 | Z118: -4.3771 | AB118: 0.6041501164 | AC118: 0.6041501164 | AE118: 0 | AG118: =X118-'AZ Vpol'!X118 -> 0.3283822314
W119: 104 | X119: 0.6007006168 | Y119: 104 | Z119: -4.4268 | AB119: 0.6007006168 | AC119: 0.6007006168 | AE119: 0 | AG119: =X119-'AZ Vpol'!X119 -> 0.3294757964
W120: 105 | X120: 0.5974081755 | Y120: 105 | Z120: -4.4746 | AB120: 0.5974081755 | AC120: 0.5974081755 | AE120: 0 | AG120: =X120-'AZ Vpol'!X120 -> 0.3307158257
W121: 106 | X121: 0.5942764878 | Y121: 106 | Z121: -4.5202 | AB121: 0.5942764878 | AC121: 0.5942764878 | AE121: 0 | AG121: =X121-'AZ Vpol'!X121 -> 0.3321025706
W122: 107 | X122: 0.5913090706 | Y122: 107 | Z122: -4.5637 | AB122: 0.5913090706 | AC122: 0.5913090706 | AE122: 0 | AG122: =X122-'AZ Vpol'!X122 -> 0.3336373278
W123: 108 | X123: 0.5885093212 | Y123: 108 | Z123: -4.6049 | AB123: 0.5885093212 | AC123: 0.5885093212 | AE123: 0 | AG123: =X123-'AZ Vpol'!X123 -> 0.3353201322
W124: 109 | X124: 0.5858808756 | Y124: 109 | Z124: -4.6438 | AB124: 0.5858808756 | AC124: 0.5858808756 | AE124: 0 | AG124: =X124-'AZ Vpol'!X124 -> 0.3371517303
W125: 110 | X125: 0.5834270716 | Y125: 110 | Z125: -4.6803 | AB125: 0.5834270716 | AC125: 0.5834270716 | AE125: 0 | AG125: =X125-'AZ Vpol'!X125 -> 0.3391324565
W126: 111 | X126: 0.5811517239 | Y126: 111 | Z126: -4.7142 | AB126: 0.5811517239 | AC126: 0.5811517239 | AE126: 0 | AG126: =X126-'AZ Vpol'!X126 -> 0.341262714
W127: 112 | X127: 0.5790581107 | Y127: 112 | Z127: -4.7456 | AB127: 0.5790581107 | AC127: 0.5790581107 | AE127: 0 | AG127: =X127-'AZ Vpol'!X127 -> 0.3435428264
W128: 113 | X128: 0.5771489739 | Y128: 113 | Z128: -4.7742 | AB128: 0.5771489739 | AC128: 0.5771489739 | AE128: 0 | AG128: =X128-'AZ Vpol'!X128 -> 0.3459721567
W129: 114 | X129: 0.5754231215 | Y129: 114 | Z129: -4.8003 | AB129: 0.5754231215 | AC129: 0.5754231215 | AE129: 0 | AG129: =X129-'AZ Vpol'!X129 -> 0.3485461337
W130: 115 | X130: 0.5738782287 | Y130: 115 | Z130: -4.8236 | AB130: 0.5738782287 | AC130: 0.5738782287 | AE130: 0 | AG130: =X130-'AZ Vpol'!X130 -> 0.3512591356
W131: 116 | X131: 0.5725122094 | Y131: 116 | Z131: -4.8443 | AB131: 0.5725122094 | AC131: 0.5725122094 | AE131: 0 | AG131: =X131-'AZ Vpol'!X131 -> 0.3541055341
W132: 117 | X132: 0.5713226795 | Y132: 117 | Z132: -4.8624 | AB132: 0.5713226795 | AC132: 0.5713226795 | AE132: 0 | AG132: =X132-'AZ Vpol'!X132 -> 0.3570793537
W133: 118 | X133: 0.570307672 | Y133: 118 | Z133: -4.8778 | AB133: 0.570307672 | AC133: 0.570307672 | AE133: 0 | AG133: =X133-'AZ Vpol'!X133 -> 0.3601752813
W134: 119 | X134: 0.569464922 | Y134: 119 | Z134: -4.8907 | AB134: 0.569464922 | AC134: 0.569464922 | AE134: 0 | AG134: =X134-'AZ Vpol'!X134 -> 0.3633871506
W135: 120 | X135: 0.5687919855 | Y135: 120 | Z135: -4.9009 | AB135: 0.5687919855 | AC135: 0.5687919855 | AE135: 1 | AG135: =X135-'AZ Vpol'!X135 -> 0.3667091388
W136: 121 | X136: 0.5682868958 | Y136: 121 | Z136: -4.9086 | AB136: 0.5682868958 | AC136: 0.5682868958 | AE136: 0 | AG136: =X136-'AZ Vpol'!X136 -> 0.3701353941
W137: 122 | X137: 0.5679464936 | Y137: 122 | Z137: -4.9139 | AB137: 0.5679464936 | AC137: 0.5679464936 | AE137: 0 | AG137: =X137-'AZ Vpol'!X137 -> 0.3736590682
W138: 123 | X138: 0.567767024 | Y138: 123 | Z138: -4.9166 | AB138: 0.567767024 | AC138: 0.567767024 | AE138: 0 | AG138: =X138-'AZ Vpol'!X138 -> 0.3772726844
W139: 124 | X139: 0.5677446723 | Y139: 124 | Z139: -4.9169 | AB139: 0.5677446723 | AC139: 0.5677446723 | AE139: 0 | AG139: =X139-'AZ Vpol'!X139 -> 0.3809688204
W140: 125 | X140: 0.5678756833 | Y140: 125 | Z140: -4.9149 | AB140: 0.5678756833 | AC140: 0.5678756833 | AE140: 0 | AG140: =X140-'AZ Vpol'!X140 -> 0.38473982
W141: 126 | X141: 0.5681561232 | Y141: 126 | Z141: -4.9106 | AB141: 0.5681561232 | AC141: 0.5681561232 | AE141: 0 | AG141: =X141-'AZ Vpol'!X141 -> 0.3885782233
W142: 127 | X142: 0.5685819983 | Y142: 127 | Z142: -4.9041 | AB142: 0.5685819983 | AC142: 0.5685819983 | AE142: 0 | AG142: =X142-'AZ Vpol'!X142 -> 0.3924763314
W143: 128 | X143: 0.5691496134 | Y143: 128 | Z143: -4.8955 | AB143: 0.5691496134 | AC143: 0.5691496134 | AE143: 0 | AG143: =X143-'AZ Vpol'!X143 -> 0.3964265639
W144: 129 | X144: =INDEX($Y$15:$AC$374,MATCH(MOD($Y144-$Y$13,360),$Y$15:$Y$374,1),4) -> 0.5698552728 | Y144: 129 | Z144: =ROUND(20*LOG(X144),4) -> -4.8847 | AB144: =(1/$AB$10)*$AC144 -> 0.5698552728 | AC144: 0.5698552728 | AE144: 0 | AG144: =X144-'AZ Vpol'!X144 -> 0.4004224013
W145: 130 | X145: 0.5706949234 | Y145: 130 | Z145: -4.8719 | AB145: 0.5706949234 | AC145: 0.5706949234 | AE145: 0 | AG145: =X145-'AZ Vpol'!X145 -> 0.4044555954
W146: 131 | X146: 0.571664691 | Y146: 131 | Z146: -4.8572 | AB146: 0.571664691 | AC146: 0.571664691 | AE146: 0 | AG146: =X146-'AZ Vpol'!X146 -> 0.4085193989
W147: 132 | X147: 0.57276088 | Y147: 132 | Z147: -4.8405 | AB147: 0.57276088 | AC147: 0.57276088 | AE147: 0 | AG147: =X147-'AZ Vpol'!X147 -> 0.4126068518
W148: 133 | X148: 0.5739796162 | Y148: 133 | Z148: -4.8221 | AB148: 0.5739796162 | AC148: 0.5739796162 | AE148: 0 | AG148: =X148-'AZ Vpol'!X148 -> 0.416711272
W149: 134 | X149: 0.5753170252 | Y149: 134 | Z149: -4.8019 | AB149: 0.5753170252 | AC149: 0.5753170252 | AE149: 0 | AG149: =X149-'AZ Vpol'!X149 -> 0.4208258471
W150: 135 | X150: 0.5767691731 | Y150: 135 | Z150: -4.78 | AB150: 0.5767691731 | AC150: 0.5767691731 | AE150: 0 | AG150: =X150-'AZ Vpol'!X150 -> 0.4249441456
W151: 136 | X151: 0.5783324242 | Y151: 136 | Z151: -4.7564 | AB151: 0.5783324242 | AC151: 0.5783324242 | AE151: 0 | AG151: =X151-'AZ Vpol'!X151 -> 0.4290601159
W152: 137 | X152: 0.5800017715 | Y152: 137 | Z152: -4.7314 | AB152: 0.5800017715 | AC152: 0.5800017715 | AE152: 0 | AG152: =X152-'AZ Vpol'!X152 -> 0.4331672167
W153: 138 | X153: 0.5817689896 | Y153: 138 | Z153: -4.705 | AB153: 0.5817689896 | AC153: 0.5817689896 | AE153: 0 | AG153: =X153-'AZ Vpol'!X153 -> 0.4372552475
W154: 139 | X154: 0.5836244226 | Y154: 139 | Z154: -4.6773 | AB154: 0.5836244226 | AC154: 0.5836244226 | AE154: 0 | AG154: =X154-'AZ Vpol'!X154 -> 0.4413133933
W155: 140 | X155: 0.5855584145 | Y155: 140 | Z155: -4.6486 | AB155: 0.5855584145 | AC155: 0.5855584145 | AE155: 0 | AG155: =X155-'AZ Vpol'!X155 -> 0.4453311983
W156: 141 | X156: 0.5875614285 | Y156: 141 | Z156: -4.6189 | AB156: 0.5875614285 | AC156: 0.5875614285 | AE156: 0 | AG156: =X156-'AZ Vpol'!X156 -> 0.4492983913
W157: 142 | X157: 0.5896239281 | Y157: 142 | Z157: -4.5885 | AB157: 0.5896239281 | AC157: 0.5896239281 | AE157: 0 | AG157: =X157-'AZ Vpol'!X157 -> 0.4532056804
W158: 143 | X158: 0.5917363763 | Y158: 143 | Z158: -4.5574 | AB158: 0.5917363763 | AC158: 0.5917363763 | AE158: 0 | AG158: =X158-'AZ Vpol'!X158 -> 0.4570437899
W159: 144 | X159: 0.5938891768 | Y159: 144 | Z159: -4.5259 | AB159: 0.5938891768 | AC159: 0.5938891768 | AE159: 0 | AG159: =X159-'AZ Vpol'!X159 -> 0.4608039887
W160: 145 | X160: 0.5960729122 | Y160: 145 | Z160: -4.494 | AB160: 0.5960729122 | AC160: 0.5960729122 | AE160: 0 | AG160: =X160-'AZ Vpol'!X160 -> 0.4644782386
W161: 146 | X161: 0.5982778072 | Y161: 146 | Z161: -4.4619 | AB161: 0.5982778072 | AC161: 0.5982778072 | AE161: 0 | AG161: =X161-'AZ Vpol'!X161 -> 0.4680585192
W162: 147 | X162: 0.600494504 | Y162: 147 | Z162: -4.4298 | AB162: 0.600494504 | AC162: 0.600494504 | AE162: 0 | AG162: =X162-'AZ Vpol'!X162 -> 0.4715378312
W163: 148 | X163: 0.6027132273 | Y163: 148 | Z163: -4.3978 | AB163: 0.6027132273 | AC163: 0.6027132273 | AE163: 0 | AG163: =X163-'AZ Vpol'!X163 -> 0.4749090685
W164: 149 | X164: 0.6049246788 | Y164: 149 | Z164: -4.366 | AB164: 0.6049246788 | AC164: 0.6049246788 | AE164: 0 | AG164: =X164-'AZ Vpol'!X164 -> 0.4781661238
W165: 150 | X165: 0.6071192026 | Y165: 150 | Z165: -4.3345 | AB165: 0.6071192026 | AC165: 0.6071192026 | AE165: 1 | AG165: =X165-'AZ Vpol'!X165 -> 0.4813030549
W166: 151 | X166: 0.6092870831 | Y166: 151 | Z166: -4.3036 | AB166: 0.6092870831 | AC166: 0.6092870831 | AE166: 0 | AG166: =X166-'AZ Vpol'!X166 -> 0.484313721
W167: 152 | X167: 0.6114192009 | Y167: 152 | Z167: -4.2732 | AB167: 0.6114192009 | AC167: 0.6114192009 | AE167: 0 | AG167: =X167-'AZ Vpol'!X167 -> 0.4871938587
W168: 153 | X168: 0.6135088205 | Y168: 153 | Z168: -4.2436 | AB168: 0.6135088205 | AC168: 0.6135088205 | AE168: 0 | AG168: =X168-'AZ Vpol'!X168 -> 0.4899409116
W169: 154 | X169: 0.6155536175 | Y169: 154 | Z169: -4.2147 | AB169: 0.6155536175 | AC169: 0.6155536175 | AE169: 0 | AG169: =X169-'AZ Vpol'!X169 -> 0.4925574766
W170: 155 | X170: 0.6175510287 | Y170: 155 | Z170: -4.1865 | AB170: 0.6175510287 | AC170: 0.6175510287 | AE170: 0 | AG170: =X170-'AZ Vpol'!X170 -> 0.4950461407
W171: 156 | X171: 0.6194986105 | Y171: 156 | Z171: -4.1592 | AB171: 0.6194986105 | AC171: 0.6194986105 | AE171: 0 | AG171: =X171-'AZ Vpol'!X171 -> 0.4974098795
W172: 157 | X172: 0.621393919 | Y172: 157 | Z172: -4.1327 | AB172: 0.621393919 | AC172: 0.621393919 | AE172: 0 | AG172: =X172-'AZ Vpol'!X172 -> 0.4996514645
W173: 158 | X173: 0.6232345104 | Y173: 158 | Z173: -4.107 | AB173: 0.6232345104 | AC173: 0.6232345104 | AE173: 0 | AG173: =X173-'AZ Vpol'!X173 -> 0.5017740183
W174: 159 | X174: 0.6250178218 | Y174: 159 | Z174: -4.0822 | AB174: 0.6250178218 | AC174: 0.6250178218 | AE174: 0 | AG174: =X174-'AZ Vpol'!X174 -> 0.5037803645
W175: 160 | X175: 0.6267414093 | Y175: 160 | Z175: -4.0582 | AB175: 0.6267414093 | AC175: 0.6267414093 | AE175: 0 | AG175: =X175-'AZ Vpol'!X175 -> 0.5056735277
W176: 161 | X176: 0.6284028888 | Y176: 161 | Z176: -4.0352 | AB176: 0.6284028888 | AC176: 0.6284028888 | AE176: 0 | AG176: =X176-'AZ Vpol'!X176 -> 0.5074567634
W177: 162 | X177: 0.6299998164 | Y177: 162 | Z177: -4.0132 | AB177: 0.6299998164 | AC177: 0.6299998164 | AE177: 0 | AG177: =X177-'AZ Vpol'!X177 -> 0.509132729
W178: 163 | X178: 0.6315296888 | Y178: 163 | Z178: -3.9921 | AB178: 0.6315296888 | AC178: 0.6315296888 | AE178: 0 | AG178: =X178-'AZ Vpol'!X178 -> 0.5107043404
W179: 164 | X179: 0.6329901218 | Y179: 164 | Z179: -3.9721 | AB179: 0.6329901218 | AC179: 0.6329901218 | AE179: 0 | AG179: =X179-'AZ Vpol'!X179 -> 0.5121740859
W180: 165 | X180: 0.634378612 | Y180: 165 | Z180: -3.953 | AB180: 0.634378612 | AC180: 0.634378612 | AE180: 0 | AG180: =X180-'AZ Vpol'!X180 -> 0.5135444408
W181: 166 | X181: 0.6356925964 | Y181: 166 | Z181: -3.9351 | AB181: 0.6356925964 | AC181: 0.6356925964 | AE181: 0 | AG181: =X181-'AZ Vpol'!X181 -> 0.5148174616
W182: 167 | X182: 0.63692981 | Y182: 167 | Z182: -3.9182 | AB182: 0.63692981 | AC182: 0.63692981 | AE182: 0 | AG182: =X182-'AZ Vpol'!X182 -> 0.5159953559
W183: 168 | X183: 0.6380875707 | Y183: 168 | Z183: -3.9024 | AB183: 0.6380875707 | AC183: 0.6380875707 | AE183: 0 | AG183: =X183-'AZ Vpol'!X183 -> 0.5170796612
W184: 169 | X184: 0.6391636729 | Y184: 169 | Z184: -3.8878 | AB184: 0.6391636729 | AC184: 0.6391636729 | AE184: 0 | AG184: =X184-'AZ Vpol'!X184 -> 0.518071853
W185: 170 | X185: 0.6401565075 | Y185: 170 | Z185: -3.8743 | AB185: 0.6401565075 | AC185: 0.6401565075 | AE185: 0 | AG185: =X185-'AZ Vpol'!X185 -> 0.518974207
W186: 171 | X186: 0.6410645247 | Y186: 171 | Z186: -3.862 | AB186: 0.6410645247 | AC186: 0.6410645247 | AE186: 0 | AG186: =X186-'AZ Vpol'!X186 -> 0.5197882911
W187: 172 | X187: 0.6418864727 | Y187: 172 | Z187: -3.8508 | AB187: 0.6418864727 | AC187: 0.6418864727 | AE187: 0 | AG187: =X187-'AZ Vpol'!X187 -> 0.5205161919
W188: 173 | X188: 0.6426212788 | Y188: 173 | Z188: -3.8409 | AB188: 0.6426212788 | AC188: 0.6426212788 | AE188: 0 | AG188: =X188-'AZ Vpol'!X188 -> 0.521159089
W189: 174 | X189: 0.6432673931 | Y189: 174 | Z189: -3.8322 | AB189: 0.6432673931 | AC189: 0.6432673931 | AE189: 0 | AG189: =X189-'AZ Vpol'!X189 -> 0.5217182812
W190: 175 | X190: 0.6438236237 | Y190: 175 | Z190: -3.8247 | AB190: 0.6438236237 | AC190: 0.6438236237 | AE190: 0 | AG190: =X190-'AZ Vpol'!X190 -> 0.5221944373
W191: 176 | X191: 0.6442884803 | Y191: 176 | Z191: -3.8184 | AB191: 0.6442884803 | AC191: 0.6442884803 | AE191: 0 | AG191: =X191-'AZ Vpol'!X191 -> 0.5225878137
W192: 177 | X192: 0.6446608901 | Y192: 177 | Z192: -3.8134 | AB192: 0.6446608901 | AC192: 0.6446608901 | AE192: 0 | AG192: =X192-'AZ Vpol'!X192 -> 0.5228988231
W193: 178 | X193: 0.6449394226 | Y193: 178 | Z193: -3.8096 | AB193: 0.6449394226 | AC193: 0.6449394226 | AE193: 0 | AG193: =X193-'AZ Vpol'!X193 -> 0.5231271285
W194: 179 | X194: 0.6451228857 | Y194: 179 | Z194: -3.8072 | AB194: 0.6451228857 | AC194: 0.6451228857 | AE194: 0 | AG194: =X194-'AZ Vpol'!X194 -> 0.5232724764
W195: 180 | X195: 0.6452100277 | Y195: 180 | Z195: -3.806 | AB195: 0.6452100277 | AC195: 0.6452100277 | AE195: 1 | AG195: =X195-'AZ Vpol'!X195 -> 0.5233338682
W196: 181 | X196: 0.645201087 | Y196: 181 | Z196: -3.8061 | AB196: 0.645201087 | AC196: 0.645201087 | AE196: 0 | AG196: =X196-'AZ Vpol'!X196 -> 0.5233115668
W197: 182 | X197: 0.6450989842 | Y197: 182 | Z197: -3.8075 | AB197: 0.6450989842 | AC197: 0.6450989842 | AE197: 0 | AG197: =X197-'AZ Vpol'!X197 -> 0.5232084194
W198: 183 | X198: 0.6449071765 | Y198: 183 | Z198: -3.8101 | AB198: 0.6449071765 | AC198: 0.6449071765 | AE198: 0 | AG198: =X198-'AZ Vpol'!X198 -> 0.5230275157
W199: 184 | X199: 0.6446279883 | Y199: 184 | Z199: -3.8138 | AB199: 0.6446279883 | AC199: 0.6446279883 | AE199: 0 | AG199: =X199-'AZ Vpol'!X199 -> 0.5227700132
W200: 185 | X200: 0.6442648768 | Y200: 185 | Z200: -3.8187 | AB200: 0.6442648768 | AC200: 0.6442648768 | AE200: 0 | AG200: =X200-'AZ Vpol'!X200 -> 0.5224383977
W201: 186 | X201: 0.643820703 | Y201: 186 | Z201: -3.8247 | AB201: 0.643820703 | AC201: 0.643820703 | AE201: 0 | AG201: =X201-'AZ Vpol'!X201 -> 0.5220338816
W202: 187 | X202: 0.6432985067 | Y202: 187 | Z202: -3.8317 | AB202: 0.6432985067 | AC202: 0.6432985067 | AE202: 0 | AG202: =X202-'AZ Vpol'!X202 -> 0.5215577499
W203: 188 | X203: 0.6427013874 | Y203: 188 | Z203: -3.8398 | AB203: 0.6427013874 | AC203: 0.6427013874 | AE203: 0 | AG203: =X203-'AZ Vpol'!X203 -> 0.5210108006
W204: 189 | X204: 0.6420322061 | Y204: 189 | Z204: -3.8489 | AB204: 0.6420322061 | AC204: 0.6420322061 | AE204: 0 | AG204: =X204-'AZ Vpol'!X204 -> 0.520393544
W205: 190 | X205: 0.6412941217 | Y205: 190 | Z205: -3.8589 | AB205: 0.6412941217 | AC205: 0.6412941217 | AE205: 0 | AG205: =X205-'AZ Vpol'!X205 -> 0.5197062336
... 169 more rows

Sheet AZ Vpol
AB2: =(ROUND(((($R$13-389)/6)-13),0)*2) -> 26
O6: AZIMUTH PATTERN
O7: Vertical Polarization
O9: Proposal No. | R9: =Cover!E13 ->  | AA9: Normalized Directivity | AB9: =IF(ISNUMBER(R12),360/SUMSQ($AB$15:$AB$374),"") -> 2.222928774 | AC9: =ROUND(AB9,2) -> 2.22
O10: Date | R10: =Cover!E14 -> 2025-03-17 | AA10: Input Peak Value | AB10: =MAX($AC$15:$AC$374) -> 1
O11: Call Letters | R11: =IF(Input!D27>1,Input!D27,"") ->  | AA11: Vpol Value | AB11: =Summary!AG17 -> 0.3
O12: Channel | R12: =IF(Input!F27>1,Input!F27,"") -> 26 | X12: Dwg No | Y12: B
O13: Frequency | R13: =IF(Input!G27>1,Input!G27,"") -> 545 | X13: Rotation | Y13: =Input!G13 -> 0
O14: Antenna Type | R14: =Cover!$E$11 -> DLP-8B | W14: Deg | X14: Pattern | Y14: Deg | Z14: dB | AB14: Normalized | AC14: Input
O15: Gain | R15: =IF(ISNUMBER(AB9),ROUND(AB9,2)&" ("&ROUND(10*LOG(AB9),2)&"dB)","") -> 2.22 (3.47dB) | W15: 0 | X15: =(INDEX($Y$15:$AC$374,MATCH(MOD($Y15-$Y$13,360),$Y$15:$Y$374,1),5))*SQRT($AB$11) -> 0.5477131226 | Y15: 0 | Z15: =ROUND(20*LOG(X15),4) -> -5.2289 | AB15: =(1/$AB$10)*$AC15 -> 0.9999827743 | AC15: 0.9999827743
R16: Calculated | W16: 1 | X16: 0.5476546848 | Y16: 1 | Z16: =ROUND(20*LOG(X16),4) -> -5.2299 | AB16: =(1/$AB$10)*$AC16 -> 0.9998760819 | AC16: 0.9998760819
W17: 2 | X17: 0.5475466239 | Y17: 2 | Z17: -5.2316 | AB17: 0.9996787906 | AC17: 0.9996787906
O18: Pattern Number | R18: =IF(Input!$F$27<14,"","TLP-"&Y12&"-"&R12&" Vpol") -> TLP-B-26 Vpol | W18: 3 | X18: 0.5473893315 | Y18: 3 | Z18: -5.2341 | AB18: 0.9993916154 | AC18: 0.9993916154
W19: 4 | X19: 0.5471825466 | Y19: 4 | Z19: -5.2374 | AB19: 0.9990140796 | AC19: 0.9990140796
W20: 5 | X20: 0.5469264324 | Y20: 5 | Z20: -5.2414 | AB20: 0.9985464811 | AC20: 0.9985464811
W21: 6 | X21: 0.5466206951 | Y21: 6 | Z21: -5.2463 | AB21: 0.9979882836 | AC21: 0.9979882836
W22: 7 | X22: 0.5462654651 | Y22: 7 | Z22: -5.2519 | AB22: 0.9973397255 | AC22: 0.9973397255
W23: 8 | X23: 0.5458606774 | Y23: 8 | Z23: -5.2584 | AB23: 0.9966006875 | AC23: 0.9966006875
W24: 9 | X24: 0.5454061359 | Y24: 9 | Z24: -5.2656 | AB24: 0.995770812 | AC24: 0.995770812
W25: 10 | X25: 0.5449017427 | Y25: 10 | Z25: -5.2736 | AB25: 0.9948499203 | AC25: 0.9948499203
B26: Deg | C26: Value | D26: Deg | E26: Value | F26: Deg | G26: Value | H26: Deg | I26: Value | J26: Deg | K26: Value | L26: Deg | M26: Value | N26: Deg | O26: Value | P26: Deg | Q26: Value | R26: Deg | S26: Value | T26: Deg | U26: Value | W26: 11 | X26: 0.5443473346 | Y26: 11 | Z26: -5.2825 | AB26: 0.9938377142 | AC26: 0.9938377142
B27: 0 | C27: =VLOOKUP(B27,$W$15:$X$374,2) -> 0.5477131226 | D27: 36 | E27: =VLOOKUP(D27,$W$15:$X$374,2) -> 0.5136995228 | F27: 72 | G27: =VLOOKUP(F27,$W$15:$X$374,2) -> 0.4097893673 | H27: 108 | I27: =VLOOKUP(H27,$W$15:$X$374,2) -> 0.253189189 | J27: 144 | K27: =VLOOKUP(J27,$W$15:$X$374,2) -> 0.1330851881 | L27: 180 | M27: =VLOOKUP(L27,$W$15:$X$374,2) -> 0.1218761595 | N27: 216 | O27: =VLOOKUP(N27,$W$15:$X$374,2) -> 0.1349189675 | P27: 252 | Q27: =VLOOKUP(P27,$W$15:$X$374,2) -> 0.25651616 | R27: 288 | S27: =VLOOKUP(R27,$W$15:$X$374,2) -> 0.4133475756 | T27: 324 | U27: =VLOOKUP(T27,$W$15:$X$374,2) -> 0.515981143 | W27: 12 | X27: 0.5437428463 | Y27: 12 | Z27: -5.2921 | AB27: 0.9927340746 | AC27: 0.9927340746
B28: 1 | C28: 0.5476546848 | D28: 37 | E28: 0.5117770176 | F28: 73 | G28: 0.4059429856 | H28: 109 | I28: 0.2487291453 | J28: 145 | K28: 0.1315946736 | L28: 181 | M28: 0.1218895202 | N28: 217 | O28: 0.136585685 | P28: 253 | Q28: 0.2610224969 | R28: 289 | S28: 0.417133626 | T28: 325 | U28: 0.5177940202 | W28: 13 | X28: 0.5430882125 | Y28: 13 | Z28: -5.3026 | AB28: 0.9915388823 | AC28: 0.9915388823
B29: 2 | C29: 0.5475466239 | D29: 38 | E29: 0.5097990127 | F29: 74 | G29: 0.4020520084 | H29: 110 | I29: 0.244294615 | J29: 146 | K29: 0.130219288 | L29: 182 | M29: 0.1218905649 | N29: 218 | O29: 0.1383698903 | P29: 254 | Q29: 0.2655475568 | R29: 290 | S29: 0.4208721426 | T29: 326 | U29: 0.5195511694 | W29: 14 | X29: 0.5423829761 | Y29: 14 | Z29: -5.3139 | AB29: 0.9902513027 | AC29: 0.9902513027
B30: 3 | C30: 0.5473893315 | D30: 39 | E30: 0.5077656063 | F30: 75 | G30: 0.3981174477 | H30: 111 | I30: 0.2398890099 | J30: 147 | K30: 0.1289566727 | L30: 183 | M30: 0.1218796608 | N30: 219 | O30: 0.1402724646 | P30: 255 | Q30: 0.2700882871 | R30: 291 | S30: 0.4245619828 | T30: 327 | U30: 0.5212526558 | W30: 15 | X30: 0.5416272678 | Y30: 15 | Z30: -5.326 | AB30: 0.9888715744 | AC30: 0.9888715744
B31: 4 | C31: 0.5471825466 | D31: 40 | E31: 0.5056765696 | F31: 76 | G31: 0.3941402829 | H31: 112 | I31: 0.2355152843 | J31: 148 | K31: 0.1278041588 | L31: 184 | M31: 0.1218579752 | N31: 220 | O31: 0.1422937265 | P31: 256 | Q31: 0.2746418966 | R31: 292 | S31: 0.4282024937 | T31: 328 | U31: 0.5228987405 | W31: 16 | X31: 0.5408208263 | Y31: 16 | Z31: -5.3389 | AB31: 0.9873992205 | AC31: 0.9873992205
B32: 5 | C32: 0.5469264324 | D32: 41 | E32: 0.5035316417 | F32: 77 | G32: 0.390121526 | H32: 113 | I32: 0.2311768172 | J32: 149 | K32: 0.126758555 | L32: 185 | M32: 0.1218264792 | N32: 221 | O32: 0.1444333493 | P32: 257 | Q32: 0.2792055613 | R32: 293 | S32: 0.4317930877 | T32: 329 | U32: 0.5244895868 | W32: 17 | X32: 0.5399632926 | Y32: 17 | Z32: -5.3527 | AB32: 0.9858335853 | AC32: 0.9858335853
B33: 6 | C33: 0.5466206951 | D33: 42 | E33: 0.501330855 | F33: 78 | G33: 0.3860622872 | H33: 114 | I33: 0.2268769877 | J33: 150 | K33: 0.1258161477 | L33: 186 | M33: 0.1217868215 | N33: 222 | O33: 0.1466909414 | P33: 258 | Q33: 0.2837763757 | R33: 294 | S33: 0.4353331117 | T33: 330 | U33: 0.5260255212 | W33: 18 | X33: 0.539054634 | Y33: 18 | Z33: -5.3673 | AB33: 0.9841746092 | AC33: 0.9841746092
B34: 7 | C34: 0.5462654651 | D34: 43 | E34: 0.4990739485 | F34: 79 | G34: 0.3819639048 | H34: 115 | I34: 0.222619093 | J34: 151 | K34: 0.1249733622 | L34: 187 | M34: 0.1217407568 | N34: 223 | O34: 0.1490657682 | P34: 259 | Q34: 0.2883518259 | R34: 295 | S34: 0.4388216844 | T34: 331 | U34: 0.5275067069 | W34: 19 | X34: 0.5380945893 | Y34: 19 | Z34: -5.3828 | AB34: 0.9824218154 | AC34: 0.9824218154
B35: 8 | C35: 0.5458606774 | D35: 44 | E35: 0.4967612486 | F35: 80 | G35: 0.3778273583 | H35: 116 | I35: 0.2184066753 | J35: 152 | K35: 0.1242253422 | L35: 188 | M35: 0.1216905868 | N35: 224 | O35: 0.1515561974 | P35: 260 | Q35: 0.2929292675 | R35: 296 | S35: 0.4422583486 | T35: 332 | U35: 0.5289333072 | W35: 20 | X35: 0.53708293 | Y35: 20 | Z35: -5.3992 | AB35: 0.9805747867 | AC35: 0.9805747867
B36: 9 | C36: 0.5454061359 | D36: 45 | E36: 0.4943924941 | F36: 81 | G36: 0.3736538229 | H36: 117 | I36: 0.2142433258 | J36: 153 | K36: 0.1235679089 | L36: 189 | M36: 0.1216386621 | N36: 225 | O36: 0.1541605639 | P36: 261 | Q36: 0.2975060889 | R36: 297 | S36: 0.4456424188 | T36: 333 | U36: 0.5303056811 | W36: 21 | X36: 0.5360196561 | Y36: 21 | Z36: -5.4164 | AB36: 0.978633523 | AC36: 0.978633523
B37: 10 | C37: 0.5449017427 | D37: 46 | E37: 0.4919676198 | F37: 82 | G37: 0.3694448984 | H37: 118 | I37: 0.2101323907 | J37: 154 | K37: 0.1229961409 | L37: 190 | M37: 0.1215878881 | N37: 226 | O37: 0.1568773333 | P37: 262 | Q37: 0.3020798741 | R37: 298 | S37: 0.4489732095 | T37: 334 | U37: 0.5316242857 | W37: 22 | X37: 0.5349042126 | Y37: 22 | Z37: -5.4345 | AB37: 0.9765970111 | AC37: 0.9765970111
B38: 11 | C38: 0.5443473346 | D38: 47 | E38: 0.4894866256 | F38: 83 | G38: 0.3652018907 | H38: 119 | I38: 0.2060777713 | J38: 155 | K38: 0.122504888 | L38: 191 | M38: 0.1215411134 | N38: 227 | O38: 0.1597037308 | P38: 263 | Q38: 0.3066482726 | R38: 299 | S38: 0.4522507205 | T38: 335 | U38: 0.5328887945 | W38: 23 | X38: 0.5337366321 | Y38: 23 | Z38: -5.4535 | AB38: 0.9744653106 | AC38: 0.9744653106
B39: 12 | C39: 0.5437428463 | D39: 48 | E39: 0.4869495768 | F39: 84 | G39: 0.3609260402 | H39: 120 | I39: 0.2020828467 | J39: 156 | K39: 0.122088731 | L39: 192 | M39: 0.1215020107 | N39: 228 | O39: 0.1626373893 | P39: 264 | Q39: 0.3112089012 | R39: 300 | S39: 0.4554738093 | T39: 336 | U39: 0.5341002196 | W39: 24 | X39: 0.5325164576 | Y39: 24 | Z39: -5.4733 | AB39: 0.972237587 | AC39: 0.972237587
B40: 13 | C40: 0.5430882125 | D40: 49 | E40: 0.4843565387 | F40: 85 | G40: 0.3566188815 | H40: 121 | I40: 0.1981515017 | J40: 157 | K40: 0.1217424544 | L40: 193 | M40: 0.1214741303 | N40: 229 | O40: 0.1656755503 | P40: 265 | Q40: 0.3157594092 | R40: 301 | S40: 0.4586425085 | T40: 337 | U40: 0.5352581366 | W40: 25 | X40: 0.5312436565 | Y40: 25 | Z40: -5.4941 | AB40: 0.9699137807 | AC40: 0.9699137807
B41: 14 | C41: 0.5423829761 | D41: 50 | E41: 0.481707544 | F41: 86 | G41: 0.3522821121 | H41: 122 | I41: 0.1942874254 | J41: 158 | K41: 0.1214604921 | L41: 194 | M41: 0.1214615858 | N41: 230 | O41: 0.1688153734 | P41: 266 | Q41: 0.3202976421 | R41: 302 | S41: 0.4617563611 | T41: 338 | U41: 0.5363631658 | W41: 26 | X41: 0.529917837 | Y41: 26 | Z41: -5.5158 | AB41: 0.9674931765 | AC41: 0.9674931765
B42: 15 | C42: 0.5416272678 | D42: 51 | E42: 0.4790027233 | F42: 87 | G42: 0.3479171032 | H42: 123 | I42: 0.1904943397 | J42: 159 | K42: 0.1212374573 | L42: 195 | M42: 0.1214682702 | N42: 231 | O42: 0.1720536756 | P42: 267 | Q42: 0.3248215103 | R42: 303 | S42: 0.464815008 | T42: 339 | U42: 0.5374155683 | W42: 27 | X42: 0.5285390643 | Y42: 27 | Z42: -5.5385 | AB42: 0.9649758935 | AC42: 0.9649758935
B43: 16 | C43: 0.5408208263 | D43: 52 | E43: 0.4762421745 | F43: 88 | G43: 0.3435256178 | H43: 124 | I43: 0.1867758519 | J43: 160 | K43: 0.1210678816 | L43: 196 | M43: 0.1214989909 | N43: 232 | O43: 0.1753870617 | P43: 268 | Q43: 0.3293288266 | R43: 304 | S43: 0.4678181552 | T43: 340 | U43: 0.5384153115 | W43: 28 | X43: 0.5271066203 | Y43: 28 | Z43: -5.562 | AB43: 0.9623606205 | AC43: 0.9623606205
B44: 17 | C44: 0.5399632926 | D44: 53 | E44: 0.4734258975 | F44: 89 | G44: 0.3391091575 | H44: 125 | I44: 0.1831358633 | J44: 161 | K44: 0.1209461253 | L44: 197 | M44: 0.121558204 | N44: 233 | O44: 0.1788121853 | P44: 269 | Q44: 0.3338176649 | R44: 305 | S44: 0.4707652479 | T44: 341 | U44: 0.5393629504 | W44: 29 | X44: 0.5256207008 | Y44: 29 | Z44: -5.5866 | AB44: 0.9596477151 | AC44: 0.9596477151
B45: 18 | C45: 0.539054634 | D45: 54 | E45: 0.4705544148 | F45: 90 | G45: 0.3346697139 | H45: 126 | I45: 0.1795778998 | J45: 162 | K45: 0.1208670874 | L45: 198 | M45: 0.1216508802 | N45: 234 | O45: 0.1823256185 | P45: 270 | Q45: 0.3382861641 | R45: 306 | S45: 0.473656384 | T45: 342 | U45: 0.5402584197 | W45: 30 | X45: 0.52408111 | Y45: 30 | Z45: -5.612 | AB45: 0.9568368196 | AC45: 0.9568368196
B46: 19 | C46: 0.5380945893 | D46: 55 | E46: 0.4676277264 | F46: 91 | G46: 0.330208952 | H46: 127 | I46: 0.1761056669 | J46: 163 | K46: 0.1208253485 | L46: 199 | M46: 0.1217819489 | N46: 235 | O46: 0.1859238191 | P46: 271 | Q46: 0.342732235 | R46: 307 | S46: 0.4764911717 | T46: 343 | U46: 0.5411022744 | W46: 31 | X46: 0.5224871622 | Y46: 31 | Z46: -5.6385 | AB46: 0.9539266825 | AC46: 0.9539266825
B47: 20 | C47: 0.53708293 | D47: 56 | E47: 0.4646460934 | F47: 92 | G47: 0.3257287978 | H47: 128 | I47: 0.1727230495 | J47: 164 | K47: 0.120816036 | L47: 200 | M47: 0.121956944 | N47: 236 | O47: 0.1896029349 | P47: 272 | Q47: 0.3471542126 | R47: 308 | S47: 0.479269513 | T47: 344 | U47: 0.5418945798 | W47: 32 | X47: 0.5208389228 | Y47: 32 | Z47: -5.6659 | AB47: 0.9509174228 | AC47: 0.9509174228
B48: 21 | C48: 0.5360196561 | D48: 57 | E48: 0.461609679 | F48: 93 | G48: 0.3212312755 | H48: 129 | I48: 0.1694328715 | J48: 165 | K48: 0.1208341713 | L48: 201 | M48: 0.1221808521 | N48: 237 | O48: 0.1933594889 | P48: 273 | Q48: 0.351550138 | R48: 309 | S48: 0.4819910163 | T48: 345 | U48: 0.542635793 | W48: 33 | X48: 0.5191363591 | Y48: 33 | Z48: -5.6944 | AB48: 0.9478089809 | AC48: 0.9478089809
B49: 22 | C49: 0.5349042126 | D49: 58 | E49: 0.458518973 | F49: 94 | G49: 0.3167183766 | H49: 130 | I49: 0.166239328 | J49: 166 | K49: 0.1208751348 | L49: 202 | M49: 0.1224591009 | N49: 238 | O49: 0.1971897593 | P49: 274 | Q49: 0.3559185095 | R49: 310 | S49: 0.4846555835 | T49: 346 | U49: 0.543325718 | W49: 34 | X49: 0.5173788834 | Y49: 34 | Z49: -5.7238 | AB49: 0.9446002841 | AC49: 0.9446002841
B50: 23 | C50: 0.5337366321 | D50: 59 | E50: 0.4553742365 | F50: 95 | G50: 0.3121918966 | H50: 131 | I50: 0.163145292 | J50: 167 | K50: 0.1209344541 | L50: 203 | M50: 0.1227973136 | N50: 239 | O50: 0.2010900899 | P50: 275 | Q50: 0.3602573356 | R50: 311 | S50: 0.4872635085 | T50: 347 | U50: 0.5439646813 | W50: 35 | X50: 0.5155666917 | Y50: 35 | Z50: -5.7543 | AB50: 0.9412916899 | AC50: 0.9412916899
B51: 24 | C51: 0.5325164576 | D51: 60 | E51: 0.4521756981 | F51: 96 | G51: 0.3076541861 | H51: 132 | I51: 0.1601540282 | J51: 168 | K51: 0.1210079094 | L51: 204 | M51: 0.1232008772 | N51: 240 | O51: 0.2050565302 | P51: 276 | Q51: 0.3645656044 | R51: 312 | S51: 0.4898143669 | T51: 348 | U51: 0.5445531074 | W51: 36 | X51: 0.5136995228 | Y51: 36 | Z51: -5.7858 | AB51: 0.9378827214 | AC51: 0.9378827214
B52: 25 | C52: 0.5312436565 | D52: 61 | E52: 0.4489239128 | F52: 97 | G52: 0.3031075304 | H52: 133 | I52: 0.1572683442 | J52: 169 | K52: 0.1210918199 | L52: 205 | M52: 0.1236750394 | N52: 241 | O52: 0.2090856361 | P52: 277 | Q52: 0.3688412916 | R52: 313 | S52: 0.4923081586 | T52: 349 | U52: 0.5450909309 | W52: 37 | X52: 0.5117770176 | Y52: 37 | Z52: -5.8184 | AB52: 0.9343727231 | AC52: 0.9343727231
B53: 26 | C53: 0.529917837 | D53: 62 | E53: 0.4456193375 | F53: 98 | G53: 0.2985539862 | H53: 134 | I53: 0.1544911781 | J53: 170 | K53: 0.1211823005 | L53: 206 | M53: 0.1242251708 | N53: 242 | O53: 0.2131736205 | P53: 278 | Q53: 0.3730830914 | R53: 314 | S53: 0.4947447532 | T53: 350 | U53: 0.545578511 | W53: 38 | X53: 0.5097990127 | Y53: 38 | Z53: -5.852 | AB53: 0.9307613969 | AC53: 0.9307613969
B54: 27 | C54: 0.5285390643 | D54: 63 | E54: 0.4422625274 | F54: 99 | G54: 0.2939959367 | H54: 135 | I54: 0.1518250275 | J54: 171 | K54: 0.1212762335 | L54: 207 | M54: 0.1248565356 | N54: 243 | O54: 0.2173169738 | P54: 279 | Q54: 0.3772896 | R54: 315 | S54: 0.4971243464 | T54: 351 | U54: 0.5460157497 | W54: 39 | X54: 0.5077656063 | Y54: 39 | Z54: -5.8867 | AB54: 0.9270489216 | AC54: 0.9270489216
B55: 28 | C55: 0.5271066203 | D55: 64 | E55: 0.4388537109 | F55: 100 | G55: 0.2894358631 | H55: 136 | I55: 0.1492723083 | J55: 172 | K55: 0.1213702808 | L55: 208 | M55: 0.1255739982 | N55: 244 | O55: 0.2215119908 | P55: 280 | Q55: 0.3814591198 | R55: 316 | S55: 0.4994466771 | T55: 352 | U55: 0.5464030388 | W55: 40 | X55: 0.5056765696 | Y55: 40 | Z55: -5.9225 | AB55: 0.92323488 | AC55: 0.92323488
B56: 29 | C56: 0.5256207008 | D56: 65 | E56: 0.4353935409 | F56: 101 | G56: 0.284876214 | H56: 137 | I56: 0.1468345548 | J56: 173 | K56: 0.1214621898 | L56: 209 | M56: 0.1263822678 | N56: 245 | O56: 0.2257550801 | P56: 281 | Q56: 0.3855908346 | R56: 317 | S56: 0.5017121044 | T56: 353 | U56: 0.5467404762 | W56: 41 | X56: 0.5035316417 | Y56: 41 | Z56: -5.9595 | AB56: 0.9193187952 | AC56: 0.9193187952
B57: 30 | C57: 0.52408111 | D57: 66 | E57: 0.4318825073 | F57: 102 | G57: 0.2803193725 | H57: 138 | I57: 0.1445137421 | J57: 174 | K57: 0.1215491119 | L57: 210 | M57: 0.1272861192 | N57: 246 | O57: 0.2300426998 | P57: 282 | Q57: 0.3896831774 | R57: 318 | S57: 0.5039206284 | T57: 354 | U57: 0.5470280293 | W57: 42 | X57: 0.501330855 | Y57: 42 | Z57: -5.9975 | AB57: 0.9153007269 | AC57: 0.9153007269
B58: 31 | C58: 0.5224871622 | D58: 67 | E58: 0.4283214587 | F58: 103 | G58: 0.275767885 | H58: 139 | I58: 0.1423110293 | J58: 175 | K58: 0.1216291863 | L58: 211 | M58: 0.1282894373 | N58: 247 | O58: 0.2343715197 | P58: 283 | Q58: 0.3937350707 | R58: 319 | S58: 0.5060723795 | T58: 355 | U58: 0.5472659266 | W58: 43 | X58: 0.4990739485 | Y58: 43 | Z58: -6.0367 | AB58: 0.9111801982 | AC58: 0.9111801982
B59: 32 | C59: 0.5208389228 | D59: 68 | E59: 0.4247110155 | F59: 104 | G59: 0.2712248204 | H59: 140 | I59: 0.1402272162 | J59: 176 | K59: 0.1217006665 | L59: 212 | M59: 0.1293960008 | N59: 248 | O59: 0.2387381282 | P59: 284 | Q59: 0.3977451108 | R59: 320 | S59: 0.5081671294 | T59: 356 | U59: 0.5474542987 | W59: 44 | X59: 0.4967612486 | Y59: 44 | Z59: -6.077 | AB59: 0.9069578052 | AC59: 0.9069578052
B60: 33 | C60: 0.5191363591 | D60: 69 | E60: 0.4210518633 | F60: 105 | G60: 0.2666923498 | H60: 141 | I60: 0.1382630372 | J60: 177 | K60: 0.121762067 | L60: 213 | M60: 0.1306094827 | N60: 249 | O60: 0.2431391955 | P60: 285 | Q60: 0.4017125795 | R60: 321 | S60: 0.5102054328 | T60: 357 | U60: 0.5475931782 | W60: 45 | X60: 0.4943924941 | Y60: 45 | Z60: -6.1186 | AB60: 0.9026330709 | AC60: 0.9026330709
B61: 34 | C61: 0.5173788834 | D61: 70 | E61: 0.417344557 | F61: 106 | G61: 0.2621739172 | H61: 142 | I61: 0.1364182477 | J61: 178 | K61: 0.1218122941 | L61: 214 | M61: 0.1319328374 | N61: 250 | O61: 0.2475713589 | P61: 286 | Q61: 0.4056362035 | R61: 322 | S61: 0.5121868003 | T61: 358 | U61: 0.5476825652 | W61: 46 | X61: 0.4919676198 | Y61: 46 | Z61: -6.1613 | AB61: 0.8982058764 | AC61: 0.8982058764
B62: 35 | C62: 0.5155666917 | D62: 71 | E62: 0.413590272 | F62: 107 | G62: 0.2576717428 | H62: 143 | I62: 0.1346925864 | J62: 179 | K62: 0.1218504093 | L62: 215 | M62: 0.1333684726 | N62: 251 | O62: 0.2520313537 | P62: 287 | Q62: 0.4095147423 | R62: 323 | S62: 0.5141120152 | T62: 359 | U62: 0.5477225575 | W62: 47 | X62: 0.4894866256 | Y62: 47 | Z62: -6.2052 | AB62: 0.8936762214 | AC62: 0.8936762214
W63: 48 | X63: 0.4869495768 | Y63: 48 | Z63: -6.2503 | AB63: 0.8890442252 | AC63: 0.8890442252
W64: 49 | X64: 0.4843565387 | Y64: 49 | Z64: -6.2967 | AB64: 0.8843100071 | AC64: 0.8843100071
A65: This document contains proprietary and confidential information of Dielectric. It is to be used solely for the purpose for which it is provided. | W65: 50 | X65: 0.481707544 | Y65: 50 | Z65: -6.3443 | AB65: 0.8794736266 | AC65: 0.8794736266
A66: No disclosure, reproduction, or use of this document or any part of it may be made without the written permission of Dielectric. | W66: 51 | X66: 0.4790027233 | Y66: 51 | Z66: -6.3932 | AB66: 0.8745353222 | AC66: 0.8745353222
W67: 52 | X67: 0.4762421745 | Y67: 52 | Z67: -6.4434 | AB67: 0.8694952726 | AC67: 0.8694952726
W68: 53 | X68: 0.4734258975 | Y68: 53 | Z68: -6.495 | AB68: 0.864353478 | AC68: 0.864353478
W69: 54 | X69: 0.4705544148 | Y69: 54 | Z69: -6.5478 | AB69: 0.8591108918 | AC69: 0.8591108918
W70: 55 | X70: 0.4676277264 | Y70: 55 | Z70: -6.602 | AB70: 0.8537675142 | AC70: 0.8537675142
W71: 56 | X71: 0.4646460934 | Y71: 56 | Z71: -6.6576 | AB71: 0.848323822 | AC71: 0.848323822
W72: 57 | X72: 0.461609679 | Y72: 57 | Z72: -6.7145 | AB72: 0.8427801132 | AC72: 0.8427801132
W73: 58 | X73: 0.458518973 | Y73: 58 | Z73: -6.7729 | AB73: 0.8371372819 | AC73: 0.8371372819
W74: 59 | X74: 0.4553742365 | Y74: 59 | Z74: -6.8326 | AB74: 0.8313958049 | AC74: 0.8313958049
W75: 60 | X75: 0.4521756981 | Y75: 60 | Z75: -6.8939 | AB75: 0.8255560994 | AC75: 0.8255560994
W76: 61 | X76: 0.4489239128 | Y76: 61 | Z76: -6.9565 | AB76: 0.8196191788 | AC76: 0.8196191788
W77: 62 | X77: 0.4456193375 | Y77: 62 | Z77: -7.0207 | AB77: 0.8135858774 | AC77: 0.8135858774
W78: 63 | X78: 0.4422625274 | Y78: 63 | Z78: -7.0864 | AB78: 0.8074572086 | AC78: 0.8074572086
W79: 64 | X79: 0.4388537109 | Y79: 64 | Z79: -7.1536 | AB79: 0.8012335896 | AC79: 0.8012335896
W80: 65 | X80: =(INDEX($Y$15:$AC$374,MATCH(MOD($Y80-$Y$13,360),$Y$15:$Y$374,1),5))*SQRT($AB$11) -> 0.4353935409 | Y80: 65 | Z80: =ROUND(20*LOG(X80),4) -> -7.2224 | AB80: =(1/$AB$10)*$AC80 -> 0.7949162126 | AC80: 0.7949162126
W81: 66 | X81: 0.4318825073 | Y81: 66 | Z81: -7.2927 | AB81: 0.7885059714 | AC81: 0.7885059714
W82: 67 | X82: 0.4283214587 | Y82: 67 | Z82: -7.3646 | AB82: 0.782004416 | AC82: 0.782004416
W83: 68 | X83: 0.4247110155 | Y83: 68 | Z83: -7.4381 | AB83: 0.7754126787 | AC83: 0.7754126787
W84: 69 | X84: 0.4210518633 | Y84: 69 | Z84: -7.5133 | AB84: 0.7687320113 | AC84: 0.7687320113
W85: 70 | X85: 0.417344557 | Y85: 70 | Z85: -7.5901 | AB85: 0.7619634271 | AC85: 0.7619634271
W86: 71 | X86: 0.413590272 | Y86: 71 | Z86: -7.6686 | AB86: 0.7551090717 | AC86: 0.7551090717
W87: 72 | X87: 0.4097893673 | Y87: 72 | Z87: -7.7488 | AB87: 0.748169601 | AC87: 0.748169601
W88: 73 | X88: 0.4059429856 | Y88: 73 | Z88: -7.8307 | AB88: 0.7411471009 | AC88: 0.7411471009
W89: 74 | X89: 0.4020520084 | Y89: 74 | Z89: -7.9144 | AB89: 0.7340431809 | AC89: 0.7340431809
W90: 75 | X90: 0.3981174477 | Y90: 75 | Z90: -7.9998 | AB90: 0.7268596888 | AC90: 0.7268596888
W91: 76 | X91: 0.3941402829 | Y91: 76 | Z91: -8.087 | AB91: 0.7195984125 | AC91: 0.7195984125
W92: 77 | X92: 0.390121526 | Y92: 77 | Z92: -8.176 | AB92: 0.7122612 | AC92: 0.7122612
W93: 78 | X93: 0.3860622872 | Y93: 78 | Z93: -8.2669 | AB93: 0.7048500776 | AC93: 0.7048500776
W94: 79 | X94: 0.3819639048 | Y94: 79 | Z94: -8.3596 | AB94: 0.6973674893 | AC94: 0.6973674893
W95: 80 | X95: 0.3778273583 | Y95: 80 | Z95: -8.4541 | AB95: 0.6898152232 | AC95: 0.6898152232
W96: 81 | X96: 0.3736538229 | Y96: 81 | Z96: -8.5506 | AB96: 0.682195425 | AC96: 0.682195425
W97: 82 | X97: 0.3694448984 | Y97: 82 | Z97: -8.649 | AB97: 0.6745110154 | AC97: 0.6745110154
W98: 83 | X98: 0.3652018907 | Y98: 83 | Z98: -8.7493 | AB98: 0.6667643785 | AC98: 0.6667643785
W99: 84 | X99: 0.3609260402 | Y99: 84 | Z99: -8.8516 | AB99: 0.6589577794 | AC99: 0.6589577794
W100: 85 | X100: 0.3566188815 | Y100: 85 | Z100: -8.9559 | AB100: 0.6510940194 | AC100: 0.6510940194 | AH100: 1 | AI100: Call | AJ100: CH | AK100: Freq
W101: 86 | X101: 0.3522821121 | Y101: 86 | Z101: -9.0622 | AB101: 0.643176198 | AC101: 0.643176198 | AH101: 1
W102: 87 | X102: 0.3479171032 | Y102: 87 | Z102: -9.1705 | AB102: 0.6352068186 | AC102: 0.6352068186 | AH102: 2
W103: 88 | X103: 0.3435256178 | Y103: 88 | Z103: -9.2808 | AB103: 0.6271890998 | AC103: 0.6271890998 | AH103: 3
W104: 89 | X104: 0.3391091575 | Y104: 89 | Z104: -9.3932 | AB104: 0.6191257834 | AC104: 0.6191257834 | AH104: 4
W105: 90 | X105: 0.3346697139 | Y105: 90 | Z105: -9.5077 | AB105: 0.6110205054 | AC105: 0.6110205054 | AH105: 5
W106: 91 | X106: 0.330208952 | Y106: 91 | Z106: -9.6242 | AB106: 0.6028763056 | AC106: 0.6028763056 | AH106: 6
W107: 92 | X107: 0.3257287978 | Y107: 92 | Z107: -9.7429 | AB107: 0.5946967006 | AC107: 0.5946967006 | AH107: 7
W108: 93 | X108: 0.3212312755 | Y108: 93 | Z108: -9.8636 | AB108: 0.5864853859 | AC108: 0.5864853859 | AH108: 8
W109: 94 | X109: 0.3167183766 | Y109: 94 | Z109: -9.9865 | AB109: 0.5782459974 | AC109: 0.5782459974 | AH109: 9
W110: 95 | X110: 0.3121918966 | Y110: 95 | Z110: -10.1116 | AB110: 0.5699818134 | AC110: 0.5699818134 | AH110: 10
W111: 96 | X111: 0.3076541861 | Y111: 96 | Z111: -10.2387 | AB111: 0.5616971254 | AC111: 0.5616971254
W112: 97 | X112: 0.3031075304 | Y112: 97 | Z112: -10.3681 | AB112: 0.5533961058 | AC112: 0.5533961058
W113: 98 | X113: 0.2985539862 | Y113: 98 | Z113: -10.4995 | AB113: 0.5450825095 | AC113: 0.5450825095
W114: 99 | X114: 0.2939959367 | Y114: 99 | Z114: -10.6332 | AB114: 0.5367606878 | AC114: 0.5367606878
W115: 100 | X115: 0.2894358631 | Y115: 100 | Z115: -10.769 | AB115: 0.5284351707 | AC115: 0.5284351707
W116: 101 | X116: 0.284876214 | Y116: 101 | Z116: -10.9069 | AB116: 0.5201104283 | AC116: 0.5201104283
W117: 102 | X117: 0.2803193725 | Y117: 102 | Z117: -11.0469 | AB117: 0.511790812 | AC117: 0.511790812
W118: 103 | X118: 0.275767885 | Y118: 103 | Z118: -11.1891 | AB118: 0.5034809709 | AC118: 0.5034809709
W119: 104 | X119: 0.2712248204 | Y119: 104 | Z119: -11.3334 | AB119: 0.4951865077 | AC119: 0.4951865077
W120: 105 | X120: 0.2666923498 | Y120: 105 | Z120: -11.4798 | AB120: 0.4869113863 | AC120: 0.4869113863
W121: 106 | X121: 0.2621739172 | Y121: 106 | Z121: -11.6282 | AB121: 0.4786618948 | AC121: 0.4786618948
W122: 107 | X122: 0.2576717428 | Y122: 107 | Z122: -11.7787 | AB122: 0.4704420865 | AC122: 0.4704420865
W123: 108 | X123: 0.253189189 | Y123: 108 | Z123: -11.9311 | AB123: 0.4622581005 | AC123: 0.4622581005
W124: 109 | X124: 0.2487291453 | Y124: 109 | Z124: -12.0855 | AB124: 0.454115212 | AC124: 0.454115212
W125: 110 | X125: 0.244294615 | Y125: 110 | Z125: -12.2417 | AB125: 0.4460189044 | AC125: 0.4460189044
W126: 111 | X126: 0.2398890099 | Y126: 111 | Z126: -12.3998 | AB126: 0.4379754066 | AC126: 0.4379754066
W127: 112 | X127: 0.2355152843 | Y127: 112 | Z127: -12.5596 | AB127: 0.4299901128 | AC127: 0.4299901128
W128: 113 | X128: 0.2311768172 | Y128: 113 | Z128: -12.7211 | AB128: 0.4220691919 | AC128: 0.4220691919
W129: 114 | X129: 0.2268769877 | Y129: 114 | Z129: -12.8842 | AB129: 0.4142188132 | AC129: 0.4142188132
W130: 115 | X130: 0.222619093 | Y130: 115 | Z130: -13.0488 | AB130: 0.4064449966 | AC130: 0.4064449966
W131: 116 | X131: 0.2184066753 | Y131: 116 | Z131: -13.2147 | AB131: 0.3987542093 | AC131: 0.3987542093
W132: 117 | X132: 0.2142433258 | Y132: 117 | Z132: -13.3819 | AB132: 0.3911530077 | AC132: 0.3911530077
W133: 118 | X133: 0.2101323907 | Y133: 118 | Z133: -13.5501 | AB133: 0.3836475015 | AC133: 0.3836475015
W134: 119 | X134: 0.2060777713 | Y134: 119 | Z134: -13.7194 | AB134: 0.3762448132 | AC134: 0.3762448132
W135: 120 | X135: 0.2020828467 | Y135: 120 | Z135: -13.8894 | AB135: 0.368951112 | AC135: 0.368951112
W136: 121 | X136: 0.1981515017 | Y136: 121 | Z136: -14.0601 | AB136: 0.3617734909 | AC136: 0.3617734909
W137: 122 | X137: 0.1942874254 | Y137: 122 | Z137: -14.2311 | AB137: 0.3547186852 | AC137: 0.3547186852
W138: 123 | X138: 0.1904943397 | Y138: 123 | Z138: -14.4024 | AB138: 0.3477934897 | AC138: 0.3477934897
W139: 124 | X139: 0.1867758519 | Y139: 124 | Z139: -14.5736 | AB139: 0.3410044909 | AC139: 0.3410044909
W140: 125 | X140: 0.1831358633 | Y140: 125 | Z140: -14.7445 | AB140: 0.3343588114 | AC140: 0.3343588114
W141: 126 | X141: 0.1795778998 | Y141: 126 | Z141: -14.9149 | AB141: 0.3278628886 | AC141: 0.3278628886
W142: 127 | X142: 0.1761056669 | Y142: 127 | Z142: -15.0845 | AB142: 0.3215234876 | AC142: 0.3215234876
W143: 128 | X143: 0.1727230495 | Y143: 128 | Z143: -15.253 | AB143: 0.3153477013 | AC143: 0.3153477013
W144: 129 | X144: =(INDEX($Y$15:$AC$374,MATCH(MOD($Y144-$Y$13,360),$Y$15:$Y$374,1),5))*SQRT($AB$11) -> 0.1694328715 | Y144: 129 | Z144: =ROUND(20*LOG(X144),4) -> -15.42 | AB144: =(1/$AB$10)*$AC144 -> 0.3093406856 | AC144: 0.3093406856
W145: 130 | X145: 0.166239328 | Y145: 130 | Z145: -15.5853 | AB145: 0.3035100996 | AC145: 0.3035100996
W146: 131 | X146: 0.163145292 | Y146: 131 | Z146: -15.7485 | AB146: 0.2978611887 | AC146: 0.2978611887
W147: 132 | X147: 0.1601540282 | Y147: 132 | Z147: -15.9092 | AB147: 0.2923999131 | AC147: 0.2923999131
W148: 133 | X148: 0.1572683442 | Y148: 133 | Z148: -16.0672 | AB148: 0.2871313989 | AC148: 0.2871313989
W149: 134 | X149: 0.1544911781 | Y149: 134 | Z149: -16.2219 | AB149: 0.2820610106 | AC149: 0.2820610106
W150: 135 | X150: 0.1518250275 | Y150: 135 | Z150: -16.3731 | AB150: 0.2771933079 | AC150: 0.2771933079
W151: 136 | X151: 0.1492723083 | Y151: 136 | Z151: -16.5204 | AB151: 0.2725327015 | AC151: 0.2725327015
W152: 137 | X152: 0.1468345548 | Y152: 137 | Z152: -16.6634 | AB152: 0.2680819929 | AC152: 0.2680819929
W153: 138 | X153: 0.1445137421 | Y153: 138 | Z153: -16.8018 | AB153: 0.2638447881 | AC153: 0.2638447881
W154: 139 | X154: 0.1423110293 | Y154: 139 | Z154: -16.9352 | AB154: 0.2598232031 | AC154: 0.2598232031
W155: 140 | X155: 0.1402272162 | Y155: 140 | Z155: -17.0634 | AB155: 0.2560186982 | AC155: 0.2560186982
W156: 141 | X156: 0.1382630372 | Y156: 141 | Z156: -17.1859 | AB156: 0.2524326146 | AC156: 0.2524326146
W157: 142 | X157: 0.1364182477 | Y157: 142 | Z157: -17.3026 | AB157: 0.2490645051 | AC157: 0.2490645051
W158: 143 | X158: 0.1346925864 | Y158: 143 | Z158: -17.4131 | AB158: 0.245913893 | AC158: 0.245913893
W159: 144 | X159: 0.1330851881 | Y159: 144 | Z159: -17.5174 | AB159: 0.2429791987 | AC159: 0.2429791987
W160: 145 | X160: 0.1315946736 | Y160: 145 | Z160: -17.6152 | AB160: 0.2402579039 | AC160: 0.2402579039
W161: 146 | X161: 0.130219288 | Y161: 146 | Z161: -17.7065 | AB161: 0.237746805 | AC161: 0.237746805
W162: 147 | X162: 0.1289566727 | Y162: 147 | Z162: -17.7911 | AB162: 0.2354415953 | AC162: 0.2354415953
W163: 148 | X163: 0.1278041588 | Y163: 148 | Z163: -17.8691 | AB163: 0.2333374023 | AC163: 0.2333374023
W164: 149 | X164: 0.126758555 | Y164: 149 | Z164: -17.9405 | AB164: 0.2314283997 | AC164: 0.2314283997
W165: 150 | X165: 0.1258161477 | Y165: 150 | Z165: -18.0053 | AB165: 0.2297078073 | AC165: 0.2297078073
W166: 151 | X166: 0.1249733622 | Y166: 151 | Z166: -18.0637 | AB166: 0.2281690985 | AC166: 0.2281690985
W167: 152 | X167: 0.1242253422 | Y167: 152 | Z167: -18.1158 | AB167: 0.2268034071 | AC167: 0.2268034071
W168: 153 | X168: 0.1235679089 | Y168: 153 | Z168: -18.1619 | AB168: 0.2256031036 | AC168: 0.2256031036
W169: 154 | X169: 0.1229961409 | Y169: 154 | Z169: -18.2022 | AB169: 0.2245592028 | AC169: 0.2245592028
W170: 155 | X170: 0.122504888 | Y170: 155 | Z170: -18.2369 | AB170: 0.2236623019 | AC170: 0.2236623019
W171: 156 | X171: 0.122088731 | Y171: 156 | Z171: -18.2665 | AB171: 0.2229025066 | AC171: 0.2229025066
W172: 157 | X172: 0.1217424544 | Y172: 157 | Z172: -18.2912 | AB172: 0.222270295 | AC172: 0.222270295
W173: 158 | X173: 0.1214604921 | Y173: 158 | Z173: -18.3113 | AB173: 0.2217555046 | AC173: 0.2217555046
W174: 159 | X174: 0.1212374573 | Y174: 159 | Z174: -18.3273 | AB174: 0.2213483006 | AC174: 0.2213483006
W175: 160 | X175: 0.1210678816 | Y175: 160 | Z175: -18.3394 | AB175: 0.2210386992 | AC175: 0.2210386992
W176: 161 | X176: 0.1209461253 | Y176: 161 | Z176: -18.3482 | AB176: 0.2208164036 | AC176: 0.2208164036
W177: 162 | X177: 0.1208670874 | Y177: 162 | Z177: -18.3538 | AB177: 0.2206721008 | AC177: 0.2206721008
W178: 163 | X178: 0.1208253485 | Y178: 163 | Z178: -18.3568 | AB178: 0.2205958962 | AC178: 0.2205958962
W179: 164 | X179: 0.120816036 | Y179: 164 | Z179: -18.3575 | AB179: 0.220578894 | AC179: 0.220578894
W180: 165 | X180: 0.1208341713 | Y180: 165 | Z180: -18.3562 | AB180: 0.2206120044 | AC180: 0.2206120044
W181: 166 | X181: 0.1208751348 | Y181: 166 | Z181: -18.3533 | AB181: 0.2206867933 | AC181: 0.2206867933
W182: 167 | X182: 0.1209344541 | Y182: 167 | Z182: -18.349 | AB182: 0.220795095 | AC182: 0.220795095
W183: 168 | X183: 0.1210079094 | Y183: 168 | Z183: -18.3437 | AB183: 0.2209292054 | AC183: 0.2209292054
W184: 169 | X184: 0.1210918199 | Y184: 169 | Z184: -18.3377 | AB184: 0.2210824043 | AC184: 0.2210824043
W185: 170 | X185: 0.1211823005 | Y185: 170 | Z185: -18.3312 | AB185: 0.2212475985 | AC185: 0.2212475985
W186: 171 | X186: 0.1212762335 | Y186: 171 | Z186: -18.3245 | AB186: 0.221419096 | AC186: 0.221419096
W187: 172 | X187: 0.1213702808 | Y187: 172 | Z187: -18.3178 | AB187: 0.2215908021 | AC187: 0.2215908021
W188: 173 | X188: 0.1214621898 | Y188: 173 | Z188: -18.3112 | AB188: 0.221758604 | AC188: 0.221758604
W189: 174 | X189: 0.1215491119 | Y189: 174 | Z189: -18.305 | AB189: 0.2219173014 | AC189: 0.2219173014
W190: 175 | X190: 0.1216291863 | Y190: 175 | Z190: -18.2992 | AB190: 0.2220634967 | AC190: 0.2220634967
W191: 176 | X191: 0.1217006665 | Y191: 176 | Z191: -18.2941 | AB191: 0.2221940011 | AC191: 0.2221940011
W192: 177 | X192: 0.121762067 | Y192: 177 | Z192: -18.2898 | AB192: 0.2223061025 | AC192: 0.2223061025
W193: 178 | X193: 0.1218122941 | Y193: 178 | Z193: -18.2862 | AB193: 0.2223978043 | AC193: 0.2223978043
W194: 179 | X194: 0.1218504093 | Y194: 179 | Z194: -18.2835 | AB194: 0.2224673927 | AC194: 0.2224673927
W195: 180 | X195: 0.1218761595 | Y195: 180 | Z195: -18.2816 | AB195: 0.2225144058 | AC195: 0.2225144058
W196: 181 | X196: 0.1218895202 | Y196: 181 | Z196: -18.2807 | AB196: 0.222538799 | AC196: 0.222538799
W197: 182 | X197: 0.1218905649 | Y197: 182 | Z197: -18.2806 | AB197: 0.2225407064 | AC197: 0.2225407064
W198: 183 | X198: 0.1218796608 | Y198: 183 | Z198: -18.2814 | AB198: 0.2225207984 | AC198: 0.2225207984
W199: 184 | X199: 0.1218579752 | Y199: 184 | Z199: -18.2829 | AB199: 0.2224812061 | AC199: 0.2224812061
W200: 185 | X200: 0.1218264792 | Y200: 185 | Z200: -18.2852 | AB200: 0.2224237025 | AC200: 0.2224237025
W201: 186 | X201: 0.1217868215 | Y201: 186 | Z201: -18.288 | AB201: 0.2223512977 | AC201: 0.2223512977
W202: 187 | X202: 0.1217407568 | Y202: 187 | Z202: -18.2913 | AB202: 0.2222671956 | AC202: 0.2222671956
W203: 188 | X203: 0.1216905868 | Y203: 188 | Z203: -18.2949 | AB203: 0.2221755981 | AC203: 0.2221755981
W204: 189 | X204: 0.1216386621 | Y204: 189 | Z204: -18.2986 | AB204: 0.222080797 | AC204: 0.222080797
W205: 190 | X205: 0.1215878881 | Y205: 190 | Z205: -18.3022 | AB205: 0.2219880968 | AC205: 0.2219880968
... 169 more rows

Sheet Elpat
Z2: 1
O6: ELEVATION PATTERN | AA6: Data Column | AB6: =$R$11-12 -> 14
AA7: Data Sheet | AB7: =Input!I13 -> Slot Cover Only
O8: Proposal No. | R8: =Cover!$E$13 -> 
O9: Date | R9: =Cover!$E$14 -> 2025-03-17
O10: Call Letters | R10: =IF(Input!$D$27>1,Input!$D$27,"") -> 
O11: Channel | R11: =IF(Input!$F$27>1,Input!$F$27,"") -> 26
O12: Frequency | R12: =IF(Input!$G$27>1,Input!$G$27,"") -> 545
O13: Antenna Type | R13: =Cover!$E$11 -> DLP-8B | Y13: Value Horizontal | AA13: =X118 -> 0.9649999738
C14: RMS Directivity at Main Lobe | H14: =IF(Input!$F$27<14,0,X14) -> 8.12 | J14: =IF(ISNUMBER(H14),10*LOG(H14)," ") -> 9.095560292 | M14: Beam Tilt | P14: =IF(Input!$F$27<14,"",X15) -> 1 | W14: Gain | X14: 8.12
C15: RMS Directivity at Horizontal | H15: =IF(ISNUMBER(H14),ROUND(H14*X118^2,1)," ") -> 7.6 | J15: =IF(ISNUMBER(H14),10*LOG(H15)," ") -> 8.808135923 | M15: Pattern Number | P15: =IF(Input!$F$27<14,"",X16&"-"&R11) -> 08L081100-26 | W15: BT | X15: 1
H16: Calculated | W16: DW No | X16: 08L081100
W17: Angle | X17: Value | Y17: dB
R18: WB-C160H | W18: -10 | X18: 0.3630000055 | Y18: =IF(X18<0.001,-60,ROUND(20*LOG(X18),4)) -> -8.8019
W19: -9.9 | X19: 0.3659999967 | Y19: =IF(X19<0.001,-60,ROUND(20*LOG(X19),4)) -> -8.7304
W20: -9.8 | X20: 0.3680000007 | Y20: -8.683
W21: -9.7 | X21: 0.3700000048 | Y21: -8.636
W22: -9.6 | X22: 0.3720000088 | Y22: -8.5891
W23: -9.5 | X23: 0.3729999959 | Y23: -8.5658
W24: -9.4 | X24: 0.3740000129 | Y24: -8.5426
W25: -9.3 | X25: 0.375 | Y25: -8.5194
W26: -9.2 | X26: 0.375 | Y26: -8.5194
W27: -9.1 | X27: 0.3740000129 | Y27: -8.5426
W28: -9 | X28: 0.3729999959 | Y28: -8.5658
D29: 0.9 | W29: -8.9 | X29: 0.3720000088 | Y29: -8.5891
W30: -8.8 | X30: 0.3700000048 | Y30: -8.636
W31: -8.7 | X31: 0.3680000007 | Y31: -8.683
W32: -8.6 | X32: 0.3650000095 | Y32: -8.7541
W33: -8.5 | X33: 0.3619999886 | Y33: -8.8258
W34: -8.4 | X34: 0.3580000103 | Y34: -8.9223
W35: -8.3 | X35: 0.3540000021 | Y35: -9.0199
E36: Angle | F36: Field | H36: Angle | I36: Field | K36: Angle | L36: Field | N36: Angle | O36: Field | Q36: Angle | R36: Field | W36: -8.2 | X36: 0.3490000069 | Y36: -9.1435
E37: -10 | F37: =LOOKUP(E37,$W$18:$X$1018) -> 0.3630000055 | H37: =E56+1 -> 10 | I37: =LOOKUP(H37,$W$18:$X$1018) -> 0.1860000044 | K37: =H56+1 -> 30 | L37: =LOOKUP(K37,$W$18:$X$1018) -> 0.04500000179 | N37: =K56+1 -> 50 | O37: =LOOKUP(N37,$W$18:$X$1018) -> 0.02099999972 | Q37: =N56+1 -> 70 | R37: =LOOKUP(Q37,$W$18:$X$1018) -> 0.1659999937 | W37: -8.1 | X37: 0.3440000117 | Y37: -9.2688
E38: =E37+1 -> -9 | F38: =LOOKUP(E38,$W$18:$X$1018) -> 0.3729999959 | H38: =H37+1 -> 11 | I38: =LOOKUP(H38,$W$18:$X$1018) -> 0.201000005 | K38: =K37+1 -> 31 | L38: =LOOKUP(K38,$W$18:$X$1018) -> 0.05600000173 | N38: =N37+1 -> 51 | O38: =LOOKUP(N38,$W$18:$X$1018) -> 0.03099999949 | Q38: =Q37+1 -> 71 | R38: =LOOKUP(Q38,$W$18:$X$1018) -> 0.150000006 | W38: -8 | X38: 0.3379999995 | Y38: -9.4217
E39: -8 | F39: 0.3379999995 | H39: 12 | I39: 0.1829999983 | K39: 32 | L39: 0.06599999964 | N39: 52 | O39: 0.03999999911 | Q39: =Q38+1 -> 72 | R39: 0.1340000033 | W39: -7.9 | X39: 0.3310000002 | Y39: -9.6034
E40: -7 | F40: 0.2520000041 | H40: 13 | I40: 0.1430000067 | K40: 33 | L40: 0.0700000003 | N40: 53 | O40: 0.05200000107 | Q40: 73 | R40: 0.1180000007 | W40: -7.8 | X40: 0.3249999881 | Y40: -9.7623
E41: -6 | F41: 0.125 | H41: 14 | I41: 0.1010000035 | K41: 34 | L41: 0.0680000037 | N41: 54 | O41: 0.0680000037 | Q41: 74 | R41: 0.1030000001 | W41: -7.7 | X41: 0.3170000017 | Y41: -9.9788
E42: -5 | F42: 0.1099999994 | H42: 15 | I42: 0.07999999821 | K42: 35 | L42: 0.06499999762 | N42: 55 | O42: 0.08900000155 | Q42: 75 | R42: 0.08900000155 | W42: -7.6 | X42: 0.3089999855 | Y42: -10.2008
E43: -4 | F43: 0.298999995 | H43: 16 | I43: 0.08799999952 | K43: 36 | L43: 0.0700000003 | N43: 56 | O43: 0.1120000035 | Q43: 76 | R43: 0.07599999756 | W43: -7.5 | X43: 0.300999999 | Y43: -10.4287
E44: -3 | F44: 0.5099999905 | H44: 17 | I44: 0.09899999946 | K44: 37 | L44: 0.08299999684 | N44: 57 | O44: 0.1360000074 | Q44: 77 | R44: 0.06400000304 | W44: -7.4 | X44: 0.2919999957 | Y44: -10.6923
E45: -2 | F45: 0.7049999833 | H45: 18 | I45: 0.09399999678 | K45: 38 | L45: 0.1019999981 | N45: 58 | O45: 0.1589999944 | Q45: 78 | R45: 0.05299999937 | W45: -7.3 | X45: 0.2829999924 | Y45: -10.9643
E46: -1 | F46: 0.8629999757 | H46: 19 | I46: 0.07299999893 | K46: 39 | L46: 0.1190000027 | N46: 59 | O46: 0.1800000072 | Q46: 79 | R46: 0.04300000146 | W46: -7.2 | X46: 0.2730000019 | Y46: -11.2767
E47: 0 | F47: 0.9649999738 | H47: 20 | I47: 0.0390000008 | K47: 40 | L47: 0.1309999973 | N47: 60 | O47: 0.1979999989 | Q47: 80 | R47: 0.03500000015 | W47: -7.1 | X47: 0.2630000114 | Y47: -11.6009
E48: 1 | F48: 1 | H48: 21 | I48: 0.02400000021 | K48: 41 | L48: 0.1350000054 | N48: 61 | O48: 0.2119999975 | Q48: 81 | R48: 0.02800000086 | W48: -7 | X48: 0.2520000041 | Y48: -11.972
E49: 2 | F49: 0.9649999738 | H49: 22 | I49: 0.05999999866 | K49: 42 | L49: 0.1309999973 | N49: 62 | O49: 0.2210000008 | Q49: 82 | R49: 0.02199999988 | W49: -6.9 | X49: 0.2409999967 | Y49: -12.3597
E50: 3 | F50: 0.8669999838 | H50: 23 | I50: 0.09499999881 | K50: 43 | L50: 0.1180000007 | N50: 63 | O50: 0.2259999961 | Q50: 83 | R50: 0.01700000092 | W50: -6.8 | X50: 0.2290000021 | Y50: -12.8033
E51: 4 | F51: 0.7179999948 | H51: 24 | I51: 0.1180000007 | K51: 44 | L51: 0.1000000015 | N51: 64 | O51: 0.2269999981 | Q51: 84 | R51: 0.0120000001 | W51: -6.7 | X51: 0.2169999927 | Y51: -13.2708
E52: 5 | F52: 0.5379999876 | H52: 25 | I52: 0.125 | K52: 45 | L52: 0.07699999958 | N52: 65 | O52: 0.2240000069 | Q52: 85 | R52: 0.008999999613 | W52: -6.6 | X52: 0.2039999962 | Y52: -13.8074
E53: 6 | F53: 0.351000011 | H53: 26 | I53: 0.1180000007 | K53: 46 | L53: 0.05299999937 | N53: 66 | O53: 0.2169999927 | Q53: 86 | R53: 0.006000000052 | W53: -6.5 | X53: 0.1909999996 | Y53: -14.3793
E54: 7 | F54: 0.1829999983 | H54: 27 | I54: 0.09799999744 | K54: 47 | L54: 0.02999999933 | N54: 67 | O54: 0.2080000043 | Q54: 87 | R54: 0.00400000019 | W54: -6.4 | X54: 0.1780000031 | Y54: -14.9916
E55: 8 | F55: 0.08900000155 | H55: 28 | I55: 0.0719999969 | K55: 48 | L55: 0.009999999776 | N55: 68 | O55: 0.1949999928 | Q55: 88 | R55: 0.002000000095 | W55: -6.3 | X55: 0.1650000066 | Y55: -15.6503
E56: 9 | F56: 0.1340000033 | H56: 29 | I56: 0.04899999872 | K56: 49 | L56: 0.009999999776 | N56: 69 | O56: 0.1809999943 | Q56: 89 | R56: 0.001000000047 | W56: -6.2 | X56: 0.1519999951 | Y56: -16.3631
Q57: =Q56+1 -> 90 | R57: 0 | W57: -6.1 | X57: 0.1379999965 | Y57: -17.2024
W58: -6 | X58: 0.125 | Y58: -18.0618
A59: This document contains proprietary and confidential information of Dielectric. It is to be used solely for the purpose for which it is provided. | W59: -5.9 | X59: 0.1120000035 | Y59: -19.0156
A60: No disclosure, reproduction, or use of this document or any part of it may be made without the written permission of Dielectric. | W60: -5.8 | X60: 0.1000000015 | Y60: -20
W61: -5.7 | X61: 0.08900000155 | Y61: -21.0122
W62: -5.6 | X62: 0.08100000024 | Y62: -21.8303
W63: -5.5 | X63: 0.07500000298 | Y63: -22.4988
W64: -5.4 | X64: 0.07400000095 | Y64: -22.6154
W65: -5.3 | X65: 0.07699999958 | Y65: -22.2702
W66: -5.2 | X66: 0.08500000089 | Y66: -21.4116
W67: -5.1 | X67: 0.09600000083 | Y67: -20.3546
W68: -5 | X68: 0.1099999994 | Y68: -19.1721
W69: -4.9 | X69: 0.126000002 | Y69: -17.9926
W70: -4.8 | X70: 0.1420000046 | Y70: -16.9542
W71: -4.7 | X71: 0.1599999964 | Y71: -15.9176
W72: -4.6 | X72: 0.1790000051 | Y72: -14.9429
W73: -4.5 | X73: 0.1979999989 | Y73: -14.0667
W74: -4.4 | X74: 0.2179999948 | Y74: -13.2309
W75: -4.3 | X75: 0.2380000055 | Y75: -12.4685
W76: -4.2 | X76: 0.2579999864 | Y76: -11.7676
W77: -4.1 | X77: 0.2790000141 | Y77: -11.0879
W78: -4 | X78: 0.298999995 | Y78: -10.4866
W79: -3.9 | X79: 0.3199999928 | Y79: -9.897
W80: -3.8 | X80: 0.3409999907 | Y80: -9.3449
W81: -3.7 | X81: 0.3619999886 | Y81: -8.8258
W82: -3.6 | X82: 0.3829999864 | Y82: -8.336
W83: -3.5 | X83: 0.4050000012 | Y83: =IF(X83<0.001,-60,ROUND(20*LOG(X83),4)) -> -7.8509
W84: -3.4 | X84: 0.425999999 | Y84: -7.4118
W85: -3.3 | X85: 0.4469999969 | Y85: -6.9938
W86: -3.2 | X86: 0.4679999948 | Y86: -6.5951
W87: -3.1 | X87: 0.4889999926 | Y87: -6.2138
W88: -3 | X88: 0.5099999905 | Y88: -5.8486
W89: -2.9 | X89: 0.5299999714 | Y89: -5.5145
W90: -2.8 | X90: 0.550999999 | Y90: -5.177
W91: -2.7 | X91: 0.57099998 | Y91: -4.8673
W92: -2.6 | X92: 0.5910000205 | Y92: -4.5683
W93: -2.5 | X93: 0.6110000014 | Y93: -4.2792
W94: -2.4 | X94: 0.6299999952 | Y94: -4.0132
W95: -2.3 | X95: 0.6499999762 | Y95: -3.7417
W96: -2.2 | X96: 0.6690000296 | Y96: -3.4915
W97: -2.1 | X97: 0.6869999766 | Y97: -3.2609
W98: -2 | X98: 0.7049999833 | Y98: -3.0362
W99: -1.9 | X99: 0.72299999 | Y99: -2.8172
W100: -1.8 | X100: 0.7409999967 | Y100: -2.6036 | AH100: 1 | AI100: Call | AJ100: CH | AK100: Freq
W101: -1.7 | X101: 0.7580000162 | Y101: -2.4066 | AH101: 1
W102: -1.6 | X102: 0.773999989 | Y102: -2.2252 | AH102: 2
W103: -1.5 | X103: 0.7900000215 | Y103: -2.0475 | AH103: 3
W104: -1.4 | X104: 0.8059999943 | Y104: -1.8733 | AH104: 4
W105: -1.3 | X105: 0.82099998 | Y105: -1.7131 | AH105: 5
W106: -1.2 | X106: 0.8360000253 | Y106: -1.5559 | AH106: 6
W107: -1.1 | X107: 0.8500000238 | Y107: -1.4116 | AH107: 7
W108: -1 | X108: 0.8629999757 | Y108: -1.2798 | AH108: 8
W109: -0.9 | X109: 0.8759999871 | Y109: -1.1499 | AH109: 9
W110: -0.8 | X110: 0.8889999986 | Y110: -1.022 | AH110: 10
W111: -0.7 | X111: 0.8999999762 | Y111: -0.9152
W112: -0.6 | X112: 0.9110000134 | Y112: -0.8096
W113: -0.5 | X113: 0.9219999909 | Y113: -0.7054
W114: -0.4 | X114: 0.9319999814 | Y114: -0.6117
W115: -0.3 | X115: 0.9409999847 | Y115: -0.5282
W116: -0.2 | X116: 0.9499999881 | Y116: -0.4455
W117: -0.1 | X117: 0.9580000043 | Y117: -0.3727
W118: 0 | X118: 0.9649999738 | Y118: -0.3095
W119: 0.1 | X119: 0.9720000029 | Y119: -0.2467
W120: 0.2 | X120: 0.9779999852 | Y120: -0.1932
W121: 0.3 | X121: 0.9829999804 | Y121: -0.1489
W122: 0.4 | X122: 0.9869999886 | Y122: -0.1137
W123: 0.5 | X123: 0.9909999967 | Y123: -0.0785
W124: 0.6 | X124: 0.9940000176 | Y124: -0.0523
W125: 0.7 | X125: 0.996999979 | Y125: -0.0261
W126: 0.8 | X126: 0.9990000129 | Y126: -0.0087
W127: 0.9 | X127: 1 | Y127: 0
W128: 1 | X128: 1 | Y128: 0
W129: 1.1 | X129: 1 | Y129: 0
W130: 1.2 | X130: 0.9990000129 | Y130: -0.0087
W131: 1.3 | X131: 0.996999979 | Y131: -0.0261
W132: 1.4 | X132: 0.9940000176 | Y132: -0.0523
W133: 1.5 | X133: 0.9909999967 | Y133: -0.0785
W134: 1.6 | X134: 0.9869999886 | Y134: -0.1137
W135: 1.7 | X135: 0.9829999804 | Y135: -0.1489
W136: 1.8 | X136: 0.9779999852 | Y136: -0.1932
W137: 1.9 | X137: 0.9720000029 | Y137: -0.2467
W138: 2 | X138: 0.9649999738 | Y138: -0.3095
W139: 2.1 | X139: 0.9580000043 | Y139: -0.3727
W140: 2.2 | X140: 0.9499999881 | Y140: -0.4455
W141: 2.3 | X141: 0.9419999719 | Y141: -0.519
W142: 2.4 | X142: 0.9330000281 | Y142: -0.6024
W143: 2.5 | X143: 0.9229999781 | Y143: -0.696
W144: 2.6 | X144: 0.9129999876 | Y144: -0.7906
W145: 2.7 | X145: 0.90200001 | Y145: -0.8959
W146: 2.8 | X146: 0.8909999728 | Y146: -1.0024
W147: 2.9 | X147: 0.8790000081 | Y147: =IF(X147<0.001,-60,ROUND(20*LOG(X147),4)) -> -1.1202
W148: 3 | X148: 0.8669999838 | Y148: -1.2396
W149: 3.1 | X149: 0.8539999723 | Y149: -1.3708
W150: 3.2 | X150: 0.8399999738 | Y150: -1.5144
W151: 3.3 | X151: 0.8259999752 | Y151: -1.6604
W152: 3.4 | X152: 0.8119999766 | Y152: -1.8089
W153: 3.5 | X153: 0.7969999909 | Y153: -1.9708
W154: 3.6 | X154: 0.7820000052 | Y154: -2.1359
W155: 3.7 | X155: 0.7670000196 | Y155: -2.3041
W156: 3.8 | X156: 0.7509999871 | Y156: -2.4872
W157: 3.9 | X157: 0.7350000143 | Y157: -2.6743
W158: 4 | X158: 0.7179999948 | Y158: -2.8775
W159: 4.1 | X159: 0.7009999752 | Y159: -3.0856
W160: 4.2 | X160: 0.6840000153 | Y160: -3.2989
W161: 4.3 | X161: 0.6660000086 | Y161: -3.5305
W162: 4.4 | X162: 0.648999989 | Y162: -3.7551
W163: 4.5 | X163: 0.6309999824 | Y163: -3.9994
W164: 4.6 | X164: 0.6119999886 | Y164: -4.265
W165: 4.7 | X165: 0.5939999819 | Y165: -4.5243
W166: 4.8 | X166: 0.5759999752 | Y166: -4.7916
W167: 4.9 | X167: 0.5569999814 | Y167: -5.0829
W168: 5 | X168: 0.5379999876 | Y168: -5.3844
W169: 5.1 | X169: 0.5199999809 | Y169: -5.6799
W170: 5.2 | X170: 0.5009999871 | Y170: -6.0032
W171: 5.3 | X171: 0.4819999933 | Y171: -6.3391
W172: 5.4 | X172: 0.4629999995 | Y172: -6.6884
W173: 5.5 | X173: 0.4440000057 | Y173: -7.0523
W174: 5.6 | X174: 0.4250000119 | Y174: -7.4322
W175: 5.7 | X175: 0.4070000052 | Y175: -7.8081
W176: 5.8 | X176: 0.3880000114 | Y176: -8.2234
W177: 5.9 | X177: 0.3689999878 | Y177: -8.6595
W178: 6 | X178: 0.351000011 | Y178: -9.0939
W179: 6.1 | X179: 0.3330000043 | Y179: -9.5511
W180: 6.2 | X180: 0.3149999976 | Y180: -10.0338
W181: 6.3 | X181: 0.2969999909 | Y181: -10.5449
W182: 6.4 | X182: 0.2800000012 | Y182: -11.0568
W183: 6.5 | X183: 0.2619999945 | Y183: -11.634
W184: 6.6 | X184: 0.2460000068 | Y184: -12.1813
W185: 6.7 | X185: 0.2290000021 | Y185: -12.8033
W186: 6.8 | X186: 0.2129999995 | Y186: -13.4324
W187: 6.9 | X187: 0.1979999989 | Y187: -14.0667
W188: 7 | X188: 0.1829999983 | Y188: -14.751
W189: 7.1 | X189: 0.1679999977 | Y189: -15.4938
W190: 7.2 | X190: 0.1550000012 | Y190: -16.1934
W191: 7.3 | X191: 0.1420000046 | Y191: -16.9542
W192: 7.4 | X192: 0.1299999952 | Y192: -17.7211
W193: 7.5 | X193: 0.1190000027 | Y193: -18.4891
W194: 7.6 | X194: 0.1099999994 | Y194: -19.1721
W195: 7.7 | X195: 0.1019999981 | Y195: -19.828
W196: 7.8 | X196: 0.09600000083 | Y196: -20.3546
W197: 7.9 | X197: 0.09099999815 | Y197: -20.8192
W198: 8 | X198: 0.08900000155 | Y198: -21.0122
W199: 8.1 | X199: 0.08900000155 | Y199: -21.0122
W200: 8.2 | X200: 0.09000000358 | Y200: -20.9151
W201: 8.3 | X201: 0.09300000221 | Y201: -20.6303
W202: 8.4 | X202: 0.09799999744 | Y202: -20.1755
W203: 8.5 | X203: 0.1030000001 | Y203: -19.7433
W204: 8.6 | X204: 0.1089999974 | Y204: -19.2515
... 814 more rows

Sheet Mechanicals
AI2: 1 | AN2: 2 | AS2: 3 | AX2: 4 | BC2: 5
L3: MECHANICAL SPECIFICATIONS | W3: =Input!P73 -> FALSE | X3: TIA-222-G
W4: =Input!P74 -> TRUE | X4: TIA-222-F
N5: Proposal No. | Q5: =Cover!$E$13 ->  | W5: =Input!P75 -> FALSE | X5: Ice
N6: Date | Q6: =Cover!$E$14 -> 2025-03-17 | W6: 5 | X6: Layers
N7: Call Letters | Q7: =IF(Input!$D$27>1,Input!$D$27,"") ->  | W7: =IF(OR(W3,W4),TRUE,FALSE) -> TRUE | X7: Spec selected
N8: Channel | Q8: =IF(Input!$F$27>1,Input!$F$27,"") -> 26 | W8: =Input!P68 -> FALSE | X8: Radome
N9: Frequency | Q9: =IF(Input!$G$27>1,Input!$G$27,"") -> 545
N10: Antenna Type | Q10: =Cover!$E$11 -> DLP-8B
H11: =L32 -> 16.7 ft ( 5.1 m) | W11: Basic Wind Speed
L12: Preliminary Specifications | W12: Wind Speed w/Ice
AA13: F Spec
K14: Side Mounted | Y14: without ice | AB14: with ice
W15: # Sections | X15: Layers | Y15: H2(ft) | Z15: CaAc(ft2) | AA15: W(lbs) | AB15: H2(ft) | AC15: CaAc(FT2) | AD15: W(lbs)
K16: ="With " &IF(W5,X5,"")&" "&IF(W3,X3,IF(W4,X4,"")) -> With TIA-222-F | W16: =IF(X16=16,2,1) -> 1 | X16: =Input!K13 -> 8 | Y16: 16.7 | Z16: 10.88 | AA16: 77 | AB16: 16.7 | AC16: 13.24 | AD16: 115
W17: =Input!I13 -> Slot Cover Only
K18: Basic Wind Speed | O18: =Input!I42&" mph (" & ROUND(Input!I42*1.60935,0) & " km/h)" -> mph (0 km/h)
K20: =IF(W3,"Structure Class","") ->  | O20: =IF(W3,Input!E47,"") -> 
K21: =IF(W3,"Exposure Category","") ->  | O21: =IF(W3,Input!E48,"") -> 
K22: =IF(W3,"Topography Category","") ->  | O22: =IF(W3,Input!E49,"") -> 
AA23: G Spec
Y24: without ice | AB24: with ice
K25: =IF(W5,"Design Ice","") ->  | O25: =IF(AND(W5,W3),Input!E45,IF(AND(W5,W4),Input!E44,"")) ->  | Q25: =IF(AND(W3,W5),"tiz =","") ->  | R25: =IF(AND(W3,W5),AD29,"") ->  | W25: # Sections | X25: Layers | Y25: H2(ft) | Z25: EPA (ft2) | AA25: W(lbs) | AB25: H2(ft) | AC25: EPA (ft2) | AD25: W(lbs)
K26: =IF(W5,"Wind Speed with Ice","") ->  | O26: =IF(AND(W5,W3),Input!K45,IF(AND(W5,W4),Input!K44,"")) ->  | W26: =IF(X26=16,2,1) -> 1 | X26: =Input!K13 -> 8 | Y26: 21.5 | Z26: 18.79 | AA26: 104 | AB26: 21.5 | AC26: 28.45 | AD26: 319
W27: =Input!I13 -> Slot Cover Only
AC29: tiz (in) | AD29: 1.31
F30: Mechanical Specifications | L30: without ice | O30: =IF(W5,"with ice","") -> 
W31: Fill Buffer | Z31: without ice | AB31: with ice
F32: Height | K32: H2 | L32: =Z33 -> 16.7 ft ( 5.1 m)
F33: Height of Center of Radiation | K33: H3 | L33: =Z34 -> 8.4 ft (2.6 m) | W33: Height less Lightning Protector | Y33: H2 | Z33: =Z44 & " ft ( " & AA44 & " m)" -> 16.7 ft ( 5.1 m) | AB33: =AB44 & " ft (" & AC44 & " m)" -> ft ( m)
F34: Effective Projected Area | K34: (EPA)S | L34: =IF(W7,Z35,"") -> 10.9 ft² (1 m²) | O34: =IF(AND(W5,W7),AB35,"") ->  | R34: mounts excluded | W34: Height of Center of Radiation | Y34: H3 | Z34: =Z45 & " ft (" & AA45 & " m)" -> 8.4 ft (2.6 m) | AB34: =AB45 & " ft (" & AC45 & " m)" -> ft ( m)
W35: Effective Projected Area | Y35: (EPA)s | Z35: =IF(W3=FALSE,ROUND(Z46,1)&" ft² ("&AA46&" m²)",ROUND(Z47,1)&" ft² ("&ROUND(AA47,1)&" m²)") -> 10.9 ft² (1 m²) | AB35: =IF(W3=FALSE,ROUND(AB46,1)&" ft² ("&AC46&" m²)",ROUND(AB47,1)&" ft² ("&ROUND(AC47,1)&" m²)") -> 13.2 ft² (1.2 m²)
F36: Weight | K36: W | L36: =IF(W7,Z40,"") -> 77 lb (35 kg) | O36: =IF(AND(W7,W5),AB40,"") ->  | R36: mounts excluded
C40: Antenna designed in accordance with AISC specifications for design of structural steel as prescribed by TIA-222-G | W40: Weight | Y40: W | Z40: =ROUNDUP(Z52,0) & " lb (" & AA52 & " kg)" -> 77 lb (35 kg) | AB40: =ROUNDUP(AB52,) & " lb (" & AC52 & " kg)" -> 115 lb (53 kg)
C41: Mechanical data is based on listed criteria and should be verified by the tower engineer.
C42: Prepared by: | F42: =IF(Input!L3="","",Input!L3) ->  | H42: Date: | I42: =IF(Input!H3="","",Input!H3) -> 2025-03-17 | W42: Fill Data | Z42: English | AA42: Metric | AB42: English | AC42: Metric
B44: This document contains proprietary and confidential information of Dielectric. It is to be used solely for the purpose for which it is provided. | W44: Height | Y44: H2 | Z44: =IF(W3=TRUE,Y26,Y16) -> 16.7 | AA44: =IF(ISNUMBER(Z44),ROUND(Z44*0.3048,1)," ") -> 5.1 | AC44: =IF(ISNUMBER(AB44),ROUND(AB44*0.3048,1)," ") -> 
B45: No disclosure, reproduction, or use of this document or any part of it may be made without the written permission of Dielectric. | W45: Height of Center of Radiation | Y45: H3 | Z45: =ROUNDUP((Z44/2),1) -> 8.4 | AA45: =IF(ISNUMBER(Z45),ROUNDUP(Z45*0.3048,1)," ") -> 2.6 | AC45: =IF(ISNUMBER(AB45),ROUND(AB45*0.3048,1)," ") -> 
W46: CaAc's "F" | Y46: CaAc | Z46: =Z16 -> 10.88 | AA46: =IF(ISNUMBER(Z46),ROUND(Z46*0.3048^2,1)," ") -> 1 | AB46: =AC16 -> 13.24 | AC46: =IF(ISNUMBER(AB46),ROUND(AB46*0.3048^2,1)," ") -> 1.2
W47: EPA's "G" | Y47: EPA | Z47: =Z26 -> 18.79 | AA47: =IF(ISNUMBER(Z47),ROUND(Z47*0.3048^2,1)," ") -> 1.7 | AB47: =AC26 -> 28.45 | AC47: =IF(ISNUMBER(AB47),ROUND(AB47*0.3048^2,1)," ") -> 2.6
AE48: =IF(W6=8,#REF!,IF(W6=16,#REF!,IF(W6=24,#REF!,""))) -> 
Z49: =IF(W3=1,IF(W2,AD23,AA23),IF(W3=2,IF(W2,AD24,AA24),IF(W3=3,IF(W2,AD25,AA25),""))) -> 
AE50: =IF(W6=8,#REF!,IF(W6=16,#REF!,IF(W6=24,#REF!,""))) -> 
W52: Weight | Y52: W | Z52: =IF(W3=TRUE,AA26,AA16) -> 77 | AA52: =IF(ISNUMBER(Z52),ROUNDUP(Z52*0.453592,0)," ") -> 35 | AB52: =IF(W3=TRUE,AD26,AD16) -> 115 | AC52: =IF(ISNUMBER(AB52),ROUNDUP(AB52*0.453592,0)," ") -> 53 | AE52: =IF(W6=8,#REF!,IF(W6=16,#REF!,IF(W6=24,#REF!,""))) -> 

Sheet Summary
AK1: 1
AK2: 2
AK3: 3 | AN3: FALSE | AO3: Tests for relative value calculations
AK4: 4
AK5: 5
M6: Summary | AK6: 6 | AT6: =Input!$P$66 -> TRUE | AU6: 6 | AV6: Calculate TPO from ERP | AX6: 2
AK7: 7 | AT7: FALSE | AU7: 7 | AV7: Show Polarization Losses | AX7: 3
M8: Proposal No. | P8: =Cover!$E$13 ->  | Z8: Gains | AK8: 8 | AT8: FALSE | AU8: 8 | AV8: Show Feed System Losses | AX8: 4
M9: Date | P9: =Cover!$E$14 -> 2025-03-17 | Z9: AZ H | AA9: ='AZ Hpol'!AB9 -> 1.756719844 | AK9: 9 | AT9: =Input!R66 -> 0 | AU9: 9 | AV9: Use a Combiner & TL | AX9: 5
M10: Call Letters | P10: =IF(Input!D27>1,Input!D27,"") ->  | R10: =IF(Input!D26>1,Input!D26,"") -> Call Letters | Z10: AZ V | AA10: ='AZ Vpol'!AB9 -> 2.222928774 | AD10: Calculate gains from ERP split | AK10: 10 | AT10: =Input!P71 -> FALSE | AU10: 10 | AV10: Show Transmission Line | AX10: 6
M11: Channel | P11: =IF(Input!F27>1,Input!F27,"") -> 26 | Z11: EL H | AA11: =Elpat!H14 -> 8.12 | AC11: 11 | AD11: Horizontal Pat. Gain of HP: | AG11: =IF(AT11,1,AA9) -> 1.756719844 | AH11: =10*LOG10(AG11) -> 2.447025072 | AK11: 11 | AR11: Main Lobe | AT11: =Input!P109 -> FALSE | AU11: 11 | AV11: Use RMS Gains | AX11: 7
M12: Frequency | P12: =IF(Input!G27>1,Input!G27,"") -> 545 | W12: TV Channel | X12: =P11 -> 26 | Z12: EL V | AA12: =Elpat!H14 -> 8.12 | AC12: 12 | AD12: Horizontal Pat. Gain of VP: | AG12: =IF(AT11,1,AA10) -> 2.222928774 | AH12: =10*LOG10(AG12) -> 3.469255475 | AK12: 12 | AM12: Powers Table | AQ12: RMS/Peak | AR12: Gain | AT12: =Input!P77 -> FALSE | AU12: 12 | AV12: Include Vpol | AX12: 8
M13: Antenna Type | P13: =Cover!$E$11 -> DLP-8B | W13: Frequency | X13: =P12 -> 545 | AC13: 13 | AD13: Vertical Pat. Gain of HP: | AG13: =AA11 -> 8.12 | AH13: =10*LOG10(AG13) -> 9.095560292 | AK13: 13 | AM13: Hpol | AN13: =I16 -> 1 | AQ13: =AT11 -> FALSE | AR13: =AF23 -> 14.26456513 | AT13: =IF(X35>0,TRUE,FALSE) -> FALSE | AU13: 13 | AV13: Include Other | AX13: 9
B14: Antenna | AC14: 14 | AD14: Vertical Pat. Gain of VP: | AG14: =AA12 -> 8.12 | AH14: =10*LOG10(AG14) -> 9.095560292 | AK14: 14 | AM14: Vpol | AN14: =IF($AT$12,IF($AT$6,$AG$19,$AG$32*$AF$24*$AQ$23),"") ->  | AR14: =AF24 -> 0
I15: Hpol | O15: =IF(AT12,"Vpol","") ->  | V15: Size | X15: =Input!C34 -> 0 | Y15: =Input!E34 ->  | AC15: 15 | AF15: Desired ERP of Hpol | AG15: =X24 -> 1 | AK15: 15 | AM15: Ant in | AN15: =IF($AT$6,$AG$22,$X$25*$AQ$23) -> 0.07010378449
B16: ERP: | I16: =IF($AT$6,$AG$18,$AG$32*$AF$23*$AQ$23) -> 1 | K16: =10*LOG(I16) -> 0 | O16: =IF($AT$12,IF($AT$6,$AG$19,$AG$32*$AF$24*$AQ$23),"") ->  | Q16: =IF(AT12,10*LOG(O16),"") ->  | V16: Type | X16: =Input!$E$35 ->  | Y16: =Input!$F$34 ->  | AC16: 16 | AD16: ERP Split | AF16: H ERP % | AG16: 1 | AH16: H | AI16: 1 | AK16: 16 | AM16: TPO | AN16: =IF($AP$23<0,IF($AT$6,$I$21/$AQ$23,$X$25),"") -> 
B17: =IF(AT11=TRUE,"RMS Gain","Peak Gain") -> Peak Gain | I17: =AF23 -> 14.26456513 | K17: =ROUND(10*LOG(I17),2) -> 11.54 | O17: =IF(AT12,AF24,"") ->  | Q17: =IF(AT12,ROUND(10*LOG(O17),2),"") ->  | V17: Vertical Length | X17: =Input!J34 -> 0 | AC17: 17 | AF17: V ERP % | AG17: =Input!F16 -> 0.3 | AH17: V | AI17: =X28/100*(100/X27) ->  | AK17: 17
V18: Horizontal Length | X18: =Input!J35 -> 0 | AC18: 18 | AF18: Hpol ERP | AG18: =AG15 -> 1 | AK18: 18
V19: Total Length | X19: =Input!$J$37 -> 0 | AC19: 19 | AF19: Vpol ERP | AG19: =IF(AT12,(AG17/AG16)*AG15,0) -> 0 | AK19: 19
V20: Efficiency | X20: =VLOOKUP(X15,Y61:AG91,9,FALSE) ->  | AC20: 20 | AD20: Hpol Peak Gain | AF20: =AG11*AG13 -> 14.26456513 | AG20: =AG18 -> 1 | AH20: =IF(ISNUMBER(P11),AG20/AF20,"") -> 0.07010378449 | AK20: 20
B21: Antenna Input Power | I21: =IF($AT$6,$AG$22,$X$25*$AQ$23) -> 0.07010378449 | K21: =10*LOG(I21) -> -11.54258536 | V21: dB | X21: =VLOOKUP(X15,Y61:AG91,8,FALSE) ->  | AC21: 21 | AD21: Vpol Peak Gain | AF21: =AG12*AG14 -> 18.05018165 | AG21: =IF(AX12,AG19,0) -> 0 | AH21: =IF(AT12,AG21/AF21,0) -> 0 | AK21: 21
V22: Max DTV Power | X22: =VLOOKUP(X15,Y61:AG91,5,FALSE) ->  | AC22: 22 | AD22: Antenna Input Pwr Req'd | AG22: =IF(ISNUMBER(P11),AH20+AH21,"") -> 0.07010378449 | AH22: =ROUND((10*LOG(AG22)),2) -> -11.54 | AK22: 22 | AP22: dB | AQ22: Value
B23: =IF(AT10,"Transmission Line","") ->  | V23: Percent of Max Power | X23: =I40/X22 ->  | AC23: 23 | AD23: Actual gain of Hp | AF23: =AG20/(AH20+AH21) -> 14.26456513 | AG23: =ROUND((10*LOG(AF23)),2) -> 11.54 | AH23: Peak Gain | AK23: 23 | AM23: Sum of External Losses | AP23: =SUM(K25:K37)*-1 -> 0 | AQ23: =POWER(10,AP23/10) -> 1
V24: Hpol ERP Desired | X24: =Input!I27 -> 1 | Y24: kW | AC24: 24 | AD24: Actual gain of Vp | AF24: =AG21/(AH20+AH21) -> 0 | AG24: =10*LOG(AF24) ->  | AH24: Peak Gain | AK24: 24
B25: =IF(AT10,"Type:","") ->  | D25: =IF(AT10,X16,"") ->  | G25: =IF(AT10,"Attenuation:","") ->  | K25: =IF(AT10,X21,"") ->  | V25: TPO Desired | X25: =Input!I27 -> 1 | Y25: kW | AC25: 25 | AK25: 25 | AP25: TPO Reqired | AR25: ERP from TPO
B26: =IF(AT10,"Size:","") ->  | D26: =IF($AT$10,$Y$15,"") ->  | G26: =IF(AT10,"Efficiency:","") ->  | I26: =IF(AT10,10^-(K25/10),"") ->  | AC26: 26 | AD26: % Pwr to Hp | AF26: =AH20/(AH20+AH21) -> 1 | AG26: =10*LOG(AF26) -> 0 | AH26: Polarization Loss | AK26: 26 | AP26: AP | AQ26: AQ | AR26: AR | AS26: AS | AT26: AT | AU26: AU
B27: =IF(AT10,"Impedance:","") ->  | D27: =IF($AT$10,$Y$16,"") ->  | L27: =IF(Input!G37>1,"Caution, transmission line is overpowered","") ->  | V27: ERP Power Split Hpol | X27: =Input!F29 -> 0 | AC27: 27 | AD27: % Pwr to Vp | AF27: =AH21/(AH20+AH21) -> 0 | AG27: =10*LOG(AF27) ->  | AH27: Polarization Loss | AK27: 27 | AM27: TPO from ERP | AP27: Ant In | AQ27: dB | AR27: ERP H | AS27: dB | AT27: ERP V | AU27: dB
B28: =IF(AT10,"Length:","") ->  | D28: =IF($AT$10,$X$19,"") ->  | F28: =IF($AT$10,$D28*0.3048,"") ->  | V28: ERP Power Split Vpol | X28: =Input!F16 -> 0.3 | AK28: 28 | AM28: TPO | AP28: =IF($AT$6,$AG$29,$X$25) -> 0.07010378449 | AQ28: =(CONCATENATE((ROUND(10*LOG(AP28),2)&"dB"))) -> -11.54dB | AR28: =($AG$32)*$AF$23 -> 1 | AS28: =(CONCATENATE((ROUND(10*LOG(AR28),2)&"dB"))) -> 0dB | AT28: =($AG$32)*$AF$24 -> 0 | AU28: =(CONCATENATE((ROUND(10*LOG(AT28),2)&"dB"))) -> 
AD29: Required TPO for selected ERP | AG29: =(AG18/AF23) -> 0.07010378449 | AH29: =IF(AG29<=0,"",10*LOG(AG29)) -> -11.54258536 | AK29: 29 | AM29: w/ TL | AP29: =$AG$32/$X$20 ->  | AR29: =$AP$39*$AF$23 ->  | AT29: =$AP$39*$AF$24 -> 
B30: =IF($AT$9,"Combiner Losses","") ->  | AK30: 30 | AM30: w/ Other | AP30: =$AG$32/$X$36 ->  | AR30: =$AP$40*$AF$23 -> 0 | AT30: =$AP$40*$AF$24 -> 0
G31: =IF($AT$9,"Attenuation","") ->  | K31: =IF($AT$9,$X$32,"") ->  | AD31: TPO from ERP | AK31: 31 | AM31: w/ TL & comb | AP31: =$AG$32/$X$20/$X$33 ->  | AR31: =($AP$41)*$AF$23 ->  | AT31: =($AP$41)*$AF$24 -> 
G32: =IF($AT$9,"Efficiency","") ->  | I32: =IF(AT9,10^-(K31/10),"") ->  | AC32: 32 | AD32: Antenna Input | AG32: =IF($AT$6,$AG$29,$X$25) -> 0.07010378449 | AH32: =(CONCATENATE((ROUND(10*LOG(AG32),2)&"dB"))) -> -11.54dB | AK32: 32 | AM32: w/ TL & other | AP32: =$AG$32/$X$20/$X$36 ->  | AR32: =$AP$42*$AF$23 ->  | AT32: =$AP$42*$AF$24 -> 
AC33: 33 | AD33: Antenna Input w/ T/L | AG33: =$AG$32/$X$20 ->  | AK33: 33 | AM33: w/ TL & other & comb | AP33: =$AG$32/$X$20/$X$33/$X$36 ->  | AR33: =$AP$43*$AF$23 ->  | AT33: =$AP$43*$AF$24 -> 
AC34: 34 | AD34: Antenna Input w/ T/L and combiner | AG34: =$AG$32/$X$20/$X$33 ->  | AK34: 34
B35: =IF($X$34="","",IF($AT$13,$X$34,"")) ->  | AC35: 35 | AD35: ERP of Hpol | AG35: =($AG$32)*$AF$23 -> 1 | AH35: 0dB | AK35: 35
G36: =IF($X$34="","",IF($AT$13,"Attenuation","")) ->  | K36: =IF($X$35="","",IF($AT$13,$X$35,"")) ->  | AC36: 36 | AD36: ERP of Hpol w/ TL | AG36: =(AF44)*AF23 ->  | AK36: 36 | AM36: Antenna in from required TPO
G37: =IF($X$34="","",IF($AT$13,"Efficiency","")) ->  | I37: =IF(AT13,10^-(K36/10),"") ->  | AC37: 37 | AD37: ERP of Hpol w/ TL & combiner | AG37: =(AF45)*AF23 ->  | AK37: 37 | AP37: TPO | AQ37: dB
AC38: 38 | AD38: ERP of Vpol | AG38: =AF43*AF24 -> 0 | AK38: 38 | AM38: TPO | AP38: =ROUND($AG$32,2) -> 0.07 | AQ38: =(CONCATENATE("(" & (ROUND(10*LOG(AP38),2)&" dBk)"))) -> (-11.55 dBk) | AR38: =AP38 & " kW" -> 0.07 kW
B39: =IF(AT10,IF(AT9,"Combiner Input","Transmitter Output")," ") ->  | AC39: 39 | AD39: ERP of Vpol w/ T/L | AG39: =AF44*AF24 ->  | AK39: 39 | AM39: w/ TL | AP39: =ROUND($AG$32*$X$20,2) -> 
I40: =IF($AP$23<0,IF($AT$6,$I$21/$AQ$23,$X$25),"") ->  | K40: =IF(ISNUMBER(I40),10*LOG($I$40),"") ->  | AC40: 40 | AD40: ERP of Vpol w/ T/L & combiner | AG40: =AF45*AF24 ->  | AK40: 40 | AM40: w/ Other | AP40: =ROUND($AG$32*$X$36,2) -> 0 | AR40: 0 kW
B41: Transmitter filter losses not included | AK41: 41 | AM41: w/ TL & comb | AP41: =(ROUND($AG$32*$X$20*$X$33,2)) -> 
AD42: ERP from TPO | AK42: 42 | AM42: w/ TL & other | AP42: =(ROUND($AG$32*$X$36*$X$20,2)) -> 
AC43: 43 | AD43: Desired TPO | AF43: =ROUND($AG$32,2) -> 0.07 | AG43: =(CONCATENATE("(" & (ROUND(10*LOG(AF43),2)&" dBk)"))) -> (-11.55 dBk) | AH43: =AF43 & " kW" -> 0.07 kW | AK43: 43 | AM43: w/ TL & other & comb | AP43: =(ROUND($AG$32*$X$20*$X$36*$X$33,2)) -> 
AC44: 44 | AD44: with TL Losses | AF44: =ROUND($AF$43*$X$20,2) ->  | AG44: =(CONCATENATE("(" & (ROUND(10*LOG(AF44),2)&" dBk)"))) ->  | AH44: =AF44 & " kW" ->  | AK44: 44
A45: This document contains proprietary and confidential information of Dielectric. It is to be used solely for the purpose for which it is provided. | AC45: 45 | AD45: with TL & Comb Losses | AF45: =(ROUND(AG32*$X$20*$X$33,2)) ->  | AG45: =(CONCATENATE("(" & (ROUND(10*LOG(AF45),2)&" dBk)"))) ->  | AH45: =AF45 & " kW" ->  | AK45: 45
A46: No disclosure, reproduction, or use of this document or any part of it may be made without the written permission of Dielectric. | AK46: 46
AK47: 47
Z48: 7/8 | AC48: 1-5/8 | AD48: 3 | AE48: 3 EHT | AF48: 4 | AG48: 4 EHT | AH48: 5 | AI48: 5 EHT | AJ48: 6" 75 | AK48: 6" 50 | AL48: 7" 75 ohm | AM48: 6" 75 EHT | AN48: 6" 50 EHT | AO48: 7" 75 EHT | AP48: 8" 75 | AQ48: 8" 75 EHT | AR48: 9" 75 | AS48: 9" 75EHT | AT48: 9" 50 | AU48: WR1800 | AV48: WR1500 | AW48: WR1150 | AX48: DTW1750A | AY48: DTW1500A | AZ48: DTW1350A | BA48: Flex 7/8 | BB48: Flex 1-5/8 | BC48: Flex 2-1/8 | BD48: Flex 3-1/8 | BE48: Flex 4-1/16 | BF48: Flex 5 | BG48: Flex 6-1/18
W49: Ch. Frq | X49: =P12 -> 545 | Y49: a | Z49: 47.290775 | AC49: 155.55655 | AD49: 523.73913 | AE49: 837.29246 | AF49: 835.586 | AG49: 1410.3192 | AH49: 1413.1216 | AI49: 2315.5501 | AJ49: 1511.6731 | AK49: 1759.2597 | AL49: 2418.2025 | AM49: 2550.5056 | AN49: 2878.6275 | AO49: 3454.3955 | AP49: 2537.034 | AQ49: 4371.084 | AR49: 3133.78 | AS49: 5437.258 | AT49: 3649.355 | BA49: 75.96032 | BB49: 153.9121 | BC49: 195.8956 | BD49: 399.4212 | BE49: 703.8064 | BF49: 1170.645 | BG49: 1525.262
Y50: b | Z50: -0.49750541 | AC50: -0.49960995 | AD50: -0.50019557 | AE50: -0.51903287 | AF50: -0.49999914 | AG50: -0.52862023 | AH50: -0.5412929 | AI50: -0.54987676 | AJ50: -0.50016004 | AK50: -0.49988895 | AL50: -0.5308834 | AM50: -0.5272823 | AN50: -0.524325 | AO50: -0.5324961 | AP50: -0.49989 | AQ50: -0.53034 | AR50: -0.49997 | AS50: -0.5304 | AT50: -0.50011 | BA50: -0.52315 | BB50: -0.50389 | BC50: -0.49856 | BD50: -0.51459 | BE50: -0.51181 | BF50: -0.52331 | BG50: -0.52038
Y52: a | Z52: 0.03435237 | AA52: 0.008897517 | AB52: 0.008897517 | AC52: 0.019411759 | AD52: 0.008897517 | AE52: 0.008897517 | AF52: 0.006280596 | AG52: 0.006280596 | AH52: 0.00515574 | AI52: 0.0051557424 | AJ52: 0.004164784 | AK52: 0.0048890857 | AL52: 0.00355057 | AM52: 0.0041648 | AN52: 0.0048891 | AO52: 0.0035506 | AP52: 0.003783 | AQ52: 0.003783 | AR52: 3.86e-06 | AS52: 3.86e-06 | AU52: 61356900 | AV52: 1650000000 | AW52: 68700000000000 | AX52: 1920000000 | AY52: 1550000000 | AZ52: 28500000000000 | BA52: 0.034249 | BB52: 0.013222 | BC52: 0.018434 | BD52: 0.011069 | BE52: 0.008238 | BF52: 0.003942 | BG52: 0.005698
Y53: b | Z53: 1.0000284 | AA53: 1.0001063 | AB53: 1.0001063 | AC53: 1.000053 | AD53: 1.0001063 | AE53: 1.0001063 | AF53: 0.9999803 | AG53: 0.9999803 | AH53: 1.0000324 | AI53: 1.0000324 | AJ53: 1.0000736 | AK53: 0.99994884 | AL53: 1.0000798 | AM53: 1.0000736 | AN53: 0.9999488 | AO53: 1.0000798 | AP53: 0.493575 | AQ53: 0.493575 | AR53: 0.997584 | AS53: 0.997584 | AU53: 1.005929 | AV53: 1.005635 | AW53: 1.006485 | AX53: 1.006464 | AY53: 1.005083 | AZ53: 1.006997 | BA53: 1.000007 | BB53: 0.999982 | BC53: 1.00002 | BD53: 1.000063 | BE53: 1.000066 | BF53: 0.999885 | BG53: 1.000027
Y54: c | Z54: 0.51772257 | AA54: 0.51590535 | AB54: 0.51590535 | AC54: 0.51117032 | AD54: 0.51590535 | AE54: 0.51590535 | AF54: 0.51295593 | AG54: 0.51295593 | AH54: 0.53260412 | AI54: 0.53260412 | AJ54: 0.51818736 | AK54: 0.51488769 | AL54: 0.5189502 | AM54: 0.51818736 | AN54: 0.51488769 | AO54: 0.5189502 | AR54: 1.773151 | AS54: 1.773151 | AU54: -3.8658656 | AV54: -4.2917627 | AW54: -5.91199 | AX54: -4.4249388 | AY54: -4.2096239 | AZ54: -5.880304 | BA54: 0.53016952 | BB54: 0.60199625 | BC54: 0.51163952 | BD54: 0.5181392 | BE54: 0.5290278 | BF54: 0.62544988 | BG54: 0.52825014
Y55: d
Y56: e
Y58: TV Channel | Z58: =P11 -> 26 | AE58: =X19 -> 0 | AF58: ft | AG58: leng/100 = | AH58: =AE58/100 -> 0
Y59: Use | Z59: =575 -> 575 | AA59: MHz | AG59: 11802.854
Y60: Size | Z60: Max | AC60: Max DTV | AD60: Max @15psi | AE60: Peak TV | AF60: Att. | AG60: Eff
X61: T/L | Y61: 0-7/8" | Z61: =Z$49*$X49^Z$50 -> 2.057805708 | AC61: =Z61*0.9 -> 1.852025137 | AD61: =Z61*1.21 -> 2.489944906 | AE61: =Z61/0.7 -> 2.93972244 | AF61: =Z$52*Z$53^$X$49*$X$49^Z$54*$AE$58/100 -> 0 | AG61: =10^(-AF61/10) -> 1
Y62: 1-5/8" | Z62: =AC$49*$X$49^AC$50 -> 6.679706539 | AC62: 6.011735885 | AD62: =Z62*1.21 -> 8.082444912 | AE62: 9.542437913 | AF62: =AC$52*AC$53^$X$49*$X$49^AC$54*$AE$58/100 -> 0 | AG62: 1
Y63: 3-1/8" | Z63: =AD$49*$X$49^AC$50 -> 22.48972281 | AC63: 20.24075053 | AD63: =Z63*1.21 -> 27.2125646 | AE63: 32.12817545 | AF63: =AD$52*AD$53^$X$49*$X$49^AD$54*$AE$58/100 -> 0 | AG63: 1
Y64: 3-1/8" EHT | Z64: =AD64*0.885 -> 28.15403985 | AC64: 25.33863586 | AD64: =AE49*$X49^AE$50 -> 31.81247441 | AE64: 40.22005693 | AF64: =AE$52*AE$53^$X$49*$X$49^AE$54*$AE$58/100 -> 0 | AG64: 1
Y65: 4-1/16" | Z65: =AF$49*$X$49^AF$50 -> 35.79276566 | AC65: 32.21348909 | AD65: =Z65*1.21 -> 43.30924645 | AE65: 51.13252237 | AF65: =AF$52*AF$53^$X$49*$X$49^AF$54*$AE$58/100 -> 0 | AG65: 1
Y66: 4-1/16" EHT | Z66: =AD66*0.885 -> 44.64225673 | AC66: 40.17803106 | AD66: =AG49*$X49^AG$50 -> 50.44322794 | AE66: 63.77465247 | AF66: =AG$52*AG$53^$X$49*$X$49^AG$54*$AE$58/100 -> 0 | AG66: 1
W67: 32 | Y67: 5" | Z67: =AH$49*$X$49^AH$50 -> 46.66459882 | AC67: 41.99813894 | AD67: =Z67*1.21 -> 56.46416457 | AE67: 66.6637126 | AF67: =AH$52*AH$53^$X$49*$X$49^AH$54*$AE$58/100 -> 0 | AG67: 1
Y68: 5" EHT | Z68: =AD68*0.885 -> 64.1086468 | AC68: 57.69778212 | AD68: =AI$49*X49^AI$50 -> 72.43914893 | AE68: 91.58378114 | AF68: =AI$52*AI$53^$X$49*$X$49^AI$54*$AE$58/100 -> 0 | AG68: 1
Y69: 6-1/8" 75 | Z69: =AJ$49*X49^AJ$50 -> 64.68769866 | AC69: 58.2189288 | AD69: =Z69*1.21 -> 78.27211538 | AE69: 92.41099809 | AF69: =AJ$52*AJ$53^$X$49*$X$49^AJ$54*$AE$58/100 -> 0 | AG69: 1
Y70: 6-1/8" 75 EHT | Z70: =AD70*0.875 -> 80.49722202 | AC70: 72.44749982 | AD70: =AM$49*X49^AM$50 -> 91.99682517 | AE70: 114.9960315 | AF70: =AM52*AM53^$X49*$X49^AM54*$AE$58/100 -> 0 | AG70: 1
Y71: 6-1/8" 50 | Z71: =AK$49*X49^AK$50 -> 75.41115282 | AC71: 67.87003754 | AD71: =Z71*1.21 -> 91.24749491 | AE71: 107.7302183 | AF71: =AK$52*AK$53^$X$49*$X$49^AK$54*$AE$58/100 -> 0 | AG71: 1
Y72: 6-1/8" 50 EHT | Z72: =AD72*0.885 -> 93.61978612 | AC72: 84.2578075 | AD72: =AN$49*X49^AN$50 -> 105.7850691 | AE72: 133.7425516 | AF72: =AN$52*AN$53^$X$49*$X$49^AN$54*$AE$58/100 -> 0 | AG72: 1
Y73: 7-3/16" 75 | Z73: =AL49*$X49^AL50 -> 85.26782534 | AC73: 76.74104281 | AD73: =Z73*1.22 -> 104.0267469 | AE73: 121.8111791 | AF73: =AL$52*AL$53^$X$49*$X$49^AL$54*$AE$58/100 -> 0 | AG73: 1
Y74: 7-3/16" 75 EHT | Z74: =AD74*0.875 -> 105.5017459 | AC74: 94.95157133 | AD74: =AO$49*$X49^AO$50 -> 120.5734239 | AE74: 150.7167799 | AF74: =AO$52*AO$53^$X$49*$X$49^AO$54*$AE$58/100 -> 0 | AG74: 1
Y75: 8-3/16" 75 | Z75: =IF(OR($X$49<=704,AND($X$49>$X$49,X$49<301)),AP$49*$X$49^AP$50,"N/A") -> 108.7499435 | AC75: 97.87494913 | AD75: 142.4130483 | AE75: 155.3570621 | AF75: =IF(OR(X$49<=704,AND($X$49>200,$X$49<301)),AP$52*$X$49^AP$53*$AE$58/100,"N/A") -> 0 | AG75: 1
Y76: 8-3/16" 75 EHT | Z76: =AD76*0.875 -> 135.324579 | AC76: 121.7921211 | AD76: =IF(OR(X49<=704,AND(X49>200,X49<301)),AQ$49*$X49^AQ$50,"N/A") -> 154.6566617 | AE76: 193.3208271 | AF76: =IF(OR(X$49<=704,AND($X$49>200,$X$49<301)),AQ$52*$X$49^AQ$53*$AE$58/100,"N/A") -> 0 | AG76: 1
Y77: 9-3/16" 75 | Z77: =IF(OR($X$49<=620,AND(X49>200,X49<301)),AR$49*$X49^AR$50,"N/A") -> 134.2617629 | AC77: 120.8355866 | AD77: =Z77*1.21 -> 162.4567331 | AE77: 191.8025184 | AF77: =IF(OR(X$49<=704,AND($X$49>200,$X$49<301)),AR$52*AR53^X49*X49^AR54*$AE$58/100,"N/A") -> 0 | AG77: 1
Y78: 9-3/16" 75 EHT | Z78: =AD78*0.875 -> 168.2686805 | AC78: 151.4418124 | AD78: =IF(OR($X$49<=620,AND(X49>200,X49<301)),AS$49*$X49^AS$50,"N/A") -> 192.3070634 | AE78: 240.3838293 | AF78: =IF(OR(X$49<=704,AND($X$49>200,$X$49<301)),AS$52*AS53^$X$49*$X$49^AS$54*$AE$58/100,"N/A") -> 0 | AG78: 1
X80: Flexline Air | Y80: FlexLine Air 0-7/8" | Z80: =IF((2.781/($AF80/$AH$58)>90),90,2.781/($AF80/$AH$58)) ->  | AC80: =Z80*0.9 ->  | AE80: =Z80/0.7 ->  | AF80: =((0.035307*SQRT($X$49))+(0.000164*$X$49))*$AH$58 -> 0 | AG80: =10^(-AF80/10) -> 1 | AH80: az
Y81: FlexLine Air 1-5/8" | Z81: =IF((3.355/($AF$81/AH58)>305),305,3.355/($AF81/AH58)) ->  | AF81: =((0.01944*SQRT($X$49))+(0.000086*$X$49))*$AH$58 -> 0 | AG81: 1 | AH81: ba
Y82: FlexLine Air 2-1/4" | Z82: =IF((3.9042/($AF82/AH58)>425),425,3.9042/($AF82/AH58)) ->  | AF82: =((0.016104*SQRT(X49))+(0.00008*X49))*AH58 -> 0 | AG82: 1 | AH82: bb
Y83: FlexLine Air 3" | Z83: =IF((5.9953/($AF83/AH58)>640),640,5.9953/($AF83/AH58)) ->  | AF83: =((0.012434*SQRT(X49))+(0.00017*X49))*AH58 -> 0 | AG83: 1 | AH83: bc
Y84: FlexLine Air 4" 50 | Z84: =IF((7.4002/($AF84/AH58)>1100),1100,7.4002/($AF84/AH58)) ->  | AF84: =((0.010396*SQRT(X49))+(0.000105*X49))*AH58 -> 0 | AG84: 1 | AH84: bd
Y85: FlexLine Air 5" 50 | Z85: =IF((6.6668/($AF85/AH58)>1890),1890,6.6668/($AF85/AH58)) ->  | AF85: =((0.007374*SQRT(X49))+(0.000052*X49))*AH58 -> 0 | AG85: 1 | AH85: be
X87: Flexline Foam | Y87: FlexLine Foam 0-1/2" | Z87: =IF((2.325/($AF87/AH58)>40),40,2.325/($AF87/AH58)) ->  | AC87: =Z87*0.9 ->  | AE87: =Z87/0.7 ->  | AF87: =((0.065906*SQRT(X49))+(0.000254*X49))*AH58 -> 0 | AG87: =10^(-AF87/10) -> 1
Y88: FlexLine Foam 0-7/8" | Z88: =IF((2.77/($AF88/AH58)>91),91,2.77/($AF88/AH58)) ->  | AC88: =Z88*0.9 ->  | AE88: =Z88/0.7 ->  | AF88: =((0.0351*SQRT(X49))+(0.000153*X49))*AH58 -> 0 | AG88: =10^(-AF88/10) -> 1
Y89: FlexLine Foam 1-1/4" | Z89: =IF((3.455/($AF89/AH58)>205),205,3.455/($AF89/AH58)) ->  | AC89: =Z89*0.9 ->  | AE89: =Z89/0.7 ->  | AF89: =((0.02416*SQRT(X49))+(0.000139*X49))*AH58 -> 0 | AG89: =10^(-AF89/10) -> 1
Y90: FlexLine Foam 1-5/8" | Z90: =IF((3.351/($AF90/AH58)>315),315,3.351/($AF90/AH58)) ->  | AC90: =Z90*0.9 ->  | AE90: =Z90/0.7 ->  | AF90: =((0.01931*SQRT(X49))+(0.000153*X49))*AH58 -> 0 | AG90: =10^(-AF90/10) -> 1
Y91: FlexLine foam 2-1/4" | Z91: =IF((3.76/($AF91/AH58)>425),425,3.76/($AF91/AH58)) ->  | AC91: =Z91*0.9 ->  | AE91: =Z91/0.7 ->  | AF91: =((0.0165*SQRT(X49))+(0.00016*X49))*AH58 -> 0 | AG91: =10^(-AF91/10) -> 1

Sheet Azimuth
A1: Pattern | B1: B | C1: B | D1: C | E1: C | F1: D | G1: D | H1: E | I1: E | J1: F | K1: F | L1: J | M1: J | N1: M | O1: M
A2: Column | B2: 1 | C2: 2 | D2: 3 | E2: 4 | F2: 5 | G2: 6 | H2: 7 | I2: 8 | J2: 9 | K2: 10 | L2: 11 | M2: 12 | N2: 13 | O2: 14
B3: Hpol | C3: Vpol | D3: Hpol | E3: Vpol | F3: Hpol | G3: Vpol | H3: Hpol | I3: Vpol | J3: Hpol | K3: Vpol | L3: Hpol | M3: Vpol | N3: Hpol | O3: Vpol
A4: 0 | B4: 1 | C4: 0.9999827743 | D4: 1 | E4: 0.9999864101 | F4: 1 | G4: 1 | H4: 1 | I4: 1 | J4: 1 | K4: 0.9998530149 | L4: 0.5906880964 | M4: 0.9855108261 | N4: 0.8950722204 | O4: 0.9999936223
A5: 1 | B5: 0.9995852709 | C5: 0.9998760819 | D5: 0.9990267754 | E5: 0.9999015927 | F5: 0.9982258081 | G5: 0.9998629093 | H5: 0.9992799759 | I5: 0.9997748137 | J5: 0.9977707267 | K5: 0.9999943972 | L5: 0.5883900487 | M5: 0.9855149984 | N5: 0.8966538531 | O5: 0.999966383
A6: 2 | B6: 0.9992269874 | C6: 0.9996787906 | D6: 0.9980971217 | E6: 0.9997454286 | F6: 0.9966170788 | G6: 0.9994729757 | H6: 0.9988585711 | I6: 0.9991173744 | J6: 0.9958214164 | K6: 1 | L6: 0.5861997089 | M6: 0.9855524898 | N6: 0.8981579985 | O6: 0.9999188781
A7: 3 | B7: 0.998903513 | C7: 0.9993916154 | D7: 0.9971957207 | E7: 0.9995173812 | F7: 0.9951288104 | G7: 0.9988309741 | H7: 0.998639524 | I7: 0.9980294704 | J7: 0.9940897822 | K7: 0.9998680949 | L7: 0.5840480534 | M7: 0.985622406 | N7: 0.8995928227 | O7: 0.9998489022
A8: 4 | B8: 0.9985932112 | C8: 0.9990140796 | D8: 0.9963073134 | E8: 0.9992185235 | F8: 0.9937158227 | G8: 0.9979377985 | H8: 0.9985265732 | I8: 0.9965122938 | J8: 0.9925137162 | K8: 0.9995985031 | L8: 0.5818659392 | M8: 0.9857258797 | N8: 0.9009667897 | O8: 0.999755919
A9: 5 | B9: 0.9982740879 | C9: 0.9985464811 | D9: 0.9954165816 | E9: 0.998847425 | F9: 0.9923328161 | G9: 0.9967939258 | H9: 0.9984241128 | I9: 0.9945685863 | J9: 0.9910306931 | K9: 0.9991906285 | L9: 0.579583985 | M9: 0.9858620763 | N9: 0.9022882442 | O9: 0.9996359944
A10: 6 | B10: 0.9979243875 | C10: 0.9979882836 | D10: 0.9945083857 | E10: 0.9984033108 | F10: 0.9909352064 | G10: 0.9954003096 | H10: 0.9982355833 | I10: 0.9922021031 | J10: 0.9895786047 | K10: 0.9986417294 | L10: 0.5771333461 | M10: 0.986032784 | N10: 0.9035650542 | O10: 0.9994860888
A11: 7 | B11: 0.9975224733 | C11: 0.9973397255 | D11: 0.9935672879 | E11: 0.9978864193 | F11: 0.989477694 | G11: 0.9937586188 | H11: 0.9978650212 | I11: 0.9894164205 | J11: 0.9880952835 | K11: 0.9979521036 | L11: 0.5744566813 | M11: 0.9862365127 | N11: 0.9048056836 | O11: 0.9993023872
A12: 8 | B12: 0.997046411 | C12: 0.9966006875 | D12: 0.9925780892 | E12: 0.9972956181 | F12: 0.9879149795 | G12: 0.9918707013 | H12: 0.9972162843 | I12: 0.9862167835 | J12: 0.9865183234 | K12: 0.9971197844 | L12: 0.5717618964 | M12: 0.986474216 | N12: 0.9060184772 | O12: 0.9990807176
A13: 9 | B13: 0.9964746237 | C13: 0.995770812 | D13: 0.9915254116 | E13: 0.9966297746 | F13: 0.9862022996 | G13: 0.9897375703 | H13: 0.9961932898 | I13: 0.9826084971 | J13: 0.9847856164 | K13: 0.9961435199 | L13: 0.5695134408 | M13: 0.9867448807 | N13: 0.9072114222 | O13: 0.9988145828
A14: 10 | B14: 0.9957849979 | C14: 0.9948499203 | D14: 0.9903938174 | E14: 0.9958888888 | F14: 0.9842944741 | G14: 0.987362504 | H14: 0.9946998954 | I14: 0.9785969853 | J14: 0.9828345776 | K14: 0.9950218201 | L14: 0.5681810094 | M14: 0.987049818 | N14: 0.9083928038 | O14: 0.9984983206
A15: 11 | B15: 0.9949573874 | C15: 0.9938377142 | D15: 0.9891685247 | E15: 0.9950709939 | F15: 0.9821463823 | G15: 0.984747529 | H15: 0.9926400185 | I15: 0.9741901159 | J15: 0.9806032181 | K15: 0.9937533736 | L15: 0.567998496 | M15: 0.9873886704 | N15: 0.9095711454 | O15: 0.9981257915
A16: 12 | B16: 0.9939860106 | C16: 0.9927340746 | D16: 0.9878383875 | E16: 0.9941753149 | F16: 0.9797127843 | G16: 0.9818943739 | H16: 0.9899194837 | I16: 0.9693952203 | J16: 0.9780293107 | K16: 0.9923353791 | L16: 0.5688780414 | M16: 0.9877604842 | N16: 0.9107543747 | O16: 0.997690022
A17: 13 | B17: 0.9928737879 | C17: 0.9915388823 | D17: 0.9864026904 | E17: 0.9932010174 | F17: 0.9769489765 | G17: 0.9788066745 | H17: 0.9864999056 | I17: 0.9642196298 | J17: 0.975050509 | K17: 0.9907671809 | L17: 0.5707083613 | M17: 0.9881646037 | N17: 0.9119507768 | O17: 0.9971817732
A18: 14 | B18: 0.9916236997 | C18: 0.9902513027 | D18: 0.9848607779 | E18: 0.9921460152 | F18: 0.9738156199 | G18: 0.9754878879 | H18: 0.9824057817 | I18: 0.9586722851 | J18: 0.9716044068 | K18: 0.989048183 | L18: 0.5733787674 | M18: 0.9886009097 | N18: 0.9131686965 | O18: 0.9965953827
A19: 15 | B19: 0.9902387857 | C19: 0.9888715744 | D19: 0.9832127094 | E19: 0.991009295 | F19: 0.970310688 | G19: 0.9719396234 | H19: 0.9776647091 | I19: 0.9527626038 | J19: 0.9676290154 | K19: 0.9871745706 | L19: 0.5767776178 | M19: 0.9890673757 | N19: 0.9144162402 | O19: 0.9959200025
A20: 16 | B20: 0.988722384 | C20: 0.9873992205 | D20: 0.9814584851 | E20: 0.989789784 | F20: 0.9664465785 | G20: 0.9681665897 | H20: 0.9723048806 | I20: 0.9464998841 | J20: 0.9630635977 | K20: 0.9851459265 | L20: 0.5807942242 | M20: 0.9895647168 | N20: 0.9157017525 | O20: 0.9951484799
A21: 17 | B21: 0.9870771766 | C21: 0.9858335853 | D21: 0.9795979261 | E21: 0.9884855747 | F21: 0.9622350931 | G21: 0.9641724825 | H21: 0.9663540125 | I21: 0.9398940802 | J21: 0.9578927755 | K21: 0.9829602838 | L21: 0.5853174216 | M21: 0.990088284 | N21: 0.91703334 | O21: 0.9942718148
A22: 18 | B22: 0.9853069186 | C22: 0.9841746092 | D22: 0.9776309729 | E22: 0.9870951176 | F22: 0.9576888084 | G22: 0.9599604011 | H22: 0.9598399997 | I22: 0.9329565167 | J22: 0.9521471858 | K22: 0.9806159139 | L22: 0.5902359257 | M22: 0.9906374812 | N22: 0.9184195857 | O22: 0.9932790995
A23: 19 | B23: 0.9834138155 | C23: 0.9824218154 | D23: 0.9755573869 | E23: 0.985616684 | F23: 0.9528195262 | G23: 0.9555348158 | H23: 0.9527904987 | I23: 0.9256979227 | J23: 0.9458597898 | K23: 0.9781113863 | L23: 0.5954388098 | M23: 0.991210103 | N23: 0.9198681788 | O23: 0.992161572
A24: 20 | B24: 0.9814013839 | C24: 0.9805747867 | D24: 0.9733772278 | E24: 0.9840490222 | F24: 0.947639823 | G24: 0.9508997798 | H24: 0.9452335835 | I24: 0.9181290269 | J24: 0.9390639067 | K24: 0.9754446149 | L24: 0.6008203328 | M24: 0.9918007851 | N24: 0.9213878217 | O24: 0.9909108281
A25: 21 | B25: 0.9792727232 | C25: 0.978633523 | D25: 0.9710903168 | E25: 0.9823896885 | F25: 0.9421613812 | G25: 0.946059823 | H25: 0.9371970892 | I25: 0.9102625847 | J25: 0.9317920208 | K25: 0.9726142883 | L25: 0.6063477713 | M25: 0.9924070835 | N25: 0.9229865611 | O25: 0.9895153046
A26: 22 | B26: 0.9770308733 | C26: 0.9765970111 | D26: 0.968696475 | E26: 0.9806377888 | F26: 0.9363967776 | G26: 0.9410188198 | H26: 0.9287087917 | I26: 0.9021100998 | J26: 0.9240776896 | K26: 0.9696192145 | L26: 0.6120415699 | M26: 0.9930257797 | N26: 0.924672563 | O26: 0.9879661202
A27: 23 | B27: 0.974678874 | C27: 0.9744653106 | D27: 0.9661955237 | E27: 0.9787905216 | F27: 0.9303581715 | G27: 0.9357820749 | H27: 0.919796586 | I27: 0.8936833143 | J27: 0.9159532785 | K27: 0.9664570093 | L27: 0.6179238426 | M27: 0.9936510921 | N27: 0.9264541722 | O27: 0.9862530231
A28: 24 | B28: 0.9722198248 | C28: 0.972237587 | D28: 0.9635877013 | E28: 0.9768465757 | F28: 0.9240574837 | G28: 0.9303547144 | H28: 0.9104883075 | I28: 0.8849961758 | J28: 0.9074525237 | K28: 0.9631276131 | L28: 0.6240164646 | M28: 0.9942771196 | N28: 0.9283396142 | O28: 0.984367311
A29: 25 | B29: 0.9696567059 | C29: 0.9699137807 | D29: 0.9608724713 | E29: 0.9748042822 | F29: 0.917507112 | G29: 0.9247406721 | H29: 0.9008117914 | I29: 0.876060605 | J29: 0.8986076117 | K29: 0.959627986 | L29: 0.6303411922 | M29: 0.9948986769 | N29: 0.9303371742 | O29: 0.9822993279
A30: 26 | B30: 0.9669926763 | C30: 0.9674931765 | D30: 0.9580500126 | E30: 0.9726611972 | F30: 0.9107189775 | G30: 0.9189456105 | H30: 0.8907948732 | I30: 0.8668894768 | J30: 0.8894519806 | K30: 0.9559592009 | L30: 0.6369199604 | M30: 0.995508194 | N30: 0.9324550777 | O30: 0.9800394773
A31: 27 | B31: 0.9642307758 | C31: 0.9649758935 | D31: 0.9551199079 | E31: 0.9704164267 | F31: 0.9037055969 | G31: 0.9129747152 | H31: 0.8804653883 | I31: 0.8574960828 | J31: 0.8800187111 | K31: 0.952118814 | L31: 0.6437747637 | M31: 0.996099472 | N31: 0.9347011927 | O31: 0.9775791168
A32: 28 | B32: 0.9613733292 | C32: 0.9623606205 | D32: 0.9520823956 | E32: 0.9680665731 | F32: 0.8964790106 | G32: 0.9068331718 | H32: 0.8698505759 | I32: 0.8478937745 | J32: 0.8703405857 | K32: 0.9481065273 | L32: 0.6509274179 | M32: 0.9966639876 | N32: 0.9370844601 | O32: 0.9749094248
A33: 29 | B33: 0.9584214091 | C33: 0.9596477151 | D33: 0.9489371777 | E33: 0.9656116962 | F33: 0.8890510798 | G33: 0.9005262852 | H33: 0.8589696288 | I33: 0.8380954862 | J33: 0.8604508042 | K33: 0.9439206719 | L33: 0.6583999176 | M33: 0.9971929193 | N33: 0.9396125689 | O33: 0.9720231295
A34: 30 | B34: 0.9553759098 | C34: 0.9568368196 | D34: 0.9456841946 | E34: 0.9630482793 | F34: 0.8814345002 | G34: 0.8940603733 | H34: 0.8478342891 | I34: 0.8281145096 | J34: 0.8503819704 | K34: 0.9395620227 | L34: 0.6662136615 | M34: 0.9976776838 | N34: 0.9422938042 | O34: 0.9689109921
A35: 31 | B35: 0.9522380829 | C35: 0.9539266825 | D35: 0.9423233867 | E35: 0.9603751898 | F35: 0.8736410737 | G35: 0.8874397278 | H35: 0.8364565969 | I35: 0.8179643154 | J35: 0.840167582 | K35: 0.9350289106 | L35: 0.6743911804 | M35: 0.998108089 | N35: 0.9451336499 | O35: 0.9655665159
A36: 32 | B36: 0.949008882 | C36: 0.9509174228 | D36: 0.9388545156 | E36: 0.9575912952 | F36: 0.8656833172 | G36: 0.8806707859 | H36: 0.8248490095 | I36: 0.8076581955 | J36: 0.8298403025 | K36: 0.9303225279 | L36: 0.6829540517 | M36: 0.9984744191 | N36: 0.948114403 | O36: 0.9619830251
A37: 33 | B37: 0.9456893802 | C37: 0.9478089809 | D37: 0.9352775812 | E37: 0.9546942711 | F37: 0.8575726748 | G37: 0.8737587929 | H37: 0.8130233884 | I37: 0.7972080708 | J37: 0.8194277883 | K37: 0.9254412055 | L37: 0.6919235549 | M37: 0.9987658858 | N37: 0.9512098372 | O37: 0.9581543803
A38: 34 | B38: 0.942280829 | C38: 0.9446002841 | D38: 0.9315922856 | E38: 0.9516826272 | F38: 0.849322319 | G38: 0.8667101264 | H38: 0.8009917736 | I38: 0.7866293788 | J38: 0.8089389205 | K38: 0.9203860164 | L38: 0.7012970672 | M38: 0.9989709854 | N38: 0.9543928915 | O38: 0.9540749192
A39: 35 | B39: 0.9387837052 | C39: 0.9412916899 | D39: 0.9277988076 | E39: 0.9485548735 | F39: 0.8409438133 | G39: 0.8595297933 | H39: 0.7887665033 | I39: 0.7759327888 | J39: 0.7983769178 | K39: 0.9151573181 | L39: 0.7110450836 | M39: 0.9990789294 | N39: 0.9576367434 | O39: 0.9497392774
A40: 36 | B40: 0.9351996183 | C40: 0.9378827214 | D40: 0.9238966107 | E40: 0.9453092217 | F40: 0.8324493766 | G40: 0.8522248268 | H40: 0.7763593197 | I40: 0.7651324272 | J40: 0.7877460122 | K40: 0.909755528 | L40: 0.7211362515 | M40: 0.9990764856 | N40: 0.9609149877 | O40: 0.9451426268
A41: 37 | B41: 0.9315292239 | C41: 0.9343727231 | D41: 0.9198843837 | E41: 0.9419443011 | F41: 0.8238503933 | G41: 0.8447995782 | H41: 0.7637825012 | I41: 0.7542403936 | J41: 0.7770500183 | K41: 0.9041815996 | L41: 0.7315392777 | M41: 0.9989522099 | N41: 0.9642006231 | O41: 0.9402830005
A42: 38 | B42: 0.9277737141 | C42: 0.9307613969 | D42: 0.9157596231 | E42: 0.9384589791 | F42: 0.8151549101 | G42: 0.8372609019 | H42: 0.7510482073 | I42: 0.7432690263 | J42: 0.7662928104 | K42: 0.8984364867 | L42: 0.7422229288 | M42: 0.9986938834 | N42: 0.9674668271 | O42: 0.9351555109
A43: 39 | B43: 0.9239342213 | C43: 0.9270489216 | D43: 0.9115198851 | E43: 0.9348515868 | F43: 0.8063703775 | G43: 0.8296144009 | H43: 0.73816818 | I43: 0.7322307825 | J43: 0.7554780841 | K43: 0.8925204873 | L43: 0.7531555538 | M43: 0.9982885718 | N43: 0.9706871349 | O43: 0.9297590852
A44: 40 | B44: 0.9200118184 | C44: 0.92323488 | D44: 0.9071629047 | E44: 0.9311211109 | F44: 0.7975050211 | G44: 0.8218662739 | H44: 0.7251548767 | I44: 0.7211374044 | J44: 0.7446098924 | K44: 0.886436522 | L44: 0.7643063367 | M44: 0.9977223873 | N44: 0.9738343663 | O44: 0.9240913987
A45: 41 | B45: 0.9160072803 | C45: 0.9193187952 | D45: 0.9026862979 | E45: 0.927267015 | F45: 0.7885658741 | G45: 0.8140220046 | H45: 0.7120200992 | I45: 0.710000813 | J45: 0.7336919904 | K45: 0.8801860213 | L45: 0.7756433881 | M45: 0.9969850183 | N45: 0.976882116 | O45: 0.9181519747
A46: 42 | B46: 0.9119217992 | C46: 0.9153007269 | D46: 0.8980876207 | E46: 0.9232878089 | F46: 0.7795609832 | G46: 0.8060879111 | H46: 0.6987761855 | I46: 0.6988319755 | J46: 0.7227283716 | K46: 0.8737701178 | L46: 0.7871355938 | M46: 0.9960609078 | N46: 0.9798035616 | O46: 0.9119408131
A47: 43 | B47: 0.9077565074 | C47: 0.9111801982 | D47: 0.8933644295 | E47: 0.9191830754 | F47: 0.7704979181 | G47: 0.7980691791 | H47: 0.6854349971 | I47: 0.6876419187 | J47: 0.7117229104 | K47: 0.8671913743 | L47: 0.7987452829 | M47: 0.9949393868 | N47: 0.9825718211 | O47: 0.9054582715
A48: 44 | B48: 0.9035124183 | C48: 0.9069578052 | D48: 0.8885142803 | E48: 0.9149513245 | F48: 0.7613841295 | G48: 0.7899724841 | H48: 0.6720088124 | I48: 0.6764423251 | J48: 0.700679183 | K48: 0.8604524136 | L48: 0.8104131473 | M48: 0.9936066866 | N48: 0.9851602506 | O48: 0.8987056017
A49: 45 | B49: 0.8991904259 | C49: 0.9026330709 | D49: 0.8835350871 | E49: 0.9105929136 | F49: 0.7522276044 | G49: 0.7818033099 | H49: 0.6585094929 | I49: 0.6652426124 | J49: 0.6896011829 | K49: 0.8535559177 | L49: 0.8220763029 | M49: 0.9920511842 | N49: 0.9875419683 | O49: 0.8916851878
A50: 46 | B50: 0.8947917223 | C50: 0.8982058764 | D50: 0.8784242272 | E50: 0.906106174 | F50: 0.7430356741 | G50: 0.7735667825 | H50: 0.6449490786 | I50: 0.6540536284 | J50: 0.6784930825 | K50: 0.8465051055 | L50: 0.8336714481 | M50: 0.9902607799 | N50: 0.9896903302 | O50: 0.8843994737
A51: 47 | B51: 0.8903172016 | C51: 0.8936762214 | D51: 0.8731793165 | E51: 0.9014918208 | F51: 0.7338160872 | G51: 0.7652692795 | H51: 0.6313400269 | I51: 0.6428846121 | J51: 0.6673582792 | K51: 0.8393021822 | L51: 0.8451351622 | M51: 0.9882242084 | N51: 0.9915786333 | O51: 0.876852572
A52: 48 | B52: 0.8857679963 | C52: 0.8890442252 | D52: 0.8677976727 | E52: 0.8967490196 | F52: 0.7245764732 | G52: 0.7569165826 | H52: 0.6176941991 | I52: 0.6317451 | J52: 0.6562011242 | K52: 0.8319507837 | L52: 0.8564043224 | M52: 0.9859297276 | N52: 0.9931798761 | O52: 0.8690481782
A53: 49 | B53: 0.8811452985 | C53: 0.8843100071 | D53: 0.862277627 | E53: 0.8918778896 | F53: 0.7153245211 | G53: 0.7485138178 | H53: 0.6040235758 | I53: 0.6206445098 | J53: 0.6450247765 | K53: 0.8244554996 | L53: 0.867415985 | M53: 0.9833672047 | N53: 0.9944675939 | O53: 0.8609911203
A54: 50 | B54: 0.8764497042 | C54: 0.8794736266 | D54: 0.8566163182 | E54: 0.8868787885 | F54: 0.7060679793 | G54: 0.7400658727 | H54: 0.5903401971 | I54: 0.6095908284 | J54: 0.6338338852 | K54: 0.816819787 | L54: 0.8781095902 | M54: 0.9805269837 | N54: 0.9954149045 | O54: 0.8526871204
A55: 51 | B55: 0.8716828823 | C55: 0.8745353222 | D55: 0.8508113027 | E55: 0.8817511797 | F55: 0.6968142986 | G55: 0.731579423 | H55: 0.5766564012 | I55: 0.5985931754 | J55: 0.6226295233 | K55: 0.8090468049 | L55: 0.8884558119 | M55: 0.9773995876 | N55: 0.9959996943 | O55: 0.8441420197
A56: 52 | B56: 0.8668454289 | C56: 0.8694952726 | D56: 0.8448603749 | E56: 0.8764967918 | F56: 0.6875712872 | G56: 0.7230595946 | H56: 0.5629842281 | I56: 0.5876591206 | J56: 0.6114100814 | K56: 0.8011419177 | L56: 0.8984410601 | M56: 0.9739755988 | N56: 0.9962194003 | O56: 0.8353623748
A57: 53 | B57: 0.8619384766 | C57: 0.864353478 | D57: 0.8387610912 | E57: 0.8711143136 | F57: 0.6783462763 | G57: 0.7145105004 | H57: 0.5493357182 | I57: 0.5767961144 | J57: 0.6001737118 | K57: 0.7931088209 | L57: 0.9080523405 | M57: 0.9702479839 | N57: 0.9960764067 | O57: 0.8263558745
A58: 54 | B58: 0.856963098 | C58: 0.8591108918 | D58: 0.8325110078 | E58: 0.8656051755 | F58: 0.6691473722 | G58: 0.705937922 | H58: 0.5357292891 | I58: 0.5660117269 | J58: 0.5889186263 | K58: 0.7849522829 | L58: 0.9172762418 | M58: 0.9662101865 | N58: 0.99557274 | O58: 0.8171300888
A59: 55 | B59: 0.8519210815 | C59: 0.8537675142 | D59: 0.8261078 | E59: 0.8599706888 | F59: 0.6599819064 | G59: 0.6973472238 | H59: 0.5221924782 | I59: 0.5553122163 | J59: 0.5776427984 | K59: 0.7766782045 | L59: 0.9260998296 | M59: 0.9618548155 | N59: 0.9947104268 | O59: 0.8076934218
A60: 56 | B60: 0.8468155861 | C60: 0.848323822 | D60: 0.8195490241 | E60: 0.8542112708 | F60: 0.6508576274 | G60: 0.6887431145 | H60: 0.5087531805 | I60: 0.5447044969 | J60: 0.5663444996 | K60: 0.7682909966 | L60: 0.9345096329 | M60: 0.9571772814 | N60: 0.993491613 | O60: 0.7980546951
A61: 57 | B61: 0.8416504264 | C61: 0.8427801132 | D61: 0.8128324151 | E61: 0.8483275771 | F61: 0.6417822242 | G61: 0.6801301241 | H61: 0.4954392016 | I61: 0.5341944098 | J61: 0.555021584 | K61: 0.7597957253 | L61: 0.9424927172 | M61: 0.9521728158 | N61: 0.9919184444 | O61: 0.7882230282
A62: 58 | B62: 0.8364288807 | C62: 0.8371372819 | D62: 0.80595541 | E62: 0.8423212767 | F62: 0.632763207 | G62: 0.6715127826 | H62: 0.4822785854 | I62: 0.5237882137 | J62: 0.5436723828 | K62: 0.751198113 | L62: 0.9500359096 | M62: 0.9468380213 | N62: 0.9899932455 | O62: 0.7782084942
A63: 59 | B63: 0.8311545253 | C63: 0.8313958049 | D63: 0.7989156246 | E63: 0.8361936808 | F63: 0.6238083243 | G63: 0.6628962755 | H63: 0.4692991972 | I63: 0.5134906173 | J63: 0.5322949886 | K63: 0.7425038218 | L63: 0.9571246663 | M63: 0.9411709905 | N63: 0.9877179238 | O63: 0.7680193186
A64: 60 | B64: 0.8258308768 | C64: 0.8255560994 | D64: 0.7917119861 | E64: 0.8299462199 | F64: 0.6149247885 | G64: 0.6542847157 | H64: 0.4565289915 | I64: 0.5033068061 | J64: 0.5208873749 | K64: 0.733718574 | L64: 0.9637420591 | M64: 0.9351698756 | N64: 0.9850950422 | O64: 0.7576680183
A65: 61 | B65: 0.8204615712 | C65: 0.8196191788 | D65: 0.7843515873 | E65: 0.8235803843 | F65: 0.6061195731 | G65: 0.6456816196 | H65: 0.4439960122 | I65: 0.493241787 | J65: 0.5094478726 | K65: 0.7248482704 | L65: 0.9698703255 | M65: 0.9288340211 | N65: 0.9821262102 | O65: 0.7471631765
A66: 62 | B66: 0.8150501251 | C66: 0.8135858774 | D66: 0.7768445015 | E66: 0.8170980811 | F66: 0.5973997712 | G66: 0.6370924115 | H66: 0.4317280948 | I66: 0.4832994938 | J66: 0.4979743063 | K66: 0.7158979177 | L66: 0.9754914645 | M66: 0.9221639037 | N66: 0.9788139907 | O66: 0.7365174294
A67: 63 | B67: 0.8095998168 | C67: 0.8074572086 | D67: 0.769200623 | E67: 0.8105006814 | F67: 0.5887721777 | G67: 0.6285204291 | H67: 0.4197531044 | I67: 0.4734841883 | J67: 0.4864650965 | K67: 0.706874609 | L67: 0.980587475 | M67: 0.9151610732 | N67: 0.9751602316 | O67: 0.7257403135
A68: 64 | B68: 0.8041145802 | C68: 0.8012335896 | D68: 0.7614300251 | E68: 0.8037906885 | F68: 0.5802438259 | G68: 0.6199697256 | H68: 0.4080992043 | I68: 0.4637993872 | J68: 0.4749181867 | K68: 0.6977844238 | L68: 0.9851408331 | M68: 0.9078282714 | N68: 0.9711671382 | O68: 0.7148448229
A69: 65 | B69: 0.7985975742 | C69: 0.7949162126 | D69: 0.7535430193 | E69: 0.7969694734 | F69: 0.5718215108 | G69: 0.6114432216 | H69: 0.3967942894 | I69: 0.4542486072 | J69: 0.46333161 | K69: 0.6886339188 | L69: 0.9891335375 | M69: 0.900169611 | N69: 0.966837214 | O69: 0.7038396001
A70: 66 | B70: 0.7930526733 | C70: 0.7885059714 | D70: 0.7455495 | E70: 0.790040195 | F70: 0.5635123253 | G70: 0.6029450297 | H70: 0.3858659863 | I70: 0.44483459 | J70: 0.451703608 | K70: 0.6794282794 | L70: 0.9925447264 | M70: 0.8921883702 | N70: 0.9621722471 | O70: 0.6927381754
A71: 67 | B71: 0.7874830961 | C71: 0.782004416 | D71: 0.7374597192 | E71: 0.7830045819 | F71: 0.5553231239 | G71: 0.5944787264 | H71: 0.3753426969 | I71: 0.435560286 | J71: 0.4400323033 | K71: 0.6701745987 | L71: 0.9953491863 | M71: 0.8838902712 | N71: 0.957174443 | O71: 0.6815513968
A72: 68 | B72: 0.7818924785 | C72: 0.7754126787 | D72: 0.7292835712 | E72: 0.7758653164 | F72: 0.5472608805 | G72: 0.5860472918 | H72: 0.3652521074 | I72: 0.4264281988 | J72: 0.4283187091 | K72: 0.6608793736 | L72: 0.9975216443 | M72: 0.8752822876 | N72: 0.9518459474 | O72: 0.6702907085
A73: 69 | B73: 0.7762845159 | C73: 0.7687320113 | D73: 0.721031189 | E73: 0.7686241269 | F73: 0.5393326879 | G73: 0.5776535273 | H73: 0.3556221128 | I73: 0.4174404144 | J73: 0.4165871143 | K73: 0.6515492201 | L73: 0.9990367679 | M73: 0.8663719893 | N73: 0.9461889657 | O73: 0.6589679122
A74: 70 | B74: 0.7706626058 | C74: 0.7619634271 | D74: 0.7127128243 | E74: 0.7612841725 | F74: 0.5315452218 | G74: 0.5693007112 | H74: 0.3464801908 | I74: 0.4085986018 | J74: 0.4048717916 | K74: 0.6421896219 | L74: 0.9998691649 | M74: 0.8571668267 | N74: 0.9402057034 | O74: 0.6475942135
A75: 71 | B75: 0.765030086 | C75: 0.7551090717 | D75: 0.7043383718 | E75: 0.7538477182 | F75: 0.5239055753 | G75: 0.5609911084 | H75: 0.3378295004 | I75: 0.3999047875 | J75: 0.3932079077 | K75: 0.6328070164 | L75: 1 | M75: 0.8476756215 | N75: 0.9338993196 | O75: 0.6361820102
A76: 72 | B76: 0.7593908906 | C76: 0.748169601 | D76: 0.6959180832 | E76: 0.7463179827 | F76: 0.5164207816 | G76: 0.5527278781 | H76: 0.329643786 | I76: 0.3913598955 | J76: 0.3816297054 | K76: 0.6234089136 | L76: 0.9994517445 | M76: 0.8379089832 | N76: 0.9272823313 | O76: 0.6247413754
A77: 73 | B77: 0.7537481189 | C77: 0.7411471009 | D77: 0.6874619722 | E77: 0.7386972904 | F77: 0.5090975761 | G77: 0.5445128083 | H77: 0.3218945861 | I77: 0.3829652965 | J77: 0.3701722026 | K77: 0.6140000224 | L77: 0.9982639171 | M77: 0.8278772831 | N77: 0.9203725012 | O77: 0.6132841706
A78: 74 | B78: 0.7481055856 | C78: 0.7340431809 | D78: 0.6789801121 | E78: 0.7309895158 | F78: 0.5019431114 | G78: 0.5363479853 | H78: 0.3145535886 | I78: 0.3747217059 | J78: 0.3588699102 | K78: 0.6045877934 | L78: 0.9964756195 | M78: 0.8175920248 | N78: 0.9131875915 | O78: 0.6018214822
A79: 75 | B79: 0.7424669266 | C79: 0.7268596888 | D79: 0.6704825163 | E79: 0.7231963277 | F79: 0.4949642122 | G79: 0.5282363892 | H79: 0.3075926006 | I79: 0.3666296899 | J79: 0.3477574885 | K79: 0.5951780081 | L79: 0.9941260722 | M79: 0.807064712 | N79: 0.9057448879 | O79: 0.5903645754
A80: 76 | B80: 0.7368353009 | C80: 0.7195984125 | D80: 0.6619793773 | E80: 0.7153208852 | F80: 0.4881677926 | G80: 0.5201789141 | H80: 0.3009831905 | I80: 0.3586898148 | J80: 0.3368696868 | K80: 0.5857766271 | L80: 0.9912545556 | M80: 0.7963088155 | N80: 0.8980624509 | O80: 0.5789238811
A81: 77 | B81: 0.7312145233 | C81: 0.7122612 | D81: 0.6534808278 | E81: 0.7073668838 | F81: 0.4815608859 | G81: 0.5121778846 | H81: 0.2946971059 | I81: 0.3509021997 | J81: 0.3262413144 | K81: 0.5763890743 | L81: 0.9879005289 | M81: 0.7853369117 | N81: 0.8901576852 | O81: 0.5675097108
A82: 78 | B82: 0.725607872 | C82: 0.7048500776 | D82: 0.6449968219 | E82: 0.6993368268 | F82: 0.4751504064 | G82: 0.5042340755 | H82: 0.288706094 | I82: 0.3432663977 | J82: 0.3159069121 | K82: 0.5670214891 | L82: 0.9841032127 | M82: 0.7741634846 | N82: 0.882048115 | O82: 0.5561333895
A83: 79 | B83: 0.7200192213 | C83: 0.6973674893 | D83: 0.6365373731 | E83: 0.6912338734 | F83: 0.4689432979 | G83: 0.4963496029 | H83: 0.2829816043 | I83: 0.3357827067 | J83: 0.3059011996 | K83: 0.5576806068 | L83: 0.979901947 | M83: 0.762802422 | N83: 0.8737517411 | O83: 0.5448049903
A84: 80 | B84: 0.7144517899 | C84: 0.6898152232 | D84: 0.6281129122 | E84: 0.6830615997 | F84: 0.4629465044 | G84: 0.4885253012 | H84: 0.277495712 | I84: 0.3284504116 | J84: 0.296258986 | K84: 0.5483698249 | L84: 0.9753357141 | M84: 0.7512692213 | N84: 0.8652857894 | O84: 0.5335336924
A85: 81 | B85: 0.7089092731 | C85: 0.682195425 | D85: 0.6197332144 | E85: 0.6748223901 | F85: 0.4571669996 | G85: 0.4807623923 | H85: 0.2722196877 | I85: 0.3212687075 | J85: 0.287014693 | K85: 0.539096117 | L85: 0.9704442115 | M85: 0.7395768166 | N85: 0.8566683801 | O85: 0.5223289728
A86: 82 | B86: 0.7033951879 | C86: 0.6745110154 | D86: 0.611407876 | E86: 0.6665201783 | F86: 0.4516116977 | G86: 0.4730617106 | H86: 0.2671253979 | I86: 0.3142367899 | J86: 0.2782031894 | K86: 0.5298643112 | L86: 0.9652665408 | M86: 0.7277433872 | N86: 0.8479167392 | O86: 0.5112009048
A87: 83 | B87: 0.6979141235 | C87: 0.6667643785 | D87: 0.6031420231 | E87: 0.6581575274 | F87: 0.4462875128 | G87: 0.4654237032 | H87: 0.2621867955 | I87: 0.3073539138 | J87: 0.2698591948 | K87: 0.520678103 | L87: 0.9598419226 | M87: 0.7157834172 | N87: 0.839048629 | O87: 0.5001580715
A88: 84 | B88: 0.6924718022 | C88: 0.6589577794 | D88: 0.5949382782 | E88: 0.6497380733 | F88: 0.4412013888 | G88: 0.4578490853 | H88: 0.2573919892 | I88: 0.3006185889 | J88: 0.2619994879 | K88: 0.5115433931 | L88: 0.9542096969 | M88: 0.7037116885 | N88: 0.8300817526 | O88: 0.4892095923
A89: 85 | B89: 0.6870738864 | C89: 0.6510940194 | D89: 0.5867995024 | E89: 0.6412649155 | F89: 0.4363569021 | G89: 0.4503385127 | H89: 0.2527342141 | I89: 0.2940290868 | J89: 0.2545875907 | K89: 0.5024647713 | L89: 0.9484090248 | M89: 0.6915460825 | N89: 0.8210337529 | O89: 0.4783636928
A90: 86 | B90: 0.6817265749 | C90: 0.643176198 | D90: 0.5787283778 | E90: 0.6327416897 | F90: 0.431732893 | G90: 0.4428921938 | H90: 0.2482067943 | I90: 0.2875841856 | J90: 0.2475765049 | K90: 0.493445605 | L90: 0.9424796039 | M90: 0.6793022752 | N90: 0.8119222734 | O90: 0.4676286876
A91: 87 | B91: 0.6764351726 | C91: 0.6352068186 | D91: 0.5707278252 | E91: 0.6241707802 | F91: 0.4272974133 | G91: 0.4355101883 | H91: 0.2438030988 | I91: 0.2812818885 | J91: 0.2409193963 | K91: 0.4844905138 | L91: 0.9364566016 | M91: 0.6669967175 | N91: 0.8027649573 | O91: 0.4570117891
A92: 88 | B92: 0.6712058783 | C92: 0.6271890998 | D92: 0.5628005862 | E92: 0.6155558825 | F92: 0.4230186939 | G92: 0.4281922877 | H92: 0.2395163029 | I92: 0.2751207054 | J92: 0.2345694005 | K92: 0.4756026864 | L92: 0.9303405544 | M92: 0.6546438932 | N92: 0.7935794477 | O92: 0.4465211928
A93: 89 | B93: 0.6660441756 | C93: 0.6191257834 | D93: 0.5549492836 | E93: 0.6069008708 | F93: 0.4188649058 | G93: 0.4209390879 | H93: 0.2353398055 | I93: 0.2690983117 | J93: 0.228479594 | K93: 0.4667856991 | L93: 0.9241100042 | M93: 0.6422619224 | N93: 0.7843832688 | O93: 0.436163187
A94: 90 | B94: 0.6609563231 | C94: 0.6110205054 | D94: 0.5471770167 | E94: 0.5982081294 | F94: 0.4148043096 | G94: 0.4137496948 | H94: 0.2312670052 | I94: 0.2632119954 | J94: 0.2226033062 | K94: 0.458042711 | L94: 0.9177440889 | M94: 0.6298658848 | N94: 0.7751940637 | O94: 0.4259451926
A95: 91 | B95: 0.6559476256 | C95: 0.6028763056 | D95: 0.5394862294 | E95: 0.5894814134 | F95: 0.4108048081 | G95: 0.4066242874 | H95: 0.2272911072 | I95: 0.2574597895 | J95: 0.2168934941 | K95: 0.4493766129 | L95: 0.9112214099 | M95: 0.6174712777 | N95: 0.7660264954 | O95: 0.4158731997
A96: 92 | B96: 0.651024282 | C96: 0.5946967006 | D96: 0.5318799019 | E96: 0.5807238817 | F96: 0.406834811 | G96: 0.3995622098 | H96: 0.2234054953 | I96: 0.2518394887 | J96: 0.211303398 | K96: 0.4407902956 | L96: 0.9045208668 | M96: 0.6050934196 | N96: 0.7568811599 | O96: 0.4059529901
A97: 93 | B97: 0.6461917758 | C97: 0.5864853859 | D97: 0.5243607163 | E97: 0.5719388127 | F97: 0.4028623104 | G97: 0.3925626874 | H97: 0.2196034938 | I97: 0.2463479936 | J97: 0.2057860941 | K97: 0.4322853982 | L97: 0.8976214187 | M97: 0.5927482247 | N97: 0.7477550771 | O97: 0.3961910009
A98: 94 | B98: 0.6414561272 | C98: 0.5782459974 | D98: 0.5169314146 | E98: 0.5631297827 | F98: 0.3988555968 | G98: 0.3856258094 | H98: 0.2158782929 | I98: 0.2409822047 | J98: 0.2002947032 | K98: 0.4238640964 | L98: 0.8905016073 | M98: 0.5804497004 | N98: 0.7386454454 | O98: 0.3865912855
A99: 95 | B99: 0.6368231773 | C99: 0.5699818134 | D99: 0.5095947981 | E99: 0.5543000102 | F99: 0.3947826922 | G99: 0.3787505925 | H99: 0.2122233957 | I99: 0.235740006 | J99: 0.1947824955 | K99: 0.415528506 | L99: 0.8831403919 | M99: 0.5682123899 | N99: 0.7295489864 | O99: 0.3771590889
A100: 96 | B100: 0.6322985888 | C100: 0.5616971254 | D100: 0.5023537278 | E100: 0.5454521775 | F100: 0.3906117976 | G100: 0.3719362915 | H100: 0.2086320966 | I100: 0.2306174934 | J100: 0.1892025024 | K100: 0.4072790146 | L100: 0.8755166718 | M100: 0.5560498238 | N100: 0.7204630777 | O100: 0.367898792
A101: 97 | B101: 0.6278882027 | C101: 0.5533961058 | D101: 0.495210886 | E101: 0.5365909934 | F101: 0.3863111138 | G101: 0.3651823997 | H101: 0.2050976008 | I101: 0.225612402 | J101: 0.1835079044 | K101: 0.3991174102 | L101: 0.8676091082 | M101: 0.5439751744 | N101: 0.7113847389 | O101: 0.3588139117
A102: 98 | B102: 0.6235979199 | C102: 0.5450825095 | D102: 0.4881691933 | E102: 0.5277191997 | F102: 0.3818486929 | G102: 0.3584879935 | H102: 0.201613307 | I102: 0.2207206935 | J102: 0.1776541024 | K102: 0.3910441995 | L102: 0.8593964218 | M102: 0.5320019126 | N102: 0.7023108705 | O102: 0.3499084115
A103: 99 | B103: 0.619433403 | C103: 0.5367606878 | D103: 0.481231302 | E103: 0.5188400149 | F103: 0.3771927059 | G103: 0.3518520892 | H103: 0.1981724948 | I103: 0.2159388959 | J103: 0.1716341972 | K103: 0.3830603957 | L103: 0.8508576313 | M103: 0.5201405883 | N103: 0.6932387306 | O103: 0.3411847949
A104: 100 | B104: 0.6154006124 | C104: 0.5284351707 | D104: 0.4744003117 | E104: 0.5099573135 | F104: 0.3723115027 | G104: 0.3452740908 | H104: 0.1947685927 | I104: 0.2112639993 | J104: 0.1654718071 | K104: 0.3751653135 | L104: 0.841971636 | M104: 0.5084033012 | N104: 0.6841653391 | O104: 0.3326457143
A105: 101 | B105: 0.6115052104 | C105: 0.5201104283 | D105: 0.4676840007 | E105: 0.5010746121 | F105: 0.3671917021 | G105: 0.3387531936 | H105: 0.1913948059 | I105: 0.2066922933 | J105: 0.1591916978 | K105: 0.3673593998 | L105: 0.8327167992 | M105: 0.4968000054 | N105: 0.6750876559 | O105: 0.3242926896
A106: 102 | B106: 0.6077532172 | C106: 0.511790812 | D106: 0.4610948861 | E106: 0.4921953082 | F106: 0.3618823886 | G106: 0.3322888911 | H106: 0.188044399 | I106: 0.2022202015 | J106: 0.152818501 | K106: 0.3596422076 | L106: 0.8230723779 | M106: 0.4853400886 | N106: 0.6660028201 | O106: 0.3161276877
A107: 103 | B107: 0.6041501164 | C107: 0.5034809709 | D107: 0.4546453953 | E107: 0.4833233953 | F107: 0.3564454913 | G107: 0.3258799016 | H107: 0.1847108006 | I107: 0.1978437006 | J107: 0.1463768929 | K107: 0.3520129919 | L107: 0.813016914 | M107: 0.4740327001 | N107: 0.6569077917 | O107: 0.3081513047
A108: 104 | B108: 0.6007006168 | C108: 0.4951865077 | D108: 0.4483479857 | E108: 0.4744623899 | F108: 0.3509429097 | G108: 0.3195258081 | H108: 0.1813905984 | I108: 0.1935594976 | J108: 0.1398915052 | K108: 0.3444716036 | L108: 0.8025294261 | M108: 0.4628849924 | N108: 0.6477997693 | O108: 0.3003636003
A109: 105 | B109: 0.5974081755 | C109: 0.4869113863 | D109: 0.4422149956 | E109: 0.465616405 | F109: 0.3454361856 | G109: 0.3132258058 | H109: 0.1780903935 | I109: 0.1893634051 | J109: 0.1333868951 | K109: 0.3370159864 | L109: 0.7915985892 | M109: 0.4519037902 | N109: 0.6386756534 | O109: 0.2927645147
A110: 106 | B110: 0.5942764878 | C110: 0.4786618948 | D110: 0.4362589121 | E110: 0.4567889869 | F110: 0.3399874866 | G110: 0.3069795072 | H110: 0.1748183966 | I110: 0.1852519959 | J110: 0.1268879026 | K110: 0.3296459913 | L110: 0.7802476496 | M110: 0.4410949945 | N110: 0.629532583 | O110: 0.285353303
A111: 107 | B111: 0.5913090706 | C111: 0.4704420865 | D111: 0.4304921925 | E111: 0.4479844868 | F111: 0.3346587121 | G111: 0.3007864058 | H111: 0.1715832949 | I111: 0.1812213063 | J111: 0.1204190999 | K111: 0.3223595023 | L111: 0.7685081388 | M111: 0.4304628074 | N111: 0.6203677566 | O111: 0.2781285048
A112: 108 | B112: 0.5885093212 | C112: 0.4622581005 | D112: 0.4249272943 | E112: 0.4392069876 | F112: 0.3295116127 | G112: 0.2946459055 | H112: 0.1683934033 | I112: 0.1772672981 | J112: 0.1140051037 | K112: 0.3151552081 | L112: 0.7564107539 | M112: 0.4200108945 | N112: 0.611178015 | O112: 0.2710874975
A113: 109 | B113: 0.5858808756 | C113: 0.454115212 | D113: 0.4195767045 | E113: 0.430460602 | F113: 0.3246077895 | G113: 0.2885577083 | H113: 0.1652572006 | I113: 0.1733864993 | J113: 0.1076695025 | K113: 0.308031708 | L113: 0.743986788 | M113: 0.4097416997 | N113: 0.6019606165 | O113: 0.2642279863
A114: 110 | B114: 0.5834270716 | C114: 0.4460189044 | D114: 0.4144529104 | E114: 0.4217498899 | F114: 0.3200095892 | G114: 0.2825219929 | H114: 0.1621831954 | I114: 0.1695750952 | J114: 0.1014325991 | K114: 0.3009870052 | L114: 0.7312672958 | M114: 0.3996565938 | N114: 0.5927124615 | O114: 0.2575463951
A115: 111 | B115: 0.5811517239 | C115: 0.4379754066 | D115: 0.4095681012 | E115: 0.4130794108 | F115: 0.3157786131 | G115: 0.2765384018 | H115: 0.1591795981 | I115: 0.1658291966 | J115: 0.09531421959 | K115: 0.2940194905 | L115: 0.7182836896 | M115: 0.3897562027 | N115: 0.5834294969 | O115: 0.2510387003
A116: 112 | B116: 0.5790581107 | C116: 0.4299901128 | D116: 0.4049350023 | E116: 0.4044539034 | F116: 0.31196329 | G116: 0.2706072927 | H116: 0.1562550962 | I116: 0.1621454954 | J116: 0.08933427185 | K116: 0.2871272862 | L116: 0.7050668454 | M116: 0.3800395131 | N116: 0.5741060602 | O116: 0.2447008044
A117: 113 | B117: 0.5771489739 | C117: 0.4220691919 | D117: 0.4005660117 | E117: 0.3958779871 | F117: 0.3085590899 | G117: 0.2647291124 | H117: 0.1534180045 | I117: 0.1585199982 | J117: 0.08351258934 | K117: 0.2803083956 | L117: 0.6916478178 | M117: 0.3705042005 | N117: 0.5647357735 | O117: 0.2385264933
A118: 114 | B118: 0.5754231215 | C118: 0.4142188132 | D118: 0.3964734077 | E118: 0.3873569071 | F118: 0.3055486083 | G118: 0.258903414 | H118: 0.1506769061 | I118: 0.1549499035 | J118: 0.0778690502 | K118: 0.2735615075 | L118: 0.6780579595 | M118: 0.3611479104 | N118: 0.5553120802 | O118: 0.2325108051
A119: 115 | B119: 0.5738782287 | C119: 0.4064449966 | D119: 0.3926697969 | E119: 0.3788957894 | F119: 0.3029142022 | G119: 0.2531321943 | H119: 0.1480399966 | I119: 0.1514313072 | J119: 0.07242351025 | K119: 0.2668842077 | L119: 0.6643282061 | M119: 0.3519667983 | N119: 0.5458290795 | O119: 0.2266469002
A120: 116 | B120: 0.5725122094 | C120: 0.3987542093 | D120: 0.3891676068 | E120: 0.370500505 | F120: 0.3006384075 | G120: 0.2474153936 | H120: 0.1455159038 | I120: 0.1479616016 | J120: 0.06719581783 | K120: 0.2602756023 | L120: 0.6504898506 | M120: 0.3429555893 | N120: 0.5362800358 | O120: 0.2209282964
A121: 117 | B121: 0.5713226795 | C121: 0.3911530077 | D121: 0.3859792054 | E121: 0.3621760905 | F121: 0.2987037897 | G121: 0.2417549044 | H121: 0.1431130022 | I121: 0.1445372999 | J121: 0.06220582873 | K121: 0.2537338138 | L121: 0.6365700138 | M121: 0.3341087103 | N121: 0.5266589887 | O121: 0.2153470069
A122: 118 | B122: 0.570307672 | C122: 0.3836475015 | D122: 0.3831171095 | E122: 0.3539286852 | F122: 0.2970929146 | G122: 0.2361513972 | H122: 0.1408398002 | I122: 0.1411561072 | J122: 0.05747340992 | K122: 0.2472577989 | L122: 0.6225688149 | M122: 0.3254201114 | N122: 0.5169595603 | O122: 0.2098955959
A123: 119 | B123: 0.569464922 | C123: 0.3762448132 | D123: 0.3805938065 | E123: 0.345764488 | F123: 0.2957879901 | G123: 0.230607301 | H123: 0.1387045979 | I123: 0.1378148049 | J123: 0.05301842839 | K123: 0.2408462018 | L123: 0.6084743923 | M123: 0.3168823123 | N123: 0.5071753728 | O123: 0.2045657039
A124: 120 | B124: 0.5687919855 | C124: 0.368951112 | D124: 0.3784216046 | E124: 0.3376897871 | F124: 0.2947717905 | G124: 0.2251241058 | H124: 0.1367159933 | I124: 0.1345116049 | J124: 0.04886072874 | K124: 0.2344985008 | L124: 0.5942750036 | M124: 0.3084881902 | N124: 0.4973002571 | O124: 0.1993488073
A125: 121 | B125: 0.5682868958 | C125: 0.3617734909 | D125: 0.3766131103 | E125: 0.3297109902 | F125: 0.2940289974 | G125: 0.2197038978 | H125: 0.1348824054 | I125: 0.1312443018 | J125: 0.04501654953 | K125: 0.2282139063 | L125: 0.5799586084 | M125: 0.3002286851 | N125: 0.487327895 | O125: 0.1942360997
A126: 122 | B126: 0.5679464936 | C126: 0.3547186852 | D126: 0.3751806915 | E126: 0.3218351007 | F126: 0.2935489118 | G126: 0.2143494934 | H126: 0.1332121044 | I126: 0.1280110031 | J126: 0.04148244858 | K126: 0.2219928056 | L126: 0.5655130472 | M126: 0.292095989 | N126: 0.4772519683 | O126: 0.1892185956
A127: 123 | B127: 0.567767024 | C127: 0.3477934897 | D127: 0.3741368055 | E127: 0.3140690029 | F127: 0.2933216095 | G127: 0.2090636045 | H127: 0.1317137927 | I127: 0.1248098016 | J127: 0.03824833035 | K127: 0.2158346027 | L127: 0.5509267563 | M127: 0.2840811014 | N127: 0.4670662184 | O127: 0.1842873991
A128: 124 | B128: 0.5677446723 | C128: 0.3410044909 | D128: 0.3734939098 | E128: 0.306420505 | F128: 0.2933368981 | G128: 0.2038495988 | H128: 0.1303956956 | I128: 0.1216399968 | J128: 0.03530408815 | K128: 0.2097405046 | L128: 0.5361878145 | M128: 0.2761752009 | N128: 0.4567642377 | O128: 0.1794334054
A129: 125 | B129: 0.5678756833 | C129: 0.3343588114 | D129: 0.3732643127 | E129: 0.2988967001 | F129: 0.2935847938 | G129: 0.1987106055 | H129: 0.1292663068 | I129: 0.1185003966 | J129: 0.03263963014 | K129: 0.2037114054 | L129: 0.5212841219 | M129: 0.2683689892 | N129: 0.4463398869 | O129: 0.1746474057
A130: 126 | B130: 0.5681561232 | C130: 0.3278628886 | D130: 0.3734501898 | E130: 0.2915062904 | F130: 0.2940553129 | G130: 0.1936510056 | H130: 0.1283341944 | I130: 0.1153905988 | J130: 0.03024484962 | K130: 0.1977486014 | L130: 0.5062037573 | M130: 0.2606540918 | N130: 0.4357867286 | O130: 0.1699211001
A131: 127 | B131: 0.5685819983 | C131: 0.3215234876 | D131: 0.374033004 | E131: 0.2842566073 | F131: 0.2947385013 | G131: 0.1886747032 | H131: 0.1276075989 | I131: 0.1123104021 | J131: 0.0281096492 | K131: 0.1918547004 | L131: 0.4909350379 | M131: 0.2530224025 | N131: 0.4250986829 | O131: 0.1652456969
A132: 128 | B132: 0.5691496134 | C132: 0.3153477013 | D132: 0.3749915063 | E132: 0.2771565914 | F132: 0.2956241071 | G132: 0.1837860048 | H132: 0.1270951033 | I132: 0.1092602015 | J132: 0.0262239296 | K132: 0.1860321015 | L132: 0.4754658935 | M132: 0.2454653978 | N132: 0.4142692231 | O132: 0.1606134027
A133: 129 | B133: 0.5698552728 | C133: 0.3093406856 | D133: 0.3763046861 | E133: 0.2702145875 | F133: 0.2967024148 | G133: 0.1789903939 | H133: 0.1268050969 | I133: 0.1062405035 | J133: 0.02457758971 | K133: 0.1802846044 | L133: 0.4597959665 | M133: 0.237975806 | N133: 0.4032922695 | O133: 0.1560162008
A134: 130 | B134: 0.5706949234 | C134: 0.3035100996 | D134: 0.3779512942 | E134: 0.2634396851 | F134: 0.2979629934 | G134: 0.1742929071 | H134: 0.1267461032 | I134: 0.103252098 | J134: 0.02316053025 | K134: 0.1746156067 | L134: 0.444016126 | M134: 0.230546996 | N134: 0.3921616826 | O134: 0.1514474005
A135: 131 | B135: 0.571664691 | C135: 0.2978611887 | D135: 0.3799102902 | E135: 0.2568404078 | F135: 0.2993960977 | G135: 0.1696992069 | H135: 0.1269264072 | I135: 0.1002971008 | J135: 0.02196264081 | K135: 0.1690302044 | L135: 0.4282604558 | M135: 0.2231733948 | N135: 0.3808908439 | O135: 0.1469002962
A136: 132 | B136: 0.57276088 | C136: 0.2923999131 | D136: 0.3821605146 | E136: 0.2504267097 | F136: 0.300991714 | G136: 0.1652152985 | H136: 0.1273545027 | I136: 0.09737742692 | J136: 0.02097382955 | K136: 0.1635338068 | L136: 0.4126632182 | M136: 0.2158495039 | N136: 0.369520762 | O136: 0.1423697025
A137: 133 | B137: 0.5739796162 | C137: 0.2871313989 | D137: 0.384680897 | E137: 0.2442070991 | F137: 0.3027395904 | G137: 0.1608479023 | H137: 0.1280345023 | I137: 0.09449593723 | J137: 0.02018399909 | K137: 0.1581331044 | L137: 0.3973587054 | M137: 0.2085714042 | N137: 0.3580945913 | O137: 0.1378514022
A138: 134 | B138: 0.5753170252 | C138: 0.2820610106 | D138: 0.3874501884 | E138: 0.2381909937 | F138: 0.3046298921 | G138: 0.1566033065 | H138: 0.1289560944 | I138: 0.0916551128 | J138: 0.01958305016 | K138: 0.1528349072 | L138: 0.3824810607 | M138: 0.201336503 | N138: 0.3466556353 | O138: 0.1333407015
A139: 135 | B139: 0.5767691731 | C139: 0.2771933079 | D139: 0.3904472888 | E139: 0.232387796 | F139: 0.3066524863 | G139: 0.1524884999 | H139: 0.1301065981 | I139: 0.0888595432 | J139: 0.01916087046 | K139: 0.1476476043 | L139: 0.3681647549 | M139: 0.1941439062 | N139: 0.3352468694 | O139: 0.128835693
A140: 136 | B140: 0.5783324242 | C140: 0.2725327015 | D140: 0.3936511874 | E140: 0.2268068045 | F140: 0.3087973893 | G140: 0.1485106051 | H140: 0.1314730048 | I140: 0.08611311764 | J140: 0.01890737005 | K140: 0.1425801069 | L140: 0.3545440506 | M140: 0.1869931966 | N140: 0.323911776 | O140: 0.1243349016
A141: 137 | B141: 0.5800017715 | C141: 0.2680819929 | D141: 0.397040695 | E141: 0.2214560062 | F141: 0.311054498 | G141: 0.1446774006 | H141: 0.1330424994 | I141: 0.08342084289 | J141: 0.01881244034 | K141: 0.1376426071 | L141: 0.341753061 | M141: 0.179886207 | N141: 0.3126935093 | O141: 0.1198384017
A142: 138 | B142: 0.5817689896 | C142: 0.2638447881 | D142: 0.4005945921 | E142: 0.216344893 | F142: 0.3134138882 | G142: 0.1409958005 | H142: 0.134802103 | I142: 0.08078824729 | J142: 0.0188660007 | K142: 0.1328459978 | L142: 0.3299185085 | M142: 0.172826305 | N142: 0.3016350451 | O142: 0.1153474972
A143: 139 | B143: 0.5836244226 | C143: 0.2598232031 | D143: 0.404291898 | E143: 0.2114807963 | F143: 0.3158654869 | G143: 0.1374733001 | H143: 0.1367388964 | I143: 0.07822126895 | J143: 0.0190579202 | K143: 0.1282020956 | L143: 0.3190576788 | M143: 0.1658183932 | N143: 0.2907799848 | O143: 0.1108653992
A144: 140 | B144: 0.5855584145 | C144: 0.2560186982 | D144: 0.4081113935 | E144: 0.206871599 | F144: 0.3183993101 | G144: 0.1341173053 | H144: 0.1388400048 | I144: 0.07572714239 | J144: 0.01937812939 | K144: 0.1237241998 | L144: 0.3091061677 | M144: 0.1588699967 | N144: 0.2801711549 | O144: 0.1063966006
A145: 141 | B145: 0.5875614285 | C145: 0.2524326146 | D145: 0.412031889 | E145: 0.202523604 | F145: 0.3210051954 | G145: 0.1309351027 | H145: 0.1410925984 | I145: 0.07331264764 | J145: 0.01981724054 | K145: 0.1194256991 | L145: 0.2999978721 | M145: 0.1519903988 | N145: 0.269851978 | O145: 0.1019480005
A146: 142 | B146: 0.5896239281 | C146: 0.2490645051 | D146: 0.4160324037 | E146: 0.1984428018 | F146: 0.3236731887 | G146: 0.1279329956 | H146: 0.1434838027 | I146: 0.0709862113 | J146: 0.02036966942 | K146: 0.1153213978 | L146: 0.2916665698 | M146: 0.1451909989 | N146: 0.2598656384 | O146: 0.09752839804
A147: 143 | B147: 0.5917363763 | C147: 0.245913893 | D147: 0.4200916886 | E147: 0.1946337968 | F147: 0.326393187 | G147: 0.125118196 | H147: 0.1460005939 | I147: 0.06875613332 | J147: 0.02103096992 | K147: 0.1114263013 | L147: 0.2840461281 | M147: 0.1384859979 | N147: 0.2502552905 | O147: 0.09314870089
A148: 144 | B148: 0.5938891768 | C148: 0.2429791987 | D148: 0.4241887927 | E148: 0.1911001056 | F148: 0.3291553855 | G148: 0.1224950999 | H148: 0.1486302018 | I148: 0.06663113832 | J148: 0.0217967499 | K148: 0.1077561006 | L148: 0.2770703545 | M148: 0.1318926066 | N148: 0.2410641631 | O148: 0.08882252127
A149: 145 | B149: 0.5960729122 | C149: 0.2402579039 | D149: 0.4283032119 | E149: 0.1878436953 | F149: 0.3319495022 | G149: 0.1200693026 | H149: 0.1513597071 | I149: 0.06462050229 | J149: 0.0226625707 | K149: 0.1043260023 | L149: 0.2706732355 | M149: 0.1254304945 | N149: 0.2323354405 | O149: 0.08456622809
A150: 146 | B150: 0.5982778072 | C150: 0.237746805 | D150: 0.4324231148 | E150: 0.1848652065 | F150: 0.3347654939 | G150: 0.1178440973 | H150: 0.1541761011 | I150: 0.0627329424 | J150: 0.02362403087 | K150: 0.1011513993 | L150: 0.2648484826 | M150: 0.1191233024 | N150: 0.2241124111 | O150: 0.08039976656
A151: 147 | B151: 0.600494504 | C151: 0.2354415953 | D151: 0.4365414083 | E151: 0.1821638048 | F151: 0.3375937045 | G151: 0.1158223003 | H151: 0.1570670009 | I151: 0.06097812951 | J151: 0.02467669919 | K151: 0.0982465893 | L151: 0.2597410873 | M151: 0.1129977033 | N151: 0.216438304 | O151: 0.07634591311
A152: 148 | B152: 0.6027132273 | C152: 0.2333374023 | D152: 0.440651089 | E152: 0.1797363013 | F152: 0.3404250145 | G152: 0.1140047014 | H152: 0.1600224972 | I152: 0.05936415866 | J152: 0.02581615932 | K152: 0.09562438726 | L152: 0.255519794 | M152: 0.1070848033 | N152: 0.2093560946 | O152: 0.07243186235
A153: 149 | B153: 0.6049246788 | C153: 0.2314283997 | D153: 0.4447453916 | E153: 0.1775788963 | F153: 0.3432517052 | G153: 0.1123915985 | H153: 0.163034603 | I153: 0.05789957941 | J153: 0.02703800984 | K153: 0.09329605103 | L153: 0.2523531087 | M153: 0.1014193967 | N153: 0.2029092951 | O153: 0.06868846714
A154: 150 | B154: 0.6071192026 | C154: 0.2297078073 | D154: 0.4488170147 | E154: 0.1756848991 | F154: 0.3460657895 | G154: 0.110980697 | H154: 0.1660953015 | I154: 0.05659103021 | J154: 0.02833781019 | K154: 0.09126927704 | L154: 0.2504095674 | M154: 0.09604098648 | N154: 0.1971408213 | O154: 0.06515098363
A155: 151 | B155: 0.6092870831 | C155: 0.2281690985 | D155: 0.4528591931 | E155: 0.1740469038 | F155: 0.3488593102 | G155: 0.1097690016 | H155: 0.1691965014 | I155: 0.05544450879 | J155: 0.02971114963 | K155: 0.08954927325 | L155: 0.2498362625 | M155: 0.09099333733 | N155: 0.1920941406 | O155: 0.06185851991
A156: 152 | B156: 0.6114192009 | C156: 0.2268034071 | D156: 0.456864804 | E156: 0.1726550013 | F156: 0.3516243994 | G156: 0.1087512001 | H156: 0.1723302007 | I156: 0.05446353182 | J156: 0.03115361929 | K156: 0.08813721687 | L156: 0.2505787887 | M156: 0.08632332087 | N156: 0.1878123777 | O156: 0.05885403976
A157: 153 | B157: 0.6135088205 | C157: 0.2256031036 | D157: 0.4608269036 | E157: 0.1714982986 | F157: 0.3543531895 | G157: 0.1079206988 | H157: 0.1754882932 | I157: 0.05365021154 | J157: 0.03266078979 | K157: 0.08702983707 | L157: 0.2524719332 | M157: 0.08208093047 | N157: 0.1843386272 | O157: 0.05618168041
A158: 154 | B158: 0.6155536175 | C158: 0.2245592028 | D158: 0.4647386074 | E158: 0.1705642045 | F158: 0.3570376933 | G158: 0.1072695032 | H158: 0.1786627024 | I158: 0.05300426111 | J158: 0.03422823921 | K158: 0.08621957898 | L158: 0.2553497978 | M158: 0.07831604779 | N158: 0.1817161927 | O158: 0.05388655886
A159: 155 | B159: 0.6175510287 | C159: 0.2236623019 | D159: 0.4685927927 | E159: 0.1698396057 | F159: 0.3596701026 | G159: 0.1067876965 | H159: 0.1818453968 | I159: 0.05252277106 | J159: 0.03585157171 | K159: 0.08569475263 | L159: 0.2590460521 | M159: 0.07507675141 | N159: 0.179988154 | O159: 0.05200881884
A160: 156 | B160: 0.6194986105 | C160: 0.2229025066 | D160: 0.4723824859 | E160: 0.1693097055 | F160: 0.3622424006 | G160: 0.1064648032 | H160: 0.1850282997 | I160: 0.05220096931 | J160: 0.03752633929 | K160: 0.08543934673 | L160: 0.2633947531 | M160: 0.0724042207 | N160: 0.1791729441 | O160: 0.05058234185
A161: 157 | B161: 0.621393919 | C161: 0.222270295 | D161: 0.476100713 | E161: 0.1689586937 | F161: 0.3647466004 | G161: 0.1062889993 | H161: 0.1882034987 | I161: 0.05203088 | J161: 0.03924814984 | K161: 0.08543408662 | L161: 0.268229779 | M161: 0.07032925636 | N161: 0.1792142508 | O161: 0.04962772876
A162: 158 | B162: 0.6232345104 | C162: 0.2217555046 | D162: 0.4797405899 | E162: 0.168771103 | F162: 0.3671750128 | G162: 0.1062474996 | H162: 0.1913626939 | I162: 0.05200307071 | J162: 0.04101257026 | K162: 0.08565624058 | L162: 0.2733849783 | M162: 0.06886606663 | N162: 0.1800427676 | O162: 0.04915031046
A163: 159 | B163: 0.6250178218 | C163: 0.2213483006 | D163: 0.4832949936 | E163: 0.1687301993 | F163: 0.3695195019 | G163: 0.1063269004 | H163: 0.1944980025 | I163: 0.05210575834 | J163: 0.04281517863 | K163: 0.0860812664 | L163: 0.2786941994 | M163: 0.06801035255 | N163: 0.1815887859 | O163: 0.04913717881
A164: 160 | B164: 0.6267414093 | C164: 0.2210386992 | D164: 0.4867570996 | E164: 0.1688199043 | F164: 0.3717722893 | G164: 0.1065135002 | H164: 0.1976011992 | I164: 0.05232632905 | J164: 0.04465157166 | K164: 0.08668284863 | L164: 0.284055516 | M164: 0.06773799658 | N164: 0.183782612 | O164: 0.04955831915
A165: 161 | B165: 0.6284028888 | C165: 0.2208164036 | D165: 0.4901196957 | E165: 0.1690230072 | F165: 0.3739255071 | G165: 0.1067937016 | H165: 0.2006645054 | I165: 0.0526503697 | J165: 0.04651731998 | K165: 0.08743426949 | L165: 0.2895439424 | M165: 0.06800418347 | N165: 0.1865549544 | O165: 0.05036925897
A166: 162 | B166: 0.6299998164 | C166: 0.2206721008 | D166: 0.4933759868 | E166: 0.1693239063 | F166: 0.3759711087 | G166: 0.1071531028 | H166: 0.2036796957 | I166: 0.05306312814 | J166: 0.04840802029 | K166: 0.08830852807 | L166: 0.2952650703 | M166: 0.06874939054 | N166: 0.1898360002 | O166: 0.05151459947
A167: 163 | B167: 0.6315296888 | C167: 0.2205958962 | D167: 0.4965189099 | E167: 0.1697057933 | F167: 0.3779012859 | G167: 0.1075783968 | H167: 0.2066386044 | I167: 0.05354955047 | J167: 0.05031922832 | K167: 0.08927903324 | L167: 0.3013245813 | M167: 0.06990326941 | N167: 0.1935561598 | O167: 0.05293463916
A168: 164 | B168: 0.6329901218 | C168: 0.220578894 | D168: 0.4995414913 | E168: 0.170154199 | F168: 0.3797084093 | G168: 0.1080557033 | H168: 0.2095333934 | I168: 0.05409460887 | J168: 0.05224654824 | K168: 0.09032034874 | L168: 0.3078282459 | M168: 0.07139003277 | N168: 0.1976460228 | O168: 0.05456762016
A169: 165 | B169: 0.634378612 | C169: 0.2206120044 | D169: 0.5024368167 | E169: 0.1706537008 | F169: 0.3813906014 | G169: 0.1085724011 | H169: 0.2123558968 | I169: 0.05468324944 | J169: 0.05418556184 | K169: 0.09140793979 | L169: 0.3148812986 | M169: 0.0731330514 | N169: 0.202035791 | O169: 0.05635455996
A170: 166 | B170: 0.6356925964 | C170: 0.2206867933 | D170: 0.5051975846 | E170: 0.171190396 | F170: 0.3829500079 | G170: 0.1091156974 | H170: 0.2150979936 | I170: 0.05530162901 | J170: 0.05613183975 | K170: 0.09251932055 | L170: 0.3225896591 | M170: 0.07505954802 | N170: 0.2066560537 | O170: 0.05824017897
A171: 167 | B171: 0.63692981 | C171: 0.220795095 | D171: 0.507817328 | E171: 0.1717507988 | F171: 0.3843888044 | G171: 0.1096739992 | H171: 0.217751801 | I171: 0.05593571067 | J171: 0.05808096007 | K171: 0.09363298863 | L171: 0.3310589492 | M171: 0.07710160315 | N171: 0.2114372216 | O171: 0.06017484143
A172: 168 | B172: 0.6380875707 | C172: 0.2209292054 | D172: 0.5102887154 | E172: 0.172322005 | F172: 0.3857091069 | G172: 0.1102361977 | H172: 0.2203090936 | I172: 0.05657353997 | J172: 0.06002850831 | K172: 0.09472958744 | L172: 0.3403947607 | M172: 0.07919769734 | N172: 0.2163096008 | O172: 0.06211413071
A173: 169 | B173: 0.6391636729 | C173: 0.2210824043 | D173: 0.5126072764 | E173: 0.1728927046 | F173: 0.3869132996 | G173: 0.1107916981 | H173: 0.2227618992 | I173: 0.0572027415 | J173: 0.06197007 | K173: 0.09579160064 | L173: 0.3505571577 | M173: 0.08129426837 | N173: 0.2212036764 | O173: 0.06401912868
A174: 170 | B174: 0.6401565075 | C174: 0.2212475985 | D174: 0.514770329 | E174: 0.1734521985 | F174: 0.3880034089 | G174: 0.111331597 | H174: 0.2251022011 | I174: 0.05781251937 | J174: 0.06390047073 | K174: 0.09680274874 | L174: 0.3609696016 | M174: 0.08334345371 | N174: 0.226049844 | O174: 0.06585609913
A175: 171 | B175: 0.6410645247 | C175: 0.221419096 | D175: 0.5167748928 | E175: 0.173990503 | F175: 0.3889817894 | G175: 0.1118464991 | H175: 0.227321893 | I175: 0.05839344114 | J175: 0.06580305099 | K175: 0.09774868935 | L175: 0.3709313054 | M175: 0.08530463278 | N175: 0.2307785143 | O175: 0.06759569794
A176: 172 | B176: 0.6418864727 | C176: 0.2215908021 | D176: 0.5186187029 | E176: 0.1744990051 | F176: 0.3898505867 | G176: 0.1123287007 | H176: 0.2294128984 | I176: 0.05893640965 | J176: 0.06765244156 | K176: 0.09861704707 | L176: 0.3797410944 | M176: 0.08714204282 | N176: 0.2353201723 | O176: 0.06921272725
A177: 173 | B177: 0.6426212788 | C177: 0.221758604 | D177: 0.5202988982 | E177: 0.1749693006 | F177: 0.3906120062 | G177: 0.1127711982 | H177: 0.2313672006 | I177: 0.05943382159 | J177: 0.06942304969 | K177: 0.0993963331 | L177: 0.386849372 | M177: 0.08882699907 | N177: 0.239605139 | O177: 0.07068599761
A178: 174 | B178: 0.6432673931 | C178: 0.2219173014 | D178: 0.5218129754 | E178: 0.1753948033 | F178: 0.3912681937 | G178: 0.1131678 | H178: 0.2331766933 | I178: 0.05987888947 | J178: 0.07108925283 | K178: 0.1000773981 | L178: 0.3923095749 | M178: 0.09033405036 | N178: 0.2435638996 | O178: 0.07199721038
A179: 175 | B179: 0.6438236237 | C179: 0.2220634967 | D179: 0.5231580734 | E179: 0.1757692993 | F179: 0.391821593 | G179: 0.1135132015 | H179: 0.2348331064 | I179: 0.06026538089 | J179: 0.07262545824 | K179: 0.1006518006 | L179: 0.3963262708 | M179: 0.09164234996 | N179: 0.2471268497 | O179: 0.07313127071
A180: 176 | B180: 0.6442884803 | C180: 0.2221940011 | D180: 0.5243316293 | E180: 0.1760877073 | F180: 0.3922741115 | G180: 0.1138027981 | H180: 0.2363162041 | I180: 0.060588561 | J180: 0.07400607318 | K180: 0.1011132002 | L180: 0.3991044445 | M180: 0.09273512661 | N180: 0.250224385 | O180: 0.07407546788
A181: 177 | B181: 0.6446608901 | C181: 0.2223061025 | D181: 0.5253309011 | E181: 0.176345706 | F181: 0.3926280141 | G181: 0.1140329018 | H181: 0.2375862002 | I181: 0.06084480137 | J181: 0.07520546764 | K181: 0.1014560014 | L181: 0.4008484549 | M181: 0.09359905869 | N181: 0.2527870352 | O181: 0.07482021302
A182: 178 | B182: 0.6449394226 | C182: 0.2223978043 | D182: 0.5261533856 | E182: 0.1765404046 | F182: 0.3928855956 | G182: 0.1142006963 | H182: 0.2386015952 | I182: 0.06103048101 | J182: 0.07619807124 | K182: 0.101676397 | L182: 0.4017630784 | M182: 0.0942241922 | N182: 0.2547450767 | O182: 0.07535790652
A183: 179 | B183: 0.6451228857 | C183: 0.2224673927 | D183: 0.5267964005 | E183: 0.1766692996 | F183: 0.3930490017 | G183: 0.1143039986 | H183: 0.2393209934 | I183: 0.06114362925 | J183: 0.07695827633 | K183: 0.1017716005 | L183: 0.4020530911 | M183: 0.09460288286 | N183: 0.2560289797 | O183: 0.07568305731
A184: 180 | B184: 0.6452100277 | C184: 0.2225144058 | D184: 0.5272572041 | E184: 0.176731199 | F184: 0.3931205869 | G184: 0.1143416986 | H184: 0.2397028953 | I184: 0.06118302047 | J184: 0.07746917754 | K184: 0.1017401963 | L184: 0.4019171896 | M184: 0.09473142028 | N184: 0.2565690952 | O184: 0.075792633
A185: 181 | B185: 0.645201087 | C185: 0.222538799 | D185: 0.527533114 | E185: 0.1767258048 | F185: 0.3931021988 | G185: 0.1143134013 | H185: 0.2397063971 | I185: 0.06114830822 | J185: 0.07773731649 | K185: 0.1015821025 | L185: 0.4014319673 | M185: 0.09460829198 | N185: 0.2563030757 | O185: 0.07568571717
A186: 182 | B186: 0.6450989842 | C186: 0.2225407064 | D186: 0.5276216269 | E186: 0.1766529977 | F186: 0.3929946125 | G186: 0.1142193973 | H186: 0.239319697 | I186: 0.06103954837 | J186: 0.07777319849 | K186: 0.1012985036 | L186: 0.4005583528 | M186: 0.09423492849 | N186: 0.2552498759 | O186: 0.07536313683
A187: 183 | B187: 0.6449071765 | C187: 0.2225207984 | D187: 0.5275198221 | E187: 0.1765148044 | F187: 0.3927974999 | G187: 0.114060998 | H187: 0.2385749072 | I187: 0.06085835025 | J187: 0.0775872767 | K187: 0.1008917987 | L187: 0.3992533401 | M187: 0.09361574799 | N187: 0.253480158 | O187: 0.07482834905
A188: 184 | B188: 0.6446279883 | C188: 0.2224812061 | D188: 0.5272256136 | E188: 0.1763134003 | F188: 0.3925105929 | G188: 0.1138402969 | H188: 0.2375081033 | I188: 0.06060672179 | J188: 0.07719007134 | K188: 0.1003656983 | L188: 0.3974733873 | M188: 0.09275768697 | N188: 0.251065419 | O188: 0.0740866363
A189: 185 | B189: 0.6442648768 | C189: 0.2224237025 | D189: 0.5267400146 | E189: 0.1760516018 | F189: 0.3921335042 | G189: 0.1135599986 | H189: 0.2361550033 | I189: 0.06028810143 | J189: 0.07659202814 | K189: 0.09972537309 | L189: 0.3951753395 | M189: 0.09167095274 | N189: 0.2480774685 | O189: 0.07314553112
A190: 186 | B190: 0.643820703 | C190: 0.2223512977 | D190: 0.5260679126 | E190: 0.1757344007 | F190: 0.3916662037 | G190: 0.1132242009 | H190: 0.234551698 | I190: 0.05990625918 | J190: 0.0758036375 | K190: 0.09897709638 | L190: 0.3923158932 | M190: 0.09036938846 | N190: 0.2445876096 | O190: 0.07201520354
A191: 187 | B191: 0.6432985067 | C191: 0.2222671956 | D191: 0.525214076 | E191: 0.1753666997 | F191: 0.3911082149 | G191: 0.1128370017 | H191: 0.2327339947 | I191: 0.05946584046 | J191: 0.0748353973 | K191: 0.09812883288 | L191: 0.388851506 | M191: 0.08886998147 | N191: 0.2406674585 | O191: 0.07070805877
A192: 188 | B192: 0.6427013874 | C192: 0.2221755981 | D192: 0.5241833925 | E192: 0.1749541014 | F192: 0.3904593885 | G192: 0.1124038994 | H192: 0.2307370007 | I192: 0.05897330865 | J192: 0.0736977905 | K192: 0.09718994051 | L192: 0.3847391128 | M192: 0.08719283342 | N192: 0.2363886907 | O192: 0.06923927367
A193: 189 | B193: 0.6420322061 | C193: 0.222080797 | D193: 0.522980392 | E193: 0.1745041013 | F193: 0.3897193074 | G193: 0.1119311973 | H193: 0.2285822034 | I193: 0.05843507126 | J193: 0.07240129262 | K193: 0.09617114812 | L193: 0.3799352012 | M193: 0.08536402881 | N193: 0.2318229224 | O193: 0.06762742251
A194: 190 | B194: 0.6412941217 | C194: 0.2219880968 | D194: 0.5216103196 | E194: 0.1740244031 | F194: 0.3888877928 | G194: 0.1114258021 | H194: 0.2262797058 | I194: 0.05785898119 | J194: 0.07095638663 | K194: 0.09508518875 | L194: 0.3744006994 | M194: 0.08341296762 | N194: 0.2270414565 | O194: 0.06589350104
A195: 191 | B195: 0.6404901743 | C195: 0.2219026983 | D195: 0.5200775266 | E195: 0.1735243946 | F195: 0.3879644871 | G195: 0.1108959019 | H195: 0.2238388956 | I195: 0.05725410953 | J195: 0.06937357783 | K195: 0.09394610673 | L195: 0.3681730401 | M195: 0.08137466758 | N195: 0.222116088 | O195: 0.0640630275
A196: 192 | B196: 0.6396232247 | C196: 0.2218313068 | D196: 0.5183870196 | E196: 0.1730131954 | F196: 0.3869492114 | G196: 0.1103497967 | H196: 0.2212695032 | I196: 0.05662985146 | J196: 0.06766329706 | K196: 0.09276997298 | L196: 0.3613581132 | M196: 0.07929059863 | N196: 0.2171183136 | O196: 0.06216586009
A197: 193 | B197: 0.6386963725 | C197: 0.2217804044 | D197: 0.5165436268 | E197: 0.1725021005 | F197: 0.3858416975 | G197: 0.1097975001 | H197: 0.2185811996 | I197: 0.05599734932 | J197: 0.06583608687 | K197: 0.09157390893 | L197: 0.3540640438 | M197: 0.07720757276 | N197: 0.2121197346 | O197: 0.06023500115
A198: 194 | B198: 0.6377127171 | C198: 0.2217575014 | D198: 0.5145521164 | E198: 0.1720025986 | F198: 0.3846415877 | G198: 0.1092486978 | H198: 0.2157835066 | I198: 0.05536799133 | J198: 0.06390239298 | K198: 0.0903781727 | L198: 0.3463988679 | M198: 0.07518044114 | N198: 0.2071918627 | O198: 0.05831009895
A199: 195 | B199: 0.6366751194 | C199: 0.2217697054 | D199: 0.5124173164 | E199: 0.1715271026 | F199: 0.383348614 | G199: 0.1087151989 | H199: 0.212886095 | I199: 0.05475500971 | J199: 0.06187270954 | K199: 0.08920353651 | L199: 0.3384707999 | M199: 0.07327024639 | N199: 0.2024062989 | O199: 0.05643516034
A200: 196 | B200: 0.6355865002 | C200: 0.2218257934 | D200: 0.5101438761 | E200: 0.1710893959 | F200: 0.3819625974 | G200: 0.1082085967 | H200: 0.2098985016 | I200: 0.05417148024 | J200: 0.05975751951 | K200: 0.08807341754 | L200: 0.3303879352 | M200: 0.07154487073 | N200: 0.1978345253 | O200: 0.05466037989
... 163 more rows

Sheet Elevation
B1: =(B3*1000)+(B4*100) -> 4100 | C1: 6100 | D1: 8100 | E1: 10100 | F1: 12100
A2: 1 | B2: 2 | C2: 3 | D2: 4 | E2: 5 | F2: 6
A3: Low | B3: 4 | C3: 6 | D3: 8 | E3: 10 | F3: 12
A4: Tilt | B4: 1 | C4: 1 | D4: 1 | E4: 1 | F4: 1
A5: Gain | B5: 3.6 | C5: 5.9 | D5: 8.12 | E5: 10.31 | F5: 12.28
A6: Fwg No | B6: 04L040100 | C6: 06L059100 | D6: 08L081100 | E6: 10L103100 | F6: 12L123100
A7: -10 | B7: 0.514 | C7: 0.3 | D7: 0.3630000055 | E7: 0.1770000011 | F7: 0.09499999881
A8: -9.9 | B8: 0.521 | C8: 0.293 | D8: 0.3659999967 | E8: 0.1860000044 | F8: 0.09600000083
A9: -9.8 | B9: 0.529 | C9: 0.286 | D9: 0.3680000007 | E9: 0.1949999928 | F9: 0.09700000286
A10: -9.7 | B10: 0.536 | C10: 0.279 | D10: 0.3700000048 | E10: 0.2049999982 | F10: 0.09899999946
A11: -9.6 | B11: 0.543 | C11: 0.271 | D11: 0.3720000088 | E11: 0.2150000036 | F11: 0.1010000035
A12: -9.5 | B12: 0.55 | C12: 0.263 | D12: 0.3729999959 | E12: 0.2240000069 | F12: 0.1040000021
A13: -9.4 | B13: 0.557 | C13: 0.255 | D13: 0.3740000129 | E13: 0.2339999974 | F13: 0.1070000008
A14: -9.3 | B14: 0.564 | C14: 0.247 | D14: 0.375 | E14: 0.2440000027 | F14: 0.1110000014
A15: -9.2 | B15: 0.571 | C15: 0.238 | D15: 0.375 | E15: 0.2540000081 | F15: 0.1159999967
A16: -9.1 | B16: 0.578 | C16: 0.23 | D16: 0.3740000129 | E16: 0.2630000114 | F16: 0.1209999993
A17: -9 | B17: 0.586 | C17: 0.221 | D17: 0.3729999959 | E17: 0.2730000019 | F17: 0.1270000041
A18: -8.9 | B18: 0.593 | C18: 0.212 | D18: 0.3720000088 | E18: 0.2820000052 | F18: 0.1340000033
A19: -8.8 | B19: 0.6 | C19: 0.203 | D19: 0.3700000048 | E19: 0.2910000086 | F19: 0.1420000046
A20: -8.7 | B20: 0.606 | C20: 0.193 | D20: 0.3680000007 | E20: 0.3000000119 | F20: 0.150000006
A21: -8.6 | B21: 0.613 | C21: 0.184 | D21: 0.3650000095 | E21: 0.3079999983 | F21: 0.1589999944
A22: -8.5 | B22: 0.62 | C22: 0.174 | D22: 0.3619999886 | E22: 0.3170000017 | F22: 0.1689999998
A23: -8.4 | B23: 0.627 | C23: 0.165 | D23: 0.3580000103 | E23: 0.324000001 | F23: 0.1790000051
A24: -8.3 | B24: 0.634 | C24: 0.155 | D24: 0.3540000021 | E24: 0.3319999874 | F24: 0.1889999956
A25: -8.2 | B25: 0.641 | C25: 0.146 | D25: 0.3490000069 | E25: 0.3389999866 | F25: 0.200000003
A26: -8.1 | B26: 0.648 | C26: 0.137 | D26: 0.3440000117 | E26: 0.3449999988 | F26: 0.2109999955
A27: -8 | B27: 0.654 | C27: 0.128 | D27: 0.3379999995 | E27: 0.351000011 | F27: 0.2220000029
A28: -7.9 | B28: 0.661 | C28: 0.12 | D28: 0.3310000002 | E28: 0.3569999933 | F28: 0.2329999954
A29: -7.8 | B29: 0.668 | C29: 0.112 | D29: 0.3249999881 | E29: 0.3619999886 | F29: 0.2450000048
A30: -7.7 | B30: 0.674 | C30: 0.106 | D30: 0.3170000017 | E30: 0.3659999967 | F30: 0.2560000122
A31: -7.6 | B31: 0.681 | C31: 0.101 | D31: 0.3089999855 | E31: 0.3700000048 | F31: 0.2669999897
A32: -7.5 | B32: 0.687 | C32: 0.097 | D32: 0.300999999 | E32: 0.3729999959 | F32: 0.2790000141
A33: -7.4 | B33: 0.694 | C33: 0.095 | D33: 0.2919999957 | E33: 0.3759999871 | F33: 0.2899999917
A34: -7.3 | B34: 0.7 | C34: 0.095 | D34: 0.2829999924 | E34: 0.3779999912 | F34: 0.300999999
A35: -7.2 | B35: 0.707 | C35: 0.097 | D35: 0.2730000019 | E35: 0.3790000081 | F35: 0.3109999895
A36: -7.1 | B36: 0.713 | C36: 0.102 | D36: 0.2630000114 | E36: 0.3790000081 | F36: 0.3210000098
A37: -7 | B37: 0.72 | C37: 0.108 | D37: 0.2520000041 | E37: 0.3790000081 | F37: 0.3310000002
A38: -6.9 | B38: 0.726 | C38: 0.116 | D38: 0.2409999967 | E38: 0.3779999912 | F38: 0.3400000036
A39: -6.8 | B39: 0.732 | C39: 0.125 | D39: 0.2290000021 | E39: 0.3759999871 | F39: 0.3490000069
A40: -6.7 | B40: 0.738 | C40: 0.135 | D40: 0.2169999927 | E40: 0.3729999959 | F40: 0.3569999933
A41: -6.6 | B41: 0.744 | C41: 0.146 | D41: 0.2039999962 | E41: 0.3689999878 | F41: 0.3639999926
A42: -6.5 | B42: 0.75 | C42: 0.159 | D42: 0.1909999996 | E42: 0.3650000095 | F42: 0.3709999919
A43: -6.4 | B43: 0.756 | C43: 0.171 | D43: 0.1780000031 | E43: 0.3600000143 | F43: 0.3770000041
A44: -6.3 | B44: 0.762 | C44: 0.185 | D44: 0.1650000066 | E44: 0.3540000021 | F44: 0.3819999993
A45: -6.2 | B45: 0.768 | C45: 0.198 | D45: 0.1519999951 | E45: 0.3470000029 | F45: 0.3860000074
A46: -6.1 | B46: 0.774 | C46: 0.212 | D46: 0.1379999965 | E46: 0.3389999866 | F46: 0.3889999986
A47: -6 | B47: 0.78 | C47: 0.227 | D47: 0.125 | E47: 0.3310000002 | F47: 0.3910000026
A48: -5.9 | B48: 0.786 | C48: 0.242 | D48: 0.1120000035 | E48: 0.3210000098 | F48: 0.3930000067
A49: -5.8 | B49: 0.791 | C49: 0.257 | D49: 0.1000000015 | E49: 0.3109999895 | F49: 0.3930000067
A50: -5.7 | B50: 0.797 | C50: 0.272 | D50: 0.08900000155 | E50: 0.3000000119 | F50: 0.3919999897
A51: -5.6 | B51: 0.803 | C51: 0.287 | D51: 0.08100000024 | E51: 0.2879999876 | F51: 0.3899999857
A52: -5.5 | B52: 0.808 | C52: 0.303 | D52: 0.07500000298 | E52: 0.275000006 | F52: 0.3869999945
A53: -5.4 | B53: 0.814 | C53: 0.318 | D53: 0.07400000095 | E53: 0.2619999945 | F53: 0.3829999864
A54: -5.3 | B54: 0.819 | C54: 0.334 | D54: 0.07699999958 | E54: 0.2479999959 | F54: 0.3770000041
A55: -5.2 | B55: 0.824 | C55: 0.35 | D55: 0.08500000089 | E55: 0.2329999954 | F55: 0.3709999919
A56: -5.1 | B56: 0.83 | C56: 0.365 | D56: 0.09600000083 | E56: 0.2169999927 | F56: 0.3630000055
A57: -5 | B57: 0.835 | C57: 0.381 | D57: 0.1099999994 | E57: 0.201000005 | F57: 0.3540000021
A58: -4.9 | B58: 0.84 | C58: 0.397 | D58: 0.126000002 | E58: 0.1850000024 | F58: 0.3440000117
A59: -4.8 | B59: 0.845 | C59: 0.413 | D59: 0.1420000046 | E59: 0.1679999977 | F59: 0.3319999874
A60: -4.7 | B60: 0.85 | C60: 0.429 | D60: 0.1599999964 | E60: 0.150000006 | F60: 0.3199999928
A61: -4.6 | B61: 0.855 | C61: 0.445 | D61: 0.1790000051 | E61: 0.1330000013 | F61: 0.3059999943
A62: -4.5 | B62: 0.86 | C62: 0.461 | D62: 0.1979999989 | E62: 0.1169999987 | F62: 0.2910000086
A63: -4.4 | B63: 0.865 | C63: 0.477 | D63: 0.2179999948 | E63: 0.1010000035 | F63: 0.275000006
A64: -4.3 | B64: 0.869 | C64: 0.493 | D64: 0.2380000055 | E64: 0.08799999952 | F64: 0.2579999864
A65: -4.2 | B65: 0.874 | C65: 0.509 | D65: 0.2579999864 | E65: 0.07900000364 | F65: 0.2399999946
A66: -4.1 | B66: 0.878 | C66: 0.524 | D66: 0.2790000141 | E66: 0.07599999756 | F66: 0.2210000008
A67: -4 | B67: 0.883 | C67: 0.54 | D67: 0.298999995 | E67: 0.07999999821 | F67: 0.201000005
A68: -3.9 | B68: 0.887 | C68: 0.555 | D68: 0.3199999928 | E68: 0.09099999815 | F68: 0.1809999943
A69: -3.8 | B69: 0.892 | C69: 0.571 | D69: 0.3409999907 | E69: 0.1070000008 | F69: 0.1599999964
A70: -3.7 | B70: 0.896 | C70: 0.586 | D70: 0.3619999886 | E70: 0.126000002 | F70: 0.1389999986
A71: -3.6 | B71: 0.9 | C71: 0.601 | D71: 0.3829999864 | E71: 0.1469999999 | F71: 0.1180000007
A72: -3.5 | B72: 0.904 | C72: 0.616 | D72: 0.4050000012 | E72: 0.1700000018 | F72: 0.1000000015
A73: -3.4 | B73: 0.908 | C73: 0.631 | D73: 0.425999999 | E73: 0.1940000057 | F73: 0.08500000089
A74: -3.3 | B74: 0.912 | C74: 0.646 | D74: 0.4469999969 | E74: 0.2189999968 | F74: 0.07699999958
A75: -3.2 | B75: 0.916 | C75: 0.66 | D75: 0.4679999948 | E75: 0.2440000027 | F75: 0.07900000364
A76: -3.1 | B76: 0.92 | C76: 0.674 | D76: 0.4889999926 | E76: 0.2700000107 | F76: 0.09099999815
A77: -3 | B77: 0.924 | C77: 0.689 | D77: 0.5099999905 | E77: 0.2969999909 | F77: 0.1099999994
A78: -2.9 | B78: 0.927 | C78: 0.702 | D78: 0.5299999714 | E78: 0.3230000138 | F78: 0.1340000033
A79: -2.8 | B79: 0.931 | C79: 0.716 | D79: 0.550999999 | E79: 0.349999994 | F79: 0.1599999964
A80: -2.7 | B80: 0.934 | C80: 0.73 | D80: 0.57099998 | E80: 0.3759999871 | F80: 0.1889999956
A81: -2.6 | B81: 0.938 | C81: 0.743 | D81: 0.5910000205 | E81: 0.4029999971 | F81: 0.2189999968
A82: -2.5 | B82: 0.941 | C82: 0.756 | D82: 0.6110000014 | E82: 0.4300000072 | F82: 0.248999998
A83: -2.4 | B83: 0.944 | C83: 0.768 | D83: 0.6299999952 | E83: 0.4569999874 | F83: 0.2800000012
A84: -2.3 | B84: 0.947 | C84: 0.781 | D84: 0.6499999762 | E84: 0.4830000103 | F84: 0.3120000064
A85: -2.2 | B85: 0.95 | C85: 0.793 | D85: 0.6690000296 | E85: 0.5090000033 | F85: 0.3440000117
A86: -2.1 | B86: 0.953 | C86: 0.805 | D86: 0.6869999766 | E86: 0.5360000134 | F86: 0.3759999871
A87: -2 | B87: 0.956 | C87: 0.817 | D87: 0.7049999833 | E87: 0.5609999895 | F87: 0.4079999924
A88: -1.9 | B88: 0.959 | C88: 0.828 | D88: 0.72299999 | E88: 0.5870000124 | F88: 0.4399999976
A89: -1.8 | B89: 0.962 | C89: 0.839 | D89: 0.7409999967 | E89: 0.6119999886 | F89: 0.4709999859
A90: -1.7 | B90: 0.964 | C90: 0.85 | D90: 0.7580000162 | E90: 0.6359999776 | F90: 0.503000021
A91: -1.6 | B91: 0.967 | C91: 0.86 | D91: 0.773999989 | E91: 0.6600000262 | F91: 0.5339999795
A92: -1.5 | B92: 0.969 | C92: 0.87 | D92: 0.7900000215 | E92: 0.6840000153 | F92: 0.5649999976
A93: -1.4 | B93: 0.972 | C93: 0.88 | D93: 0.8059999943 | E93: 0.7070000172 | F93: 0.5950000286
A94: -1.3 | B94: 0.974 | C94: 0.889 | D94: 0.82099998 | E94: 0.7289999723 | F94: 0.625
A95: -1.2 | B95: 0.976 | C95: 0.898 | D95: 0.8360000253 | E95: 0.7509999871 | F95: 0.6539999843
A96: -1.1 | B96: 0.978 | C96: 0.907 | D96: 0.8500000238 | E96: 0.7720000148 | F96: 0.6819999814
A97: -1 | B97: 0.98 | C97: 0.915 | D97: 0.8629999757 | E97: 0.7919999957 | F97: 0.7099999785
A98: -0.9 | B98: 0.982 | C98: 0.923 | D98: 0.8759999871 | E98: 0.8119999766 | F98: 0.7360000014
A99: -0.8 | B99: 0.984 | C99: 0.931 | D99: 0.8889999986 | E99: 0.8309999704 | F99: 0.7620000243
A100: -0.7 | B100: 0.985 | C100: 0.938 | D100: 0.8999999762 | E100: 0.84799999 | F100: 0.7860000134
A101: -0.6 | B101: 0.987 | C101: 0.945 | D101: 0.9110000134 | E101: 0.8650000095 | F101: 0.8100000024
A102: -0.5 | B102: 0.988 | C102: 0.951 | D102: 0.9219999909 | E102: 0.8820000291 | F102: 0.8320000172
A103: -0.4 | B103: 0.99 | C103: 0.957 | D103: 0.9319999814 | E103: 0.8970000148 | F103: 0.8529999852
A104: -0.3 | B104: 0.991 | C104: 0.963 | D104: 0.9409999847 | E104: 0.9110000134 | F104: 0.8730000257
A105: -0.2 | B105: 0.992 | C105: 0.968 | D105: 0.9499999881 | E105: 0.9240000248 | F105: 0.8909999728
A106: -0.1 | B106: 0.994 | C106: 0.973 | D106: 0.9580000043 | E106: 0.9359999895 | F106: 0.9089999795
A107: -4.085620731e-14 | B107: 0.995 | C107: 0.978 | D107: 0.9649999738 | E107: 0.9470000267 | F107: 0.9240000248
A108: 0.1 | B108: 0.996 | C108: 0.982 | D108: 0.9720000029 | E108: 0.9580000043 | F108: 0.9390000105
A109: 0.2 | B109: 0.996 | C109: 0.985 | D109: 0.9779999852 | E109: 0.9670000076 | F109: 0.9520000219
A110: 0.3 | B110: 0.997 | C110: 0.989 | D110: 0.9829999804 | E110: 0.9750000238 | F110: 0.9629999995
A111: 0.4 | B111: 0.998 | C111: 0.992 | D111: 0.9869999886 | E111: 0.9819999933 | F111: 0.97299999
A112: 0.5 | B112: 0.999 | C112: 0.994 | D112: 0.9909999967 | E112: 0.9869999886 | F112: 0.9810000062
A113: 0.6 | B113: 0.999 | C113: 0.996 | D113: 0.9940000176 | E113: 0.9919999838 | F113: 0.9879999757
A114: 0.7 | B114: 0.999 | C114: 0.998 | D114: 0.996999979 | E114: 0.9959999919 | F114: 0.9940000176
A115: 0.8 | B115: 1 | C115: 0.999 | D115: 0.9990000129 | E115: 0.9980000257 | F115: 0.996999979
A116: 0.9 | B116: 1 | C116: 1 | D116: 1 | E116: 1 | F116: 0.9990000129
A117: 1 | B117: 1 | C117: 1 | D117: 1 | E117: 1 | F117: 1
A118: 1.1 | B118: 1 | C118: 1 | D118: 1 | E118: 0.9990000129 | F118: 0.9990000129
A119: 1.2 | B119: 1 | C119: 1 | D119: 0.9990000129 | E119: 0.996999979 | F119: 0.9959999919
A120: 1.3 | B120: 1 | C120: 0.999 | D120: 0.996999979 | E120: 0.9940000176 | F120: 0.9919999838
A121: 1.4 | B121: 0.999 | C121: 0.997 | D121: 0.9940000176 | E121: 0.9900000095 | F121: 0.9869999886
A122: 1.5 | B122: 0.999 | C122: 0.996 | D122: 0.9909999967 | E122: 0.9850000143 | F122: 0.9800000191
A123: 1.6 | B123: 0.999 | C123: 0.994 | D123: 0.9869999886 | E123: 0.9789999723 | F123: 0.9710000157
A124: 1.7 | B124: 0.998 | C124: 0.991 | D124: 0.9829999804 | E124: 0.9710000157 | F124: 0.9610000253
A125: 1.8 | B125: 0.997 | C125: 0.988 | D125: 0.9779999852 | E125: 0.9629999995 | F125: 0.9499999881
A126: 1.9 | B126: 0.997 | C126: 0.985 | D126: 0.9720000029 | E126: 0.9539999962 | F126: 0.9369999766
A127: 2 | B127: 0.996 | C127: 0.981 | D127: 0.9649999738 | E127: 0.9430000186 | F127: 0.9229999781
A128: 2.1 | B128: 0.995 | C128: 0.977 | D128: 0.9580000043 | E128: 0.9319999814 | F128: 0.9079999924
A129: 2.2 | B129: 0.994 | C129: 0.973 | D129: 0.9499999881 | E129: 0.9200000167 | F129: 0.8909999728
A130: 2.3 | B130: 0.993 | C130: 0.968 | D130: 0.9419999719 | E130: 0.9070000052 | F130: 0.8730000257
A131: 2.4 | B131: 0.992 | C131: 0.962 | D131: 0.9330000281 | E131: 0.8930000067 | F131: 0.8550000191
A132: 2.5 | B132: 0.99 | C132: 0.957 | D132: 0.9229999781 | E132: 0.878000021 | F132: 0.8349999785
A133: 2.6 | B133: 0.989 | C133: 0.951 | D133: 0.9129999876 | E133: 0.8629999757 | F133: 0.8140000105
A134: 2.7 | B134: 0.987 | C134: 0.944 | D134: 0.90200001 | E134: 0.8460000157 | F134: 0.7919999957
A135: 2.8 | B135: 0.986 | C135: 0.938 | D135: 0.8909999728 | E135: 0.8289999962 | F135: 0.7689999938
A136: 2.9 | B136: 0.984 | C136: 0.931 | D136: 0.8790000081 | E136: 0.8109999895 | F136: 0.7459999919
A137: 3 | B137: 0.982 | C137: 0.923 | D137: 0.8669999838 | E137: 0.7929999828 | F137: 0.7220000029
A138: 3.1 | B138: 0.98 | C138: 0.915 | D138: 0.8539999723 | E138: 0.773999989 | F138: 0.6970000267
A139: 3.2 | B139: 0.978 | C139: 0.907 | D139: 0.8399999738 | E139: 0.7540000081 | F139: 0.6710000038
A140: 3.3 | B140: 0.976 | C140: 0.899 | D140: 0.8259999752 | E140: 0.7340000272 | F140: 0.6460000277
A141: 3.4 | B141: 0.974 | C141: 0.89 | D141: 0.8119999766 | E141: 0.7129999995 | F141: 0.6190000176
A142: 3.5 | B142: 0.972 | C142: 0.881 | D142: 0.7969999909 | E142: 0.6919999719 | F142: 0.5929999948
A143: 3.6 | B143: 0.97 | C143: 0.871 | D143: 0.7820000052 | E143: 0.6700000167 | F143: 0.5659999847
A144: 3.7 | B144: 0.967 | C144: 0.862 | D144: 0.7670000196 | E144: 0.6480000019 | F144: 0.5389999747
A145: 3.8 | B145: 0.965 | C145: 0.852 | D145: 0.7509999871 | E145: 0.6259999871 | F145: 0.5109999776
A146: 3.9 | B146: 0.962 | C146: 0.841 | D146: 0.7350000143 | E146: 0.6029999852 | F146: 0.4839999974
A147: 4 | B147: 0.96 | C147: 0.831 | D147: 0.7179999948 | E147: 0.5799999833 | F147: 0.4569999874
A148: 4.1 | B148: 0.957 | C148: 0.82 | D148: 0.7009999752 | E148: 0.5569999814 | F148: 0.4300000072
A149: 4.2 | B149: 0.954 | C149: 0.809 | D149: 0.6840000153 | E149: 0.5339999795 | F149: 0.4029999971
A150: 4.3 | B150: 0.951 | C150: 0.797 | D150: 0.6660000086 | E150: 0.5109999776 | F150: 0.3770000041
A151: 4.4 | B151: 0.948 | C151: 0.786 | D151: 0.648999989 | E151: 0.4869999886 | F151: 0.351000011
A152: 4.5 | B152: 0.945 | C152: 0.774 | D152: 0.6309999824 | E152: 0.4639999866 | F152: 0.3249999881
A153: 4.6 | B153: 0.942 | C153: 0.762 | D153: 0.6119999886 | E153: 0.4410000145 | F153: 0.3000000119
A154: 4.7 | B154: 0.938 | C154: 0.75 | D154: 0.5939999819 | E154: 0.4180000126 | F154: 0.2759999931
A155: 4.8 | B155: 0.935 | C155: 0.737 | D155: 0.5759999752 | E155: 0.3950000107 | F155: 0.2529999912
A156: 4.9 | B156: 0.932 | C156: 0.724 | D156: 0.5569999814 | E156: 0.3720000088 | F156: 0.2300000042
A157: 5 | B157: 0.928 | C157: 0.711 | D157: 0.5379999876 | E157: 0.349999994 | F157: 0.2090000063
A158: 5.1 | B158: 0.924 | C158: 0.698 | D158: 0.5199999809 | E158: 0.3280000091 | F158: 0.1889999956
A159: 5.2 | B159: 0.921 | C159: 0.685 | D159: 0.5009999871 | E159: 0.3059999943 | F159: 0.1710000038
A160: 5.3 | B160: 0.917 | C160: 0.672 | D160: 0.4819999933 | E160: 0.2849999964 | F160: 0.1539999992
A161: 5.4 | B161: 0.913 | C161: 0.658 | D161: 0.4629999995 | E161: 0.2639999986 | F161: 0.1389999986
A162: 5.5 | B162: 0.909 | C162: 0.644 | D162: 0.4440000057 | E162: 0.2440000027 | F162: 0.126000002
A163: 5.6 | B163: 0.905 | C163: 0.631 | D163: 0.4250000119 | E163: 0.224999994 | F163: 0.1159999967
A164: 5.7 | B164: 0.901 | C164: 0.617 | D164: 0.4070000052 | E164: 0.2060000002 | F164: 0.1089999974
A165: 5.8 | B165: 0.897 | C165: 0.603 | D165: 0.3880000114 | E165: 0.1889999956 | F165: 0.1049999967
A166: 5.9 | B166: 0.893 | C166: 0.588 | D166: 0.3689999878 | E166: 0.1720000058 | F166: 0.1040000021
A167: 6 | B167: 0.888 | C167: 0.574 | D167: 0.351000011 | E167: 0.1570000052 | F167: 0.1049999967
A168: 6.1 | B168: 0.884 | C168: 0.56 | D168: 0.3330000043 | E168: 0.1430000067 | F168: 0.1080000028
A169: 6.2 | B169: 0.879 | C169: 0.546 | D169: 0.3149999976 | E169: 0.1299999952 | F169: 0.1120000035
A170: 6.3 | B170: 0.875 | C170: 0.531 | D170: 0.2969999909 | E170: 0.1199999973 | F170: 0.1169999987
A171: 6.4 | B171: 0.87 | C171: 0.517 | D171: 0.2800000012 | E171: 0.1120000035 | F171: 0.1220000014
A172: 6.5 | B172: 0.865 | C172: 0.502 | D172: 0.2619999945 | E172: 0.1059999987 | F172: 0.1280000061
A173: 6.6 | B173: 0.861 | C173: 0.488 | D173: 0.2460000068 | E173: 0.1030000001 | F173: 0.1330000013
A174: 6.7 | B174: 0.856 | C174: 0.473 | D174: 0.2290000021 | E174: 0.1019999981 | F174: 0.1379999965
A175: 6.8 | B175: 0.851 | C175: 0.459 | D175: 0.2129999995 | E175: 0.1030000001 | F175: 0.1430000067
A176: 6.9 | B176: 0.846 | C176: 0.444 | D176: 0.1979999989 | E176: 0.1049999967 | F176: 0.1459999979
A177: 7 | B177: 0.841 | C177: 0.43 | D177: 0.1829999983 | E177: 0.1099999994 | F177: 0.1490000039
A178: 7.1 | B178: 0.836 | C178: 0.415 | D178: 0.1679999977 | E178: 0.1150000021 | F178: 0.1519999951
A179: 7.2 | B179: 0.831 | C179: 0.401 | D179: 0.1550000012 | E179: 0.1209999993 | F179: 0.1529999971
A180: 7.3 | B180: 0.825 | C180: 0.387 | D180: 0.1420000046 | E180: 0.1270000041 | F180: 0.1539999992
A181: 7.4 | B181: 0.82 | C181: 0.373 | D181: 0.1299999952 | E181: 0.1330000013 | F181: 0.1539999992
A182: 7.5 | B182: 0.815 | C182: 0.359 | D182: 0.1190000027 | E182: 0.1389999986 | F182: 0.1529999971
A183: 7.6 | B183: 0.809 | C183: 0.345 | D183: 0.1099999994 | E183: 0.1449999958 | F183: 0.1519999951
A184: 7.7 | B184: 0.804 | C184: 0.331 | D184: 0.1019999981 | E184: 0.150000006 | F184: 0.150000006
A185: 7.8 | B185: 0.798 | C185: 0.317 | D185: 0.09600000083 | E185: 0.1550000012 | F185: 0.1469999999
A186: 7.9 | B186: 0.792 | C186: 0.304 | D186: 0.09099999815 | E186: 0.1589999944 | F186: 0.1430000067
A187: 8 | B187: 0.787 | C187: 0.29 | D187: 0.08900000155 | E187: 0.1630000025 | F187: 0.1379999965
A188: 8.1 | B188: 0.781 | C188: 0.277 | D188: 0.08900000155 | E188: 0.1669999957 | F188: 0.1330000013
A189: 8.2 | B189: 0.775 | C189: 0.264 | D189: 0.09000000358 | E189: 0.1700000018 | F189: 0.1280000061
A190: 8.3 | B190: 0.769 | C190: 0.252 | D190: 0.09300000221 | E190: 0.1720000058 | F190: 0.1220000014
A191: 8.4 | B191: 0.763 | C191: 0.239 | D191: 0.09799999744 | E191: 0.173999995 | F191: 0.1150000021
A192: 8.5 | B192: 0.757 | C192: 0.227 | D192: 0.1030000001 | E192: 0.174999997 | F192: 0.1080000028
A193: 8.6 | B193: 0.751 | C193: 0.215 | D193: 0.1089999974 | E193: 0.174999997 | F193: 0.1010000035
A194: 8.7 | B194: 0.745 | C194: 0.204 | D194: 0.1150000021 | E194: 0.174999997 | F194: 0.09300000221
A195: 8.8 | B195: 0.739 | C195: 0.193 | D195: 0.1209999993 | E195: 0.173999995 | F195: 0.08500000089
A196: 8.9 | B196: 0.733 | C196: 0.182 | D196: 0.1280000061 | E196: 0.172999993 | F196: 0.07699999958
A197: 9 | B197: 0.727 | C197: 0.172 | D197: 0.1340000033 | E197: 0.1710000038 | F197: 0.0700000003
A198: 9.1 | B198: 0.72 | C198: 0.163 | D198: 0.1410000026 | E198: 0.1689999998 | F198: 0.06199999899
A199: 9.2 | B199: 0.714 | C199: 0.154 | D199: 0.1469999999 | E199: 0.1659999937 | F199: 0.0549999997
A200: 9.3 | B200: 0.708 | C200: 0.146 | D200: 0.1529999971 | E200: 0.1620000005 | F200: 0.04800000042
... 807 more rows

Sheet Antenna
A1: TLP/DSB Antenna Mechanical Specifications
A2: Antenna Design | Q2: 2 | R2: Call Letters | S2: =Input!D27 -> 0
Q3: 3 | R3: Channel | S3: =Input!F27 -> 26
Q4: 4 | R4: Pattern | S4: =Input!E13 -> B
Q5: 5 | R5: Layers | S5: =Input!K13 -> 8 | T5: Pushed
Q6: 6 | R6: Sections | S6: 1 | T6: Set
Q7: 7 | R7: Slot Cover | S7: TRUE | T7: Pushed | U7: Standard Radome | V7: FALSE
Q8: 8 | R8: Radome | S8: FALSE | T8: Pushed | U8: Optimal Ice Spacing | V8: FALSE
U9: Best Fit | V9: TRUE
Q10: 10 | R10: Wind Spec | S10: =Input!E42 -> F | U10: User Specitied | V10: FALSE
Q11: 11 | R11: Include Ice | S11: =Input!P75 -> FALSE | U11: Offset Radoem | V11: FALSE
Q12: 12 | R12: Tower Height | S12: =Input!K47 -> 500 | U12: Diameter | V12: 18.026
Q13: 13 | R13: Elev on Tower | S13: =Input!K48 -> 500
Q14: 14 | R14: Tower Base Elev | S14: =Input!K49 -> 500
Q16: 16 | R16: Wind Speed F | S16: =Input!I42 -> 0
Q17: 17 | R17: Wind Speed Ice F | S17: =Input!K44 -> 0
Q18: 18 | R18: Ice Thickness F | S18: 0.5
Q20: 20 | R20: Wind Speed G | S20: =Input!I42 -> 0
Q21: 21 | R21: Wind Speed Ice G | S21: =Input!K45 -> 0
Q22: 22 | R22: Ice Thickness G | S22: 0.5
Q24: 24 | R24: Structure (I-III) | S24: =Input!E47 -> III
Q25: 25 | R25: Exposeure (B-D) | S25: =Input!E48 -> B
Q26: 26 | R26: Topo (1-4) | S26: =Input!E49 -> 1
Q29: 29 | R29: H2 | S29: 16.7
Q30: 30 | R30: W Dry | S30: 77
Q31: 31 | R31: W Ice | S31: =S30+T31 -> 77 | T31: 0 | U31: Ice alone
Q32: 32 | R32: EPA/CA | S32: 10.88
Q33: 33 | R33: tiz | S33: 1.31

Sheet Data
B2: Channels | E2: Patterns | G2: Layers/ Section | H2: Number of Sections | K2: Radome Slot Cover Choices | N2: Offset Radome | P2: WindSpecs
B3: 14 | E3: A | G3: 4 | H3: 1 | K3: Rad | N3: Y | P3: C
B4: 15 | E4: B | G4: 6 | H4: 2 | K4: Slt Cvr | N4: N | P4: F
B5: 16 | E5: C | G5: 8 | H5: 3 | P5: G
B6: 17 | E6: D | G6: 12
B7: 18 | E7: E
B8: 19 | E8: F
B9: 20 | E9: G
B10: 21 | E10: H | I10: C Spec Zones | K10: Structure Class | M10: Exposure Cat | O10: Topo Cat
B11: 22 | E11: I | I11: A | K11: I | M11: B | O11: 1
B12: 23 | E12: J | I12: B | K12: II | M12: C | O12: 2
B13: 24 | E13: M | I13: C | K13: III | M13: D | O13: 3
B14: 25 | E14: N | O14: 4
B15: 26 | E15: O
B16: 27
B17: 28
B18: 29
B19: 30
B20: 31
B21: 32
B22: 33
B23: 34
B24: 35
B25: 36
B26: 37
B27: 38
B28: 39
B29: 40
B30: 41
B31: 42
B32: 43
B33: 44
B34: 45
B35: 46
B36: 47
B37: 48
B38: 49
B39: 50
B40: 51
B41: 52
B42: 53
B43: 54

Sheet Sheet2
Q3: 3 | R3: Channel | S3: =Input!F27 -> 26
Q4: 4 | R4: Pattern | S4: =Input!E13 -> B
Q5: 5 | R5: Layers | S5: =IF(Input!K13=16,8,Input!K13) -> 8
Q6: 6 | R6: Sections | S6: =Input!P106 -> 1
Q7: 7 | R7: Slot Cover | S7: FALSE
Q8: 8 | R8: Radome | S8: TRUE
Q10: 10 | R10: Wind Spec | S10: =Input!E42 -> F
Q11: 11 | R11: Include Ice | S11: =Input!P75 -> FALSE
Q12: 12 | R12: Tower Height | S12: 500
Q13: 13 | R13: Elev on Tower | S13: =IF(Input!K47<1,1,Input!K47) -> 500
Q14: 14 | R14: Tower Base Elev | S14: =IF(Input!K49<1,1,Input!K49) -> 500
Q16: 16 | R16: Wind Speed | S16: =Input!I42 -> 0
Q17: 17 | R17: Wind Speed Ice | S17: =Input!K44 -> 0
Q18: 18 | R18: Ice Thickness | S18: =Input!E44 -> 0
Q20: 20 | R20: Structure (I-III) | S20: =IF(Input!E47="","I",Input!E47) -> III
Q21: 21 | R21: Exposeure (B-D) | S21: =IF(Input!E48="","B",Input!E48) -> B
Q22: 22 | R22: Topo (1-4) | S22: =IF(Input!E49="",1,Input!E49) -> 1
Q25: 25 | R25: H2
Q26: 26 | R26: W Dry
Q27: 27 | R27: W with Ice
Q28: 28 | R28: EPA/CA
Q29: 29 | R29: tiz | S29: 3.89
Q32: 32
Q33: 33
